{"text_format":"1","workbook":"xlsx","n_sheets":22,"sheets":["セルのロック、印刷用紙サイズについて","【入力方法①】","【入力方法②】","【相談・支援件数検索方法】","相談・支援活動","その他活動","訪問回数","連絡調整回数","活動日数","総合計","4月","5月","6月","7月","8月","9月","10月","11月","12月","1月","2月","3月"],"not_rendered":{"charts":18,"images":14,"macros":1,"external_links":0,"defined_names":753,"comments":1,"pivot_tables":0},"unopened":[],"bounds":{"document_bytes":16777216,"sheet_cells":100000,"rows_first":2000,"rows_last":500,"rows_between":2000,"halvings":0,"cell_chars":16384,"cell_head_chars":4096},"cells_cut":0,"cells_raw":0,"read":"whole","date_system":"1900"}

{"sheet":"セルのロック、印刷用紙サイズについて","index":0,"n_rows":6,"n_cols":3,"rows_kept":6,"cut":false,"hidden":false,"merged":[[0,1,0,10],[4,1,4,10],[5,2,5,10],[1,2,1,10],[2,2,2,10]]}
[null,"☆　シートの保護とセルのロックについて"]
[null,"・","各シートに保護がかけてあります。"]
[null,"・","「総合計シート」の色で塗りつぶしたセル、「【入力方法】シート」の色で塗りつぶしがしてあるセル部分は委員自身が入力するセルなのでロックを外してあります。"]
[]
[null,"　☆　印刷時の用紙サイズについて"]
[null,"・","印刷時の用紙サイズは、「総合計」シートはA4サイズ、月別シート（4月～翌3月）はA4サイズで設定しています。お手持ちのプリンタによって印刷結果が変わってきますので、各自ご調整ください。"]

{"sheet":"【入力方法①】","index":1,"n_rows":53,"n_cols":2,"rows_kept":53,"cut":false,"hidden":false,"merged":[]}
[]
[]
[]
["①","総合計シートを開き、「年度」「民生委員番号」「民児協名」「氏名」を入力します。"]
[null,"（年度、民生委員番号、民児協名・氏名を入力するのはここ一度だけです。自動的に各月のシートに反映します。)"]
[]
[]
[]
[]
[]
[]
[]
[]
[]
[]
[]
[]
[]
[]
[]
[]
[]
[]
[]
[]
[]
[]
[]
[]
[]
[]
[]
[]
[]
[]
[]
[]
[]
[]
[]
[]
[]
[]
[]
[]
[]
[]
[]
[]
["②","各月のシートを開き、入力欄に詳細を入力します。"]
[null,"入力できるセルが限られており、入力すると合計が自動的に計算されます。"]
[null,"各月の詳細を入力すると、総合計シートには年度の合計が自動表示されます。"]
[null,"シート右上の民生委員番号、民児協名・氏名は、「総合計シート」にて入力したものが反映されています。"]

{"sheet":"【入力方法②】","index":2,"n_rows":119,"n_cols":28,"rows_kept":119,"cut":false,"hidden":false,"merged":[[0,0,0,2],[0,13,0,14],[0,15,0,19],[1,13,1,14],[1,15,1,19],[1,22,1,27],[3,0,7,1],[3,2,7,6],[3,7,3,8],[3,9,3,14],[3,15,3,16],[3,17,3,18],[3,19,6,19],[4,7,6,7],[4,8,6,8],[8,2,8,6],[8,21,8,22],[8,25,8,27],[9,2,9,6],[9,22,9,27],[10,2,10,6],[4,15,6,15],[4,16,6,16],[4,17,6,17],[4,18,6,18],[4,23,4,27],[5,24,6,27],[4,9,6,9],[4,10,6,10],[4,11,6,11],[4,12,6,12],[4,13,6,13],[4,14,6,14],[11,2,11,6],[11,22,30,22],[11,23,25,23],[12,2,12,6],[13,2,13,6],[14,2,14,6],[15,2,15,6],[16,2,16,6],[17,2,17,6],[18,2,18,6],[25,2,25,6],[26,2,26,6],[26,23,30,23],[27,2,27,6],[28,2,28,6],[29,2,29,6],[30,2,30,6],[19,2,19,6],[20,2,20,6],[21,2,21,6],[22,2,22,6],[23,2,23,6],[24,2,24,6],[31,2,31,6],[31,22,31,27],[32,2,32,6],[32,22,37,23],[33,2,33,6],[34,2,34,6],[35,2,35,6],[36,2,36,6],[37,2,37,6],[44,2,44,6],[45,2,45,6],[46,2,46,6],[46,22,46,24],[47,2,47,6],[48,2,48,6],[38,2,38,6],[39,2,39,6],[39,22,40,23],[40,2,40,6],[41,2,41,6],[42,2,42,6],[42,22,43,23],[43,2,43,6],[55,2,55,6],[56,2,56,6],[57,2,57,6],[58,2,58,6],[59,2,59,6],[60,2,60,6],[49,2,49,6],[50,2,50,6],[51,2,51,6],[52,2,52,6],[53,2,53,6],[54,2,54,6],[67,2,67,6],[68,2,68,6],[69,2,69,6],[70,2,70,6],[71,2,71,6],[72,2,72,6],[61,2,61,6],[62,2,62,6],[63,2,63,6],[64,2,64,6],[65,2,65,6],[66,2,66,6],[79,2,79,6],[80,2,80,6],[81,2,81,6],[82,2,82,6],[83,0,83,6],[73,2,73,6],[74,2,74,6],[75,2,75,6],[76,2,76,6],[77,2,77,6],[78,2,78,6]]}
[{"$f":"総合計!$A$1","v":2023},null,null,"年",4,"月 の","民生委員･児童委員   活動記録内容",null,null,null,null,null,null,"民児協名：",null,{"$f":"総合計!L3","v":0},null,null,null,null,null,null,"民生委員番号"]
[{"$f":"IF(B35<>B36,\"報告日数（A列）と活動日数（T列）が一致していません。活動日数（T列）は一日に一つだけ【〇】を入力してください。\",\"\")","v":"報告日数（A列）と活動日数（T列）が一致していません。活動日数（T列）は一日に一つだけ【〇】を入力してください。"},null,null,null,null,null,null,null,null,null,null,null,null,"氏 　　名：",null,{"$f":"総合計!L5","v":0},null,null,null,null,null,null,{"$f":"総合計!L2","v":0}]
[null,null,null,null,null,null,null,"↓「内容」↓「分野」の件数が一致するように入力してください。",null,null,null,null,null,null,null,null,null,null,null,{"$f":"IF(T84>30,\"活動日数が今月の日数を越えないように訂正してください。\",\"\")","v":"活動日数が今月の日数を越えないように訂正してください。"}]
["日・曜日",null,"活 動 概 要",null,null,null,null,"相談･支援活動",null,"その他の活動",null,null,null,null,null,"訪問回数",null,"連絡調整回数",null,"活動日数",null,null,"民児協名:"]
[null,null,null,null,null,null,null,"内容","分野","調査・\n実態把握","行事･事業･会議への参加 ･協力","地域福祉活動 ･自主活動","民児協\n運営･研修","証明(調査・確認等)事務","要保護児童の発見の通告･仲介","訪問･\n連絡活動","その他","委員相互","その他の\n関係機関",null,null,null,null,{"$f":"総合計!L3","v":0}]
[null,null,null,null,null,null,null,null,null,null,null,null,null,null,null,null,null,null,null,null,null,null,"氏名：",null,{"$f":"総合計!L5","v":0}]
[]
[null,null,null,null,null,null,null,"(1)～(14)","(16)～(19)","(1)","(2)","(3)","(4)","(5)","(6)","(7)","(8)","(9)","(10)","(11)"]
[2,{"$f":"IF(A9<>\"\",WEEKDAY($A$1&\"/\"&$E$1&\"/\"&A9),\"\")","v":1},"活動件数を福祉事務所に報告するため、全委員から集めた先月の活動記録の集計表をもとに集計を行った。",null,null,null,null,null,null,null,null,null,1,null,null,null,null,null,null,"○",null,{"$f":"A1","v":2023},null,"年","4月分"]
[3,{"$f":"IF(A10<>\"\",WEEKDAY($A$1&\"/\"&$E$1&\"/\"&A10),\"\")","v":2},"Ａ氏（高齢者）から、介護保険のホームヘルプサービスの利用の件で相談したいと電話があり、訪問して相談にのった。その後、行政の福祉課にも連絡をして内容を伝えた。",null,null,null,null,2,16,null,null,null,null,null,null,null,1,null,1,"○",null,null," 活動件数 集計報告書 "]
[3,2,"上記相談の際、相続のことについても相談にのったが、A氏への来客のため、続きは日を改めることにした。",null,null,null,null,10,16]
[4,3,"保健センターと共同で開催する子育て教室の打合せをした。",null,null,null,null,null,null,null,null,1,null,null,null,null,null,null,null,"○",null,null,"相談・支援活動","（内容別）","在　宅　福　祉","(1)",{"$f":"COUNTIF($H$9:$H$83,1)","v":0},"件"]
[null,"",null,null,null,null,null,null,null,null,null,null,null,null,null,null,null,null,null,"○",null,null,null,null,"介　護　保　険","(2)",{"$f":"COUNTIF($H$9:$H$83,2)","v":2}]
[null,"",null,null,null,null,null,null,null,null,null,null,null,null,null,null,null,null,null,"○",null,null,null,null,"健康・保健医療","(3)",{"$f":"COUNTIF($H$9:$H$83,3)","v":0}]
[null,"",null,null,null,null,null,null,null,null,null,null,null,null,null,null,null,null,null,"○",null,null,null,null,"子育て・母子保健","(4)",{"$f":"COUNTIF($H$9:$H$83,4)","v":0}]
[null,"",null,null,null,null,null,null,null,null,null,null,null,null,null,null,null,null,null,"○",null,null,null,null,"子どもの地域生活","(5)",{"$f":"COUNTIF($H$9:$H$83,5)","v":0}]
[null,"",null,null,null,null,null,null,null,null,null,null,null,null,null,null,null,null,null,"○",null,null,null,null,"子どもの教育･学校生活","(6)",{"$f":"COUNTIF($H$9:$H$83,6)","v":0}]
[null,"",null,null,null,null,null,null,null,null,null,null,null,null,null,null,null,null,null,"○",null,null,null,null,"生　　活　　費","(7)",{"$f":"COUNTIF($H$9:$H$83,7)","v":0}]
[null,"",null,null,null,null,null,null,null,null,null,null,null,null,null,null,null,null,null,"○",null,null,null,null,"年　金・保　険","(8)",{"$f":"COUNTIF($H$9:$H$83,8)","v":0}]
[null,"",null,null,null,null,null,null,null,null,null,null,null,null,null,null,null,null,null,"○",null,null,null,null,"仕　　　　　事","(9)",{"$f":"COUNTIF($H$9:$H$83,9)","v":0}]
[null,"",null,null,null,null,null,null,null,null,null,null,null,null,null,null,null,null,null,"○",null,null,null,null,"家　族　関　係","(10)",{"$f":"COUNTIF($H$9:$H$83,10)","v":1}]
[null,"",null,null,null,null,null,null,null,null,null,null,null,null,null,null,null,null,null,"○",null,null,null,null,"住　　　　　居","(11)",{"$f":"COUNTIF($H$9:$H$83,11)","v":0}]
[null,"",null,null,null,null,null,null,null,null,null,null,null,null,null,null,null,null,null,"○",null,null,null,null,"生　活　環　境","(12)",{"$f":"COUNTIF($H$9:$H$83,12)","v":0}]
[null,"",null,null,null,null,null,null,null,null,null,null,null,null,null,null,null,null,null,"○",null,null,null,null,"日 常 的 な 支 援","(13)",{"$f":"COUNTIF($H$9:$H$83,13)","v":0}]
[null,"",null,null,null,null,null,null,null,null,null,null,null,null,null,null,null,null,null,"○",null,null,null,null,"そ　　の　　他","(14)",{"$f":"COUNTIF($H$9:$H$83,14)","v":0}]
[null,"",null,null,null,null,null,null,null,null,null,null,null,null,null,null,null,null,null,"○",null,null,null,null,"計","(15)",{"$f":"SUM(AA12:AA25)","v":3}]
[null,"",null,null,null,null,null,null,null,null,null,null,null,null,null,null,null,null,null,"○",null,null,null,"（分野別）","高齢者に関すること","(16)",{"$f":"COUNTIF($I$9:$I$83,16)","v":4},"件"]
[null,"",null,null,null,null,null,null,null,null,null,null,null,null,null,null,null,null,null,"○",null,null,null,null,"障害者に関すること","(17)",{"$f":"COUNTIF($I$9:$I$83,17)","v":0}]
[null,"",null,null,null,null,null,null,null,null,null,null,null,null,null,null,null,null,null,"○",null,null,null,null,"子どもに関すること","(18)",{"$f":"COUNTIF($I$9:$I$83,18)","v":0}]
[null,"",null,null,null,null,null,null,null,null,null,null,null,null,null,null,null,null,null,"○",null,null,null,null,"そ　　の　　他","(19)",{"$f":"COUNTIF($I$9:$I$83,19)","v":0}]
[null,"",null,null,null,null,null,null,null,null,null,null,null,null,null,null,null,null,null,"○",null,null,null,null,"計","(20)",{"$f":"SUM(AA27:AA30)","v":4}]
[null,"",null,null,null,null,null,null,null,null,null,null,null,null,null,null,null,null,null,"○",null,null,"　※(15)と(20)の合計件数は一致　"]
[null,"",null,null,null,null,null,null,null,null,null,null,null,null,null,null,null,null,null,"○",null,null,"その他の活動",null,"調査・実態把握","(1)",{"$f":"J84","v":0},"件"]
[null,"",null,null,null,null,null,null,null,null,null,null,null,null,null,null,null,null,null,"○",null,null,null,null,"行事・事業・会議への参加・協力","(2)",{"$f":"K84","v":0}]
[1,7,"Ａ氏（高齢者）から、介護保険のホームヘルプサービスの利用の件で相談したいと電話があり、訪問して相談にのった。その後、行政の福祉課にも連絡をして内容を伝えた。",null,null,null,null,2,16,null,null,null,null,null,null,null,1,null,1,"○",null,null,null,null,"地域福祉活動･自主活動","(3)",{"$f":"L84","v":1}]
[null,"",null,null,null,null,null,null,null,null,null,null,null,null,null,null,null,null,null,"○",null,null,null,null,"民児協運営・研修","(4)",{"$f":"M84","v":1}]
[null,"",null,null,null,null,null,null,null,null,null,null,null,null,null,null,null,null,null,"○",null,null,null,null,"証　明　事　務","(5)",{"$f":"N84","v":0}]
[null,"",null,null,null,null,null,null,null,null,null,null,null,null,null,null,null,null,null,"○",null,null,null,null,"要保護児童の発見の通告･仲介","(6)",{"$f":"O84","v":0}]
[null,"",null,null,null,null,null,null,null,null,null,null,null,null,null,null,null,null,null,"○"]
[null,"",null,null,null,null,null,null,null,null,null,null,null,null,null,null,null,null,null,null,null,null,"訪問回数",null,"訪問・連絡活動","(7)",{"$f":"P84","v":0},"回"]
[null,"",null,null,null,null,null,null,null,null,null,null,null,null,null,null,null,null,null,null,null,null,null,null,"そ 　の　 他","(8)",{"$f":"Q84","v":2}]
[null,""]
[null,"",null,null,null,null,null,null,null,null,null,null,null,null,null,null,null,null,null,null,null,null,"連絡調整回数",null,"委　員　相　互","(9)",{"$f":"R84","v":0},"回"]
[null,"",null,null,null,null,null,null,null,null,null,null,null,null,null,null,null,null,null,null,null,null,null,null,"その他の関係機関","(10)",{"$f":"S84","v":2}]
[null,""]
[null,"",null,null,null,null,null,null,null,null,null,null,null,null,null,null,null,null,null,null,null,null,null,null,"活　動　日　数","(11)",{"$f":"T84","v":31},"日"]
[null,"",null,null,null,null,null,null,null,null,null,null,null,null,null,null,null,null,null,null,null,null,{"$f":"A1&\"年\"&E1&\"月\"","v":"2023年4月"}]
[null,"",null,null,null,null,null,null,null,null,null,null,null,null,null,null,null,null,null,null,null,null,"日","曜"]
[null,"",null,null,null,null,null,null,null,null,null,null,null,null,null,null,null,null,null,null,null,null,1,{"$f":"WEEKDAY($A$1&\"/\"&$E$1&\"/\"&W49)","v":7}]
[null,"",null,null,null,null,null,null,null,null,null,null,null,null,null,null,null,null,null,null,null,null,2,{"$f":"WEEKDAY($A$1&\"/\"&$E$1&\"/\"&W50)","v":1}]
[null,"",null,null,null,null,null,null,null,null,null,null,null,null,null,null,null,null,null,null,null,null,3,2]
[null,"",null,null,null,null,null,null,null,null,null,null,null,null,null,null,null,null,null,null,null,null,4,3]
[null,"",null,null,null,null,null,null,null,null,null,null,null,null,null,null,null,null,null,null,null,null,5,4]
[null,"",null,null,null,null,null,null,null,null,null,null,null,null,null,null,null,null,null,null,null,null,6,5]
[null,"",null,null,null,null,null,null,null,null,null,null,null,null,null,null,null,null,null,null,null,null,7,6]
[null,"",null,null,null,null,null,null,null,null,null,null,null,null,null,null,null,null,null,null,null,null,8,7]
[null,"",null,null,null,null,null,null,null,null,null,null,null,null,null,null,null,null,null,null,null,null,9,1]
[null,"",null,null,null,null,null,null,null,null,null,null,null,null,null,null,null,null,null,null,null,null,10,2]
[null,"",null,null,null,null,null,null,null,null,null,null,null,null,null,null,null,null,null,null,null,null,11,3]
[null,"",null,null,null,null,null,null,null,null,null,null,null,null,null,null,null,null,null,null,null,null,12,4]
[null,"",null,null,null,null,null,null,null,null,null,null,null,null,null,null,null,null,null,null,null,null,13,5]
[null,"",null,null,null,null,null,null,null,null,null,null,null,null,null,null,null,null,null,null,null,null,14,6]
[null,"",null,null,null,null,null,null,null,null,null,null,null,null,null,null,null,null,null,null,null,null,15,7]
[null,"",null,null,null,null,null,null,null,null,null,null,null,null,null,null,null,null,null,null,null,null,16,1]
[null,"",null,null,null,null,null,null,null,null,null,null,null,null,null,null,null,null,null,null,null,null,17,2]
[null,"",null,null,null,null,null,null,null,null,null,null,null,null,null,null,null,null,null,null,null,null,18,3]
[null,"",null,null,null,null,null,null,null,null,null,null,null,null,null,null,null,null,null,null,null,null,19,4]
[null,"",null,null,null,null,null,null,null,null,null,null,null,null,null,null,null,null,null,null,null,null,20,5]
[null,"",null,null,null,null,null,null,null,null,null,null,null,null,null,null,null,null,null,null,null,null,21,6]
[null,"",null,null,null,null,null,null,null,null,null,null,null,null,null,null,null,null,null,null,null,null,22,7]
[null,"",null,null,null,null,null,null,null,null,null,null,null,null,null,null,null,null,null,null,null,null,23,1]
[null,"",null,null,null,null,null,null,null,null,null,null,null,null,null,null,null,null,null,null,null,null,24,2]
[null,"",null,null,null,null,null,null,null,null,null,null,null,null,null,null,null,null,null,null,null,null,25,3]
[null,{"$f":"IF(A74<>\"\",WEEKDAY($A$1&\"/\"&$E$1&\"/\"&A74),\"\")","v":""},null,null,null,null,null,null,null,null,null,null,null,null,null,null,null,null,null,null,null,null,26,4]
[null,"",null,null,null,null,null,null,null,null,null,null,null,null,null,null,null,null,null,null,null,null,27,5]
[null,"",null,null,null,null,null,null,null,null,null,null,null,null,null,null,null,null,null,null,null,null,28,6]
[null,"",null,null,null,null,null,null,null,null,null,null,null,null,null,null,null,null,null,null,null,null,29,7]
[null,"",null,null,null,null,null,null,16,null,null,null,null,null,null,null,null,null,null,"○",null,null,30,1]
[null,""]
[null,""]
[null,""]
[null,""]
[null,""]
["合　　　　　　計",null,null,null,null,null,null,{"$f":"COUNTA(H9:H83)","v":3},{"$f":"COUNTA(I9:I83)","v":4},{"$f":"SUM(J9:J83)","v":0},0,1,1,0,0,0,2,0,2,{"$f":"COUNTA(T9:T83)","v":31}]
[null,null,null,null,null,null,null,{"$f":"IF(H84=I84,\"\",\"※↑「内容」↑「分野」の件数が一致するように入力してください。\")","v":"※↑「内容」↑「分野」の件数が一致するように入力してください。"},null,null,null,null,null,null,null,null,null,null,null,{"$f":"IF(T84>30,\"↑\",\"\")","v":"↑"}]
[{"$f":"IF(B119<>T84,\"報告日数（A列）と活動日数（T列）が一致していません。活動日数（T列）は一日に一つだけ【〇】を入力してください。\",\"\")","v":"報告日数（A列）と活動日数（T列）が一致していません。活動日数（T列）は一日に一つだけ【〇】を入力してください。"},null,null,null,null,null,null,null,null,null,null,null,null,null,null,null,null,null,null,{"$f":"IF(T84>30,\"活動日数が今月の日数を越えないように訂正してください。\",\"\")","v":"活動日数が今月の日数を越えないように訂正してください。"}]
["日","日別活動件数"]
[{"$f":"COUNTIF($A$9:$A$83,1)","v":1},{"$f":"COUNTIF(A88,\">=1\" )","v":1}]
[{"$f":"COUNTIF($A$9:$A$83,2)","v":1},{"$f":"COUNTIF(A89,\">=1\" )","v":1}]
[{"$f":"COUNTIF($A$9:$A$83,3)","v":2},1]
[{"$f":"COUNTIF($A$9:$A$83,4)","v":1},1]
[{"$f":"COUNTIF($A$9:$A$83,5)","v":0},0]
[{"$f":"COUNTIF($A$9:$A$83,6)","v":0},0]
[{"$f":"COUNTIF($A$9:$A$83,7)","v":0},0]
[{"$f":"COUNTIF($A$9:$A$83,8)","v":0},0]
[{"$f":"COUNTIF($A$9:$A$83,9)","v":0},0]
[{"$f":"COUNTIF($A$9:$A$83,10)","v":0},0]
[{"$f":"COUNTIF($A$9:$A$83,11)","v":0},0]
[{"$f":"COUNTIF($A$9:$A$83,12)","v":0},0]
[{"$f":"COUNTIF($A$9:$A$83,13)","v":0},0]
[{"$f":"COUNTIF($A$9:$A$83,14)","v":0},0]
[{"$f":"COUNTIF($A$9:$A$83,15)","v":0},0]
[{"$f":"COUNTIF($A$9:$A$83,16)","v":0},0]
[{"$f":"COUNTIF($A$9:$A$83,17)","v":0},0]
[{"$f":"COUNTIF($A$9:$A$83,18)","v":0},0]
[{"$f":"COUNTIF($A$9:$A$83,19)","v":0},0]
[{"$f":"COUNTIF($A$9:$A$83,20)","v":0},0]
[{"$f":"COUNTIF($A$9:$A$83,21)","v":0},0]
[{"$f":"COUNTIF($A$9:$A$83,22)","v":0},0]
[{"$f":"COUNTIF($A$9:$A$83,23)","v":0},0]
[{"$f":"COUNTIF($A$9:$A$83,24)","v":0},0]
[{"$f":"COUNTIF($A$9:$A$83,25)","v":0},0]
[{"$f":"COUNTIF($A$9:$A$83,26)","v":0},0]
[{"$f":"COUNTIF($A$9:$A$83,27)","v":0},0]
[{"$f":"COUNTIF($A$9:$A$83,28)","v":0},0]
[{"$f":"COUNTIF($A$9:$A$83,29)","v":0},0]
[{"$f":"COUNTIF($A$9:$A$83,30)","v":0},0]
[{"$f":"COUNTIF($A$9:$A$83,31)","v":0},0]
[null,{"$f":"SUM(B88:B118)","v":4}]

{"sheet":"【相談・支援件数検索方法】","index":3,"n_rows":154,"n_cols":4,"rows_kept":154,"cut":false,"hidden":false,"merged":[[180,1,180,2],[181,1,181,2],[182,1,182,2],[183,1,183,2],[184,1,184,2],[174,1,174,2],[175,1,175,2],[176,1,176,2],[177,1,177,2],[178,1,178,2],[179,1,179,2],[168,1,168,2],[169,1,169,2],[170,1,170,2],[171,1,171,2],[172,1,172,2],[173,1,173,2],[162,1,162,2],[163,1,163,2],[164,1,164,2],[165,1,165,2],[166,1,166,2],[167,1,167,2],[156,1,156,2],[157,1,157,2],[158,1,158,2],[159,1,159,2],[160,1,160,2],[161,1,161,2],[150,1,150,2],[151,1,151,2],[152,1,152,2],[153,1,153,2],[154,1,154,2],[155,1,155,2],[144,1,144,2],[145,1,145,2],[146,1,146,2],[147,1,147,2],[148,1,148,2],[149,1,149,2],[138,1,138,2],[139,1,139,2],[140,1,140,2],[141,1,141,2],[142,1,142,2],[143,1,143,2],[132,1,132,2],[133,1,133,2],[134,1,134,2],[135,1,135,2],[136,1,136,2],[137,1,137,2],[126,1,126,2],[127,1,127,2],[128,1,128,2],[129,1,129,2],[130,1,130,2],[131,1,131,2],[120,1,120,2],[121,1,121,2],[122,1,122,2],[123,1,123,2],[124,1,124,2],[125,1,125,2],[114,1,114,2],[115,1,115,2],[116,1,116,2],[117,1,117,2],[118,1,118,2],[119,1,119,2],[108,1,108,2],[109,1,109,2],[110,1,110,2],[111,1,111,2],[112,1,112,2],[113,1,113,2],[102,1,102,2],[103,1,103,2],[104,1,104,2],[105,1,105,2],[106,1,106,2],[107,1,107,2],[96,1,96,2],[97,1,97,2],[98,1,98,2],[99,1,99,2],[100,1,100,2],[101,1,101,2],[90,1,90,2],[91,1,91,2],[92,1,92,2],[93,1,93,2],[94,1,94,2],[95,1,95,2],[84,1,84,2],[85,1,85,2],[86,1,86,2],[87,1,87,2],[88,1,88,2],[89,1,89,2],[78,1,78,2],[79,1,79,2],[80,1,80,2],[81,1,81,2],[82,1,82,2],[83,1,83,2],[72,1,72,2],[73,1,73,2],[74,1,74,2],[75,1,75,2],[76,1,76,2],[77,1,77,2],[66,1,66,2],[67,1,67,2],[68,1,68,2],[69,1,69,2],[70,1,70,2],[71,1,71,2],[60,1,60,2],[61,1,61,2],[62,1,62,2],[63,1,63,2],[64,1,64,2],[65,1,65,2],[54,1,54,2],[55,1,55,2],[56,1,56,2],[57,1,57,2],[58,1,58,2],[59,1,59,2],[48,1,48,2],[49,1,49,2],[50,1,50,2],[51,1,51,2],[52,1,52,2],[53,1,53,2],[42,1,42,2],[43,1,43,2],[44,1,44,2],[45,1,45,2],[46,1,46,2],[47,1,47,2],[39,1,39,2],[40,1,40,2],[41,1,41,2],[30,1,30,2],[31,1,31,2],[32,1,32,2],[33,1,33,2],[34,1,34,2],[35,1,35,2],[2,1,3,3],[5,0,19,0],[21,0,25,0],[28,1,28,2],[29,1,29,2],[36,1,36,2],[37,1,37,2],[38,1,38,2],[22,3,25,3]]}
[null,"別表（相談・支援活動区分）　　　　　　　　　　　　　　　　　　　　　　　　　　　　　　　　　※｢相談｣だけでなく､｢支援｣内容も含む。"]
[]
[null,"留意点　相談・支援活動については、同一時点、同一の個人や世帯で相談や支援の内容が複数になる場合は、\n　　　　それぞれの区分を確認し、各該当欄にもれなく記入すること。"]
[]
[]
["内容別 相談･支援件数","区　　分","説　　明","具体的な内容（例示）"]
[null,"在　宅　福　祉　　　　（１）","　在宅で生活するうえでの福祉的な支援に関すること（子ども、障害児等を含む。ただし、介護保険に関することは「介護保険（２）」に計上）\n・介護・介助に関すること\n・各種在宅福祉サービスの利用\n　（障害（児）者に対する各種サービス､食事･\n　　入浴･移送等のサービス）\n・日常生活自立支援事業等の利用\n・社会福祉施設への入所等（介護保険施設を除く）\n・補装具、日常生活用具の給付・貸与\n・住宅改造\n・障害者手帳の交付等\n（注）障害者の日常生活および社会生活を総合的に支援する\n      ための法律に関することは､この区分に計上\n（注）高齢者住宅整備資金貸付の利用による住宅の増改築・\n      改造に関することは「生活費（７）」に計上","◯親の認知症の悩みについて話しあう仲間が欲しいと聞き、家族会を紹介した。\n◯障害のある子ども（成人）の日中の活動のための福祉サービス利用について相談を受け　\n　た。\n◯配食サービスを利用したいと相談を受けた。\n◯障害者の外出支援活動をしている団体を尋ねられ、ボランティアグループを紹介した｡\n◯日常生活自立支援事業・成年後見制度の利用や仕組み、契約に関する相談を受けた。\n◯介護保険対象外の補装具や自宅の改修の相談を受け、自治体独自の補助制度を紹介した。\n（注）これらの内容について相談にのったり、情報提供や調整等をした場合のみ該当。委員自身が\n　　　ボランティア活動等に参加する場合は「その他の活動件数」の「地域福祉活動・自主活動\n　　　（３）」に計上。"]
[null,"介　護　保　険　　　（２）","　介護保険サービスの利用等に関すること\n・居宅サービス、施設サービス、介護予防サービス、\n  地域支援事業等\n・要介護認定、保険料、利用料等","◯介護の負担について相談され、利用できる介護保険サービス等について説明した。\n◯玄関や廊下への手すり設置の相談を受け、介護保険制度が利用できることを説明した。\n◯介護保険申請をしたいと相談され、かかりつけ医・地域包括支援センターにつなげた。　      　　　　　　　　　　　　　　　　　　　　　　　　　　"]
[null,"健康・保健医療　　　　（３）","　医療、健康増進や医療制度に関すること\n・心身上の疾病・障害の予防及び治療、医療費、\n  精神保健、生活習慣病予防、リハビリテーション\n・健康増進（健康・食生活相談、健康教育）\n・健康保険、国民健康保険、高齢者医療制度等\n（注）介護保険に関することは「介護保険（２）」に計上\n（注）母子保健に関することは「子育て・保健（４）」に計上","◯親が認知症でないか心配だと相談を受け、医療機関の受診を勧めた。\n◯ひとり暮らしの男性から、健康管理を反省し食生活を改善したいと相談された。\n◯国民健康保険に未加入なので先行き心配であるとの相談を受けた。"]
[null,"子育て・母子保健　　　（４）","　子育て､児童福祉､母子保健に関すること\n・認定こども園や保育所、幼稚園、児童養護施設等の\n  利用\n・障害児福祉サービスの利用\n・育児不安、児童虐待等\n・妊娠や出産等母子保健に関すること","◯月々の延長保育料が高い、よいサービスがないだろうかと相談を受けた。\n◯子どもが発達障害なのではないかと心配だと相談を受けた。\n◯子どもの療育について相談を受け、児童発達支援事業所を紹介した。\n◯新生児を抱えて不安である、子育てサロンに参加したいと相談を受けた。"]
[null,"子どもの地域生活　　　（５）","　子どもの地域での生活に関すること\n・子ども会や自治会行事への参加\n・遊び場や通学通園路（登下校）等\n（注）子ども教育に関すること、学校に関することは「子ど\n      もの教育・学校生活（６）」に計上\n（注）家庭での子どもの生活に関することは「子育て・母子\n      保健（４）」に計上","◯近隣に子どもがおらず遊び相手がいないと相談を受け、子ども会活動を紹介した。\n◯最近、平日の日中の公園にずっといる学齢期の子どもを見かけると相談を受けた。\n◯最近、登下校の際に不審者を見かけるので不安だとの相談を受けた。\n（注）家庭・学校以外の子どもの生活に関することを計上"]
[null,"子どもの教育・学校生活（６）","　子どもの教育や学校教育に関すること\n・子どもの教育に関すること\n・学校教育、進学に関すること\n・不登校やいじめの問題等学校生活に関すること等\n（注）家庭での子どもの生活に関することは「子育て・\n       母子保健（４）」に計上","◯学校の授業についていけないと相談してきた子どもの話を聞いた。\n◯進学先を特別支援学校にするかどうか悩んでいると相談を受けた。\n◯学校で子どもがいじめられていることについて相談を受けた。"]
[null,"生 　 活　  費　　　　　（７）","　生活費に関すること\n・生活保護の申請・受給、生活困窮者自立支援制度の\n  利用\n・生活に必要な経費・貸付金・借入金（消費者金融､\n  クレジットローン､税金等）\n・生活援助資金（生活福祉資金､母子父子寡婦福祉\n  資金､日本学生支援機構の奨学金及び高齢者住宅\n  整備資金､障害者住宅整備資金等）\n・悪質な訪問販売等","◯生活保護を受けるための必要な条件や手続きについて相談を受けた。\n◯借入金の返済が滞り困っているがどうしたらよいかと相談を受けた。\n◯生活福祉資金の特例貸し付けについて返済が難しいと相談を受けた。\n◯しつこく通ってくる訪問販売員から断わりきれずに高額商品を購入してしまったと相談\n  された。"]
[null,"年 金 ・ 保 険　　　　　（８）","　年金・保険に関すること\n・厚生年金保険、国民年金、労災保険、雇用保険\n・児童、障害者、高齢者等の各種福祉手当等\n・自動車損害賠償責任保険等\n（注）健康保険､国民健康保険に関することは「（３）健康・\n      保健医療」に計上","◯国民年金の給付申請について、詳細を知りたいと相談されたので、役場の担当課に\n  つないだ。\n◯児童扶養手当について知りたいと言われ、資料を見せた。\n◯認知症の親が自動車事故を起こしたが、本人への補償は自動車損害賠償責任保険からは\n  十分に受けられないと言われたと相談を受けた。"]
[null,"仕　　　　　事　　　　　（９）","　就職、雇用等の仕事に関すること\n・就職、雇用、失業、出稼ぎ\n・職業指導、職業能力の開発\n・内職\n・仕事に関する資金の借入や機器購入等\n（注）生活福祉資金に関することは「生活費（７）」に計上\n（注）労災保険に関することは「年金・保険（８）」に計上","◯突然の解雇通告で失業したので、今後の就職について相談にのってほしいと言われた。\n◯技術修得のための学校に通うにはどうしたらよいかと尋ねられた。"]
[null,"家　族　関　係　　　　（10）","　家族関係（近隣住民や団体等との関係問題含む）に関すること\n・ 結婚、離婚\n・ 親子関係\n・ 扶養\n・ 家庭不和\n・ 相続\n・ 行方不明\n・ 近隣関係等","◯夫から暴力を受けており、どこに相談したらいいかわからない。\n◯隣家（階上）の騒音に悩んでおり、一度注意したら嫌がらせを受けなんとかしてもらい\n　たい。\n◯町内会の加入を断ったら、役場の広報等の配布をしてもらえず､必要な情報が得られない。\n◯毎日のように隣家から､誰かが暴力をふるっているような物音が聞こえる。\n（注）隣家との土地･家屋の境界線や所有権に関する問題は「住居（11）」に計上"]
[null,"住　　　　　居　　　（11）","　住まいに関すること\n・入居、立退き、借地、借家、家賃、家屋の補修等\n　宅地等の問題に関すること\n・土地の売買、境界線等\n（注）介護福祉のための住宅改修等については「在宅福\n　　　祉（１）」か「介護保険（２）」に計上","◯借家を明渡す際に修繕費を請求され、どうしたらよいかと相談を受けた。\n◯隣人と土地の境界のことでもめたと相談を受け、専門家を紹介した。"]
[null,"生　活　環　境　　　（12）","　生活環境上の困りごとに関すること\n・危険箇所（防犯、防災対策含む）\n・公害\n・環境衛生等の環境問題に関すること","◯街灯がいくつも切れたままになっており夜道が危険だと相談を受けた。\n◯一人暮らしの高齢者から、自宅や地域での具体的な防災対策についての相談を受けた。\n◯歩道わきの下水溝が詰まっていて雨が降るたび冠水して困ると聞き､役場に連絡した｡\n◯野良猫が増えゴミを漁るので不衛生で困っていると相談を受けた｡\n◯河原にゴミを捨てにくるトラックを時折見かけると連絡が入った。\n◯迷惑電話が頻繁にかかってきて困っていると相談を受けた。\n（注）子どもの遊び場や通学通園路の問題は､「子どもの地域生活（５）」に計上"]
[null,"日常的な支援　　　　（13）","　（１）～（12）のいずれにも該当しない内容のう\nち、他に代替手段がないなどによりやむを得\nず行った日常的な支援に関すること","◯他に代替手段がなく緊急的手段として●●（簡易な日常生活上の支援）を行った。\n　 ●●：通院の付添い、買い物の代行・同行、ゴミ出しの手伝い、玄関前の除雪灰、\n　　　　 登下校の付添い、掃除・片付け、手紙の代筆、書類等の提出代行、役場から\n         通知や案内の代読、説明　等"]
[null,"そ　　の　　他　　　（14）","　（１）～（13）のいずれにも該当しない相談・支\n援について\n（注）判断しがたい場合、無理に内容を特定せず、「そ\n　　　の他（14）」に計上","◯相談を受けたが主訴がよくわからなかった。\n◯民生委員の活動内容について教えてほしいと相談があった。"]
[]
["分野別 相談･支援件数","区　　分","説　　明","具体的な内容（例示）"]
[null,"高齢者に関すること　　（16）","　高齢者に関する相談・支援","｢相談・支援の対象となる人（=支援を必要としている人）の属性｣で分類。｢相談者の属性｣を分類するのではないことに注意。なお、属性が２つ以上の分野に該当する場合（例：高齢者かつ障害者である場合等）は、相談内容がいずれに起因しているかによって分野を特定する。\n　※例１：ある高齢者（車いす利用）から、市営バス用の敬老パスは来年ももらえるのかと\n　　　　　質問を受けた。\n　　　　　⇒内容別（１）－分野別（16）\n　※例２ ：ひとり親家庭の父親から、子どものしつけのことで相談を受けた。\n　　　　　⇒内容別（４）－分野別（18）\n（注）（19）には、たとえば生活困窮者、ひとり親家庭、外国人、DV被害者、ホームレス、\n　　　その他等が含まれるが、（16）～（18）に該当する場合は、その分類（（16）～（18））に\n　　　計上。"]
[null,"障害者に関すること　　（17）","　障害者に関する相談・支援"]
[null,"子どもに関すること　　（18）","　子ども（障害児を含む。）に関する相談・支援"]
[null,"そ　　の　　他　　　　（19）","　（16）～（18）のいずれにも該当しない相談・支援\n（注） 判断しがたい場合は、無理に分野を特定せず､「その他\n　　　（19）」に計上"]
[]
[null,"相談・支援内容区分　早見表"]
[null,"例　　示",null,"区　　分"]
["あ","悪質な訪問販売等の問題",null,"生活費（７）"]
["あ","アルコール依存症の問題",null,"健康・保健医療（３）"]
["い","育児サークルについて",null,"子育て・母子保健（４）"]
["い","育児支援のための福祉サービス等の利用",null,"子育て・母子保健（４）"]
["い","いきいきサロンについて",null,"健康・保健医療（３）"]
["い","いじめの問題",null,"子どもの教育・学校生活（６）"]
["い","遺族年金の受給申請をしたい。",null,"年 金・保 険（８）"]
["い","医療費に関すること",null,"健康・保健医療（３）"]
["う","運転免許について（返納等）",null,"その他（14）"]
["お","横断歩道の設置など",null,"生活環境（12）"]
["お","親子関係について",null,"家族関係（10）"]
["か","介護保険以外の在宅生活のための福祉サービス",null,"在宅福祉（１）"]
["か","介護保険に関すること",null,"介護保険（２）"]
["か","街灯が切れている",null,"生活環境（12）"]
["か","買い物の同行、代行",null,"日常的な支援（13）"]
["か","家屋の補修について",null,"住居（11）"]
["か","家族・親族無での問題",null,"家族関係（10）"]
["か","学校教育に関すること",null,"子どもの教育・学校生活（６）"]
["か","学校生活に関すること",null,"子どもの教育・学校生活（６）"]
["か","家庭内暴力（DV含む）",null,"家族関係（10）"]
["か","家庭不和",null,"家族関係（10）"]
["か","環境衛生等の環境問題に関すること",null,"生活環境（12）"]
["き","（地域の）危険個所について",null,"生活環境（12）"]
["き","寄付をしたい",null,"その他（14）"]
["き","給料の未払いについて",null,"仕事（９）"]
["き","（住居の）境界線に関する問題",null,"住居（11）"]
["き","共同募金への協力について",null,"その他（14）"]
["き","近隣住民との関係等",null,"生活環境（12）"]
["け","結婚について",null,"家族関係（10）"]
["け","健康について（健康不安・食生活の相談等）",null,"健康・保健医療（３）"]
["け","健康保険に関すること",null,"健康・保健医療（３）"]
["こ","公園の遊具等の問題",null,"子どもの地域生活（５）"]
["こ","厚生年金（保険）に関すること",null,"年 金・保 険（８）"]
["こ","高齢者医療制度に関すること",null,"健康・保健医療（３）"]
["こ","国民健康保険に関すること",null,"健康・保健医療（３）"]
["こ","国民年金に関すること",null,"年 金・保 険（８）"]
["こ","（地域の）子育てサークル等の情報",null,"子育て・母子保健（４）"]
["こ","子育ての問題について",null,"子育て・母子保健（４）"]
["こ","子育てサロンについて",null,"子育て・母子保健（４）"]
["こ","子ども会について",null,"子どもの地域生活（５）"]
["こ","子ども食堂について",null,"子育て・母子保健（４）"]
["こ","子どもの遊び場に関すること",null,"子どもの地域生活（５）"]
["こ","子どもの教育・学校に関すること",null,"子どもの教育・学校生活（６）"]
["こ","子どもを預かってくれる場所を探している",null,"子育て・母子保健（４）"]
["こ","ゴミ置き場に関すること",null,"生活環境（12）"]
["こ","ゴミ出しの代行",null,"日常的な支援（13）"]
["こ","雇用保険に関すること",null,"年 金・保 険（８）"]
["こ","雇用に関すること",null,"仕事（９）"]
["こ","孤立に関すること",null,"家族関係（10）"]
["さ","災害時の支援等について",null,"その他（14）"]
["さ","在宅福祉サービスについて",null,"在宅福祉（１）"]
["さ","里親制度について",null,"子育て・母子保健（４）"]
["し","施設入所に関する相談（介護保険を除く）",null,"在宅福祉（１）"]
["し","失業について",null,"仕事（９）"]
["し","しつけに関すること",null,"子育て・母子保健（４）"]
["し","児童虐待について（住民からの通告、発見を除く）",null,"子育て・母子保健（４）"]
["し","自動車損害賠償責任保険について",null,"年 金・保 険（８）"]
["し","児童手当について",null,"年 金・保 険（８）"]
["し","児童扶養手当について",null,"年 金・保 険（８）"]
["し","借地、借家に関すること",null,"住居（11）"]
["し","借金に関する相談（消費者金融など）",null,"生活費（７）"]
["し","就学支援制度に関すること",null,"生活費（７）"]
["し","就職に関すること",null,"仕事（９）"]
["し","出産について（支援制度等）",null,"子育て・母子保健（４）"]
["し","障害（児）者に対する支援について",null,"在宅福祉（１）"]
["し","障害者手帳の交付に関すること",null,"在宅福祉（１）"]
["し","食生活に関する相談",null,"健康・保健医療（３）"]
["し","除雪への協力",null,"日常的な支援（13）"]
["し","職業指導、職業能力の開発",null,"仕事（９）"]
["し","書類等の代読、説明",null,"日常的な支援（13）"]
["し","書類等の提出代行（行政への提出）",null,"日常的な支援（13）"]
["し","進学の問題について",null,"子どもの教育・学校生活（６）"]
["し","心身上の疾病・障害の予防及び治療",null,"健康・保健医療（３）"]
["せ","生活困窮者の自立支援制度の利用",null,"生活費（７）"]
["せ","生活習慣病予防",null,"健康・保健医療（３）"]
["せ","生活福祉資金に関すること",null,"生活費（７）"]
["せ","生活保護の申請・受給について",null,"生活費（７）"]
["せ","精神保健に関すること",null,"健康・保健医療（３）"]
["せ","成年後見人制度に関すること",null,"在宅福祉（１）"]
["そ","騒音（近隣住民）",null,"家族関係（10）"]
["そ","騒音（近隣住民以外）",null,"生活環境（12）"]
["そ","掃除の代行",null,"日常的な支援（13）"]
["そ","相続の問題について",null,"家族関係（10）"]
["た","（住居の）立ち退き",null,"住居（11）"]
["た","たばこをやめたい、やめさせたい",null,"健康・保健医療（３）"]
["ち","（地域の）治安に関する心配",null,"生活環境（12）"]
["ち","町内会（自治会）に関すること",null,"家族関係（10）"]
["つ","通院の付き添い",null,"日常的な支援（13）"]
["つ","（子どもの）通学通園路の問題",null,"子どもの地域生活（５）"]
["て","出稼ぎについて",null,"仕事（９）"]
["て","手紙の代筆",null,"日常的な支援（13）"]
["と","土地の売買に関すること",null,"住居（11）"]
["な","内職について",null,"仕事（９）"]
["に","日常生活自立支援事業に関すること",null,"在宅福祉（１）"]
["に","日本学生支援機構の奨学金に関すること",null,"生活費（７）"]
["に","乳幼児健診に関すること",null,"子育て・母子保健（４）"]
["に","妊娠に関すること",null,"子育て・母子保健（４）"]
["に","認知症について（疑いや予防、治療）",null,"健康・保健医療（３）"]
["に","認定こども園について",null,"子育て・母子保健（４）"]
["ね","年金について",null,"年 金・保 険（８）"]
["の","野良犬、野良猫の問題",null,"生活環境（12）"]
["は","徘徊（認知症など）",null,"家族関係（10）"]
["は","派遣労働に関する問題（雇い止めなど）",null,"仕事（９）"]
["は","母親学級について",null,"子育て・母子保健（４）"]
["ひ","ひきこもりについて",null,"家族関係（10）"]
["ふ","福祉手当（児童、障害者、高齢者等）",null,"年 金・保 険（８）"]
["ふ","（子どもの）不登校について",null,"子どもの教育・学校生活（６）"]
["ふ","扶養に関すること",null,"家族関係（10）"]
["へ","ペットの飼育について",null,"その他（14）"]
["へ","ペットの糞尿の問題（迷惑している）",null,"生活環境（12）"]
["ほ","保険所の入所等に関すること",null,"子育て・母子保健（４）"]
["ほ","保険学級について",null,"子育て・母子保健（４）"]
["ほ","母子・父子・寡婦福祉資金に関すること",null,"生活費（７）"]
["ほ","補装具・日常生活用具の給付・貸与について（介護保険以外）",null,"在宅福祉（１）"]
["ほ","ボランティア活動への参加について",null,"その他（14）"]
["や","家賃に関すること",null,"住居（11）"]
["ゆ","（認知症高齢者等の）行方不明",null,"家族関係（10）"]
["よ","要介護認定について",null,"介護保険（２）"]
["よ","養子縁組について",null,"子育て・母子保健（４）"]
["よ","幼稚園の入園等に関すること",null,"子育て・母子保健（４）"]
["よ","予防接種について",null,"健康・保健医療（３）"]
["り","離婚に関すること",null,"家族関係（10）"]
["り","リハビリテーションに関すること",null,"健康・保健医療（３）"]
["ろ","労働保険について",null,"年 金・保 険（８）"]
["ろ","老人クラブについて",null,"健康・保健医療（３）"]

{"sheet":"相談・支援活動","index":4,"n_rows":154,"n_cols":4,"rows_kept":154,"cut":false,"hidden":false,"merged":[[184,1,184,2],[21,0,25,0],[179,1,179,2],[180,1,180,2],[181,1,181,2],[182,1,182,2],[183,1,183,2],[174,1,174,2],[175,1,175,2],[176,1,176,2],[177,1,177,2],[178,1,178,2],[169,1,169,2],[170,1,170,2],[171,1,171,2],[172,1,172,2],[173,1,173,2],[164,1,164,2],[165,1,165,2],[166,1,166,2],[167,1,167,2],[168,1,168,2],[159,1,159,2],[160,1,160,2],[161,1,161,2],[162,1,162,2],[163,1,163,2],[154,1,154,2],[155,1,155,2],[156,1,156,2],[157,1,157,2],[158,1,158,2],[149,1,149,2],[150,1,150,2],[151,1,151,2],[152,1,152,2],[153,1,153,2],[144,1,144,2],[145,1,145,2],[146,1,146,2],[147,1,147,2],[148,1,148,2],[139,1,139,2],[140,1,140,2],[141,1,141,2],[142,1,142,2],[143,1,143,2],[134,1,134,2],[135,1,135,2],[136,1,136,2],[137,1,137,2],[138,1,138,2],[129,1,129,2],[130,1,130,2],[131,1,131,2],[132,1,132,2],[133,1,133,2],[124,1,124,2],[125,1,125,2],[126,1,126,2],[127,1,127,2],[128,1,128,2],[119,1,119,2],[120,1,120,2],[121,1,121,2],[122,1,122,2],[123,1,123,2],[114,1,114,2],[115,1,115,2],[116,1,116,2],[117,1,117,2],[118,1,118,2],[109,1,109,2],[110,1,110,2],[111,1,111,2],[112,1,112,2],[113,1,113,2],[104,1,104,2],[105,1,105,2],[106,1,106,2],[107,1,107,2],[108,1,108,2],[99,1,99,2],[100,1,100,2],[101,1,101,2],[102,1,102,2],[103,1,103,2],[94,1,94,2],[95,1,95,2],[96,1,96,2],[97,1,97,2],[98,1,98,2],[89,1,89,2],[90,1,90,2],[91,1,91,2],[92,1,92,2],[93,1,93,2],[84,1,84,2],[85,1,85,2],[86,1,86,2],[87,1,87,2],[88,1,88,2],[79,1,79,2],[80,1,80,2],[81,1,81,2],[82,1,82,2],[83,1,83,2],[74,1,74,2],[75,1,75,2],[76,1,76,2],[77,1,77,2],[78,1,78,2],[69,1,69,2],[70,1,70,2],[71,1,71,2],[72,1,72,2],[73,1,73,2],[64,1,64,2],[65,1,65,2],[66,1,66,2],[67,1,67,2],[68,1,68,2],[59,1,59,2],[60,1,60,2],[61,1,61,2],[62,1,62,2],[63,1,63,2],[54,1,54,2],[55,1,55,2],[56,1,56,2],[57,1,57,2],[58,1,58,2],[49,1,49,2],[50,1,50,2],[51,1,51,2],[52,1,52,2],[53,1,53,2],[44,1,44,2],[45,1,45,2],[46,1,46,2],[47,1,47,2],[48,1,48,2],[39,1,39,2],[40,1,40,2],[41,1,41,2],[42,1,42,2],[43,1,43,2],[22,3,25,3],[2,1,3,3],[5,0,19,0],[28,1,28,2],[34,1,34,2],[35,1,35,2],[36,1,36,2],[37,1,37,2],[38,1,38,2],[29,1,29,2],[30,1,30,2],[31,1,31,2],[32,1,32,2],[33,1,33,2]]}
[null,"別表（相談・支援活動区分）　　　　　　　　　　　　　　　　　　　　　　　　　　　　　　　　　※｢相談｣だけでなく､｢支援｣内容も含む。"]
[]
[null,"留意点　相談・支援活動については、同一時点、同一の個人や世帯で相談や支援の内容が複数になる場合は、\n　　　　それぞれの区分を確認し、各該当欄にもれなく記入すること。"]
[]
[]
["内容別 相談･支援活動","区　　分","説　　明","具体的な内容（例示）"]
[null,"在　宅　福　祉　　　　（１）","　在宅で生活するうえでの福祉的な支援に関すること（子ども、障害児等を含む。ただし、介護保険に関することは「介護保険（２）」に計上）\n・介護・介助に関すること\n・各種在宅福祉サービスの利用\n　（障害（児）者に対する各種サービス､食事･\n　　入浴･移送等のサービス）\n・日常生活自立支援事業等の利用\n・社会福祉施設への入所等（介護保険施設を除く）\n・補装具、日常生活用具の給付・貸与\n・住宅改造\n・障害者手帳の交付等\n（注）障害者の日常生活および社会生活を総合的に支援する\n      ための法律に関することは､この区分に計上\n（注）高齢者住宅整備資金貸付の利用による住宅の増改築・\n      改造に関することは「生活費（７）」に計上","◯親の認知症の悩みについて話しあう仲間が欲しいと聞き、家族会を紹介した。\n◯障害のある子ども（成人）の日中の活動のための福祉サービス利用について相談を受け　\n　た。\n◯配食サービスを利用したいと相談を受けた。\n◯障害者の外出支援活動をしている団体を尋ねられ、ボランティアグループを紹介した｡\n◯日常生活自立支援事業・成年後見制度の利用や仕組み、契約に関する相談を受けた。\n◯介護保険対象外の補装具や自宅の改修の相談を受け、自治体独自の補助制度を紹介した。\n（注）これらの内容について相談にのったり、情報提供や調整等をした場合のみ該当。委員自身が\n　　　ボランティア活動等に参加する場合は「その他の活動件数」の「地域福祉活動・自主活動\n　　　（３）」に計上。"]
[null,"介　護　保　険　　　（２）","　介護保険サービスの利用等に関すること\n・居宅サービス、施設サービス、介護予防サービス、\n  地域支援事業等\n・要介護認定、保険料、利用料等","◯介護の負担について相談され、利用できる介護保険サービス等について説明した。\n◯玄関や廊下への手すり設置の相談を受け、介護保険制度が利用できることを説明した。\n◯介護保険申請をしたいと相談され、かかりつけ医・地域包括支援センターにつなげた。　      　　　　　　　　　　　　　　　　　　　　　　　　　　"]
[null,"健康・保健医療　　　　（３）","　医療、健康増進や医療制度に関すること\n・心身上の疾病・障害の予防及び治療、医療費、\n  精神保健、生活習慣病予防、リハビリテーション\n・健康増進（健康・食生活相談、健康教育）\n・健康保険、国民健康保険、高齢者医療制度等\n（注）介護保険に関することは「介護保険（２）」に計上\n（注）母子保健に関することは「子育て・保健（４）」に計上","◯親が認知症でないか心配だと相談を受け、医療機関の受診を勧めた。\n◯ひとり暮らしの男性から、健康管理を反省し食生活を改善したいと相談された。\n◯国民健康保険に未加入なので先行き心配であるとの相談を受けた。"]
[null,"子育て・母子保健　　　（４）","　子育て､児童福祉､母子保健に関すること\n・認定こども園や保育所、幼稚園、児童養護施設等の\n  利用\n・障害児福祉サービスの利用\n・育児不安、児童虐待等\n・妊娠や出産等母子保健に関すること","◯月々の延長保育料が高い、よいサービスがないだろうかと相談を受けた。\n◯子どもが発達障害なのではないかと心配だと相談を受けた。\n◯子どもの療育について相談を受け、児童発達支援事業所を紹介した。\n◯新生児を抱えて不安である、子育てサロンに参加したいと相談を受けた。"]
[null,"子どもの地域生活　　　（５）","　子どもの地域での生活に関すること\n・子ども会や自治会行事への参加\n・遊び場や通学通園路（登下校）等\n（注）子ども教育に関すること、学校に関することは「子ど\n      もの教育・学校生活（６）」に計上\n（注）家庭での子どもの生活に関することは「子育て・母子\n      保健（４）」に計上","◯近隣に子どもがおらず遊び相手がいないと相談を受け、子ども会活動を紹介した。\n◯最近、平日の日中の公園にずっといる学齢期の子どもを見かけると相談を受けた。\n◯最近、登下校の際に不審者を見かけるので不安だとの相談を受けた。\n（注）家庭・学校以外の子どもの生活に関することを計上"]
[null,"子どもの教育・学校生活（６）","　子どもの教育や学校教育に関すること\n・子どもの教育に関すること\n・学校教育、進学に関すること\n・不登校やいじめの問題等学校生活に関すること等\n（注）家庭での子どもの生活に関することは「子育て・\n       母子保健（４）」に計上","◯学校の授業についていけないと相談してきた子どもの話を聞いた。\n◯進学先を特別支援学校にするかどうか悩んでいると相談を受けた。\n◯学校で子どもがいじめられていることについて相談を受けた。"]
[null,"生 　 活　  費　　　　　（７）","　生活費に関すること\n・生活保護の申請・受給、生活困窮者自立支援制度の\n  利用\n・生活に必要な経費・貸付金・借入金（消費者金融､\n  クレジットローン､税金等）\n・生活援助資金（生活福祉資金､母子父子寡婦福祉\n  資金､日本学生支援機構の奨学金及び高齢者住宅\n  整備資金､障害者住宅整備資金等）\n・悪質な訪問販売等","◯生活保護を受けるための必要な条件や手続きについて相談を受けた。\n◯借入金の返済が滞り困っているがどうしたらよいかと相談を受けた。\n◯生活福祉資金の特例貸し付けについて返済が難しいと相談を受けた。\n◯しつこく通ってくる訪問販売員から断わりきれずに高額商品を購入してしまったと相談\n  された。"]
[null,"年 金 ・ 保 険　　　　　（８）","　年金・保険に関すること\n・厚生年金保険、国民年金、労災保険、雇用保険\n・児童、障害者、高齢者等の各種福祉手当等\n・自動車損害賠償責任保険等\n（注）健康保険､国民健康保険に関することは「（３）健康・\n      保健医療」に計上","◯国民年金の給付申請について、詳細を知りたいと相談されたので、役場の担当課に\n  つないだ。\n◯児童扶養手当について知りたいと言われ、資料を見せた。\n◯認知症の親が自動車事故を起こしたが、本人への補償は自動車損害賠償責任保険からは\n  十分に受けられないと言われたと相談を受けた。"]
[null,"仕　　　　　事　　　　　（９）","　就職、雇用等の仕事に関すること\n・就職、雇用、失業、出稼ぎ\n・職業指導、職業能力の開発\n・内職\n・仕事に関する資金の借入や機器購入等\n（注）生活福祉資金に関することは「生活費（７）」に計上\n（注）労災保険に関することは「年金・保険（８）」に計上","◯突然の解雇通告で失業したので、今後の就職について相談にのってほしいと言われた。\n◯技術修得のための学校に通うにはどうしたらよいかと尋ねられた。"]
[null,"家　族　関　係　　　　（10）","　家族関係（近隣住民や団体等との関係問題含む）に関すること\n・ 結婚、離婚\n・ 親子関係\n・ 扶養\n・ 家庭不和\n・ 相続\n・ 行方不明\n・ 近隣関係等","◯夫から暴力を受けており、どこに相談したらいいかわからない。\n◯隣家（階上）の騒音に悩んでおり、一度注意したら嫌がらせを受けなんとかしてもらい\n　たい。\n◯町内会の加入を断ったら、役場の広報等の配布をしてもらえず､必要な情報が得られない。\n◯毎日のように隣家から､誰かが暴力をふるっているような物音が聞こえる。\n（注）隣家との土地･家屋の境界線や所有権に関する問題は「住居（11）」に計上"]
[null,"住　　　　　居　　　（11）","　住まいに関すること\n・入居、立退き、借地、借家、家賃、家屋の補修等\n　宅地等の問題に関すること\n・土地の売買、境界線等\n（注）介護福祉のための住宅改修等については「在宅福\n　　　祉（１）」か「介護保険（２）」に計上","◯借家を明渡す際に修繕費を請求され、どうしたらよいかと相談を受けた。\n◯隣人と土地の境界のことでもめたと相談を受け、専門家を紹介した。"]
[null,"生　活　環　境　　　（12）","　生活環境上の困りごとに関すること\n・危険箇所（防犯、防災対策含む）\n・公害\n・環境衛生等の環境問題に関すること","◯街灯がいくつも切れたままになっており夜道が危険だと相談を受けた。\n◯一人暮らしの高齢者から、自宅や地域での具体的な防災対策についての相談を受けた。\n◯歩道わきの下水溝が詰まっていて雨が降るたび冠水して困ると聞き､役場に連絡した｡\n◯野良猫が増えゴミを漁るので不衛生で困っていると相談を受けた｡\n◯河原にゴミを捨てにくるトラックを時折見かけると連絡が入った。\n◯迷惑電話が頻繁にかかってきて困っていると相談を受けた。\n（注）子どもの遊び場や通学通園路の問題は､「子どもの地域生活（５）」に計上"]
[null,"日常的な支援　　　　（13）","　（１）～（12）のいずれにも該当しない内容のう\nち、他に代替手段がないなどによりやむを得\nず行った日常的な支援に関すること","◯他に代替手段がなく緊急的手段として●●（簡易な日常生活上の支援）を行った。\n　 ●●：通院の付添い、買い物の代行・同行、ゴミ出しの手伝い、玄関前の除雪灰、\n　　　　 登下校の付添い、掃除・片付け、手紙の代筆、書類等の提出代行、役場から\n         通知や案内の代読、説明　等"]
[null,"そ　　の　　他　　　（14）","　（１）～（13）のいずれにも該当しない相談・支\n援について\n（注）判断しがたい場合、無理に内容を特定せず、「そ\n　　　の他（14）」に計上","◯相談を受けたが主訴がよくわからなかった。\n◯民生委員の活動内容について教えてほしいと相談があった。"]
[]
["分野別 相談･支援活動","区　　分","説　　明","具体的な内容（例示）"]
[null,"高齢者に関すること　　（16）","　高齢者に関する相談・支援","｢相談・支援の対象となる人（=支援を必要としている人）の属性｣で分類。｢相談者の属性｣を分類するのではないことに注意。なお、属性が２つ以上の分野に該当する場合（例：高齢者かつ障害者である場合等）は、相談内容がいずれに起因しているかによって分野を特定する。\n　※例１：ある高齢者（車いす利用）から、市営バス用の敬老パスは来年ももらえるのかと\n　　　　　質問を受けた。\n　　　　　⇒内容別（１）－分野別（16）\n　※例２ ：ひとり親家庭の父親から、子どものしつけのことで相談を受けた。\n　　　　　⇒内容別（４）－分野別（18）\n（注）（19）には、たとえば生活困窮者、ひとり親家庭、外国人、DV被害者、ホームレス、\n　　　その他等が含まれるが、（16）～（18）に該当する場合は、その分類（（16）～（18））に\n　　　計上。"]
[null,"障害者に関すること　　（17）","　障害者に関する相談・支援"]
[null,"子どもに関すること　　（18）","　子ども（障害児を含む。）に関する相談・支援"]
[null,"そ　　の　　他　　　　（19）","　（16）～（18）のいずれにも該当しない相談・支援\n（注） 判断しがたい場合は、無理に分野を特定せず､「その他\n　　　（19）」に計上"]
[]
[null,"相談・支援内容区分　早見表"]
[null,"例　　示",null,"区　　分"]
["あ","悪質な訪問販売等の問題",null,"生活費（７）"]
["あ","アルコール依存症の問題",null,"健康・保健医療（３）"]
["い","育児サークルについて",null,"子育て・母子保健（４）"]
["い","育児支援のための福祉サービス等の利用",null,"子育て・母子保健（４）"]
["い","いきいきサロンについて",null,"健康・保健医療（３）"]
["い","いじめの問題",null,"子どもの教育・学校生活（６）"]
["い","遺族年金の受給申請をしたい。",null,"年 金・保 険（８）"]
["い","医療費に関すること",null,"健康・保健医療（３）"]
["う","運転免許について（返納等）",null,"その他（14）"]
["お","横断歩道の設置など",null,"生活環境（12）"]
["お","親子関係について",null,"家族関係（10）"]
["か","介護保険以外の在宅生活のための福祉サービス",null,"在宅福祉（１）"]
["か","介護保険に関すること",null,"介護保険（２）"]
["か","街灯が切れている",null,"生活環境（12）"]
["か","買い物の同行、代行",null,"日常的な支援（13）"]
["か","家屋の補修について",null,"住居（11）"]
["か","家族・親族内での問題",null,"家族関係（10）"]
["か","学校教育に関すること",null,"子どもの教育・学校生活（６）"]
["か","学校生活に関すること",null,"子どもの教育・学校生活（６）"]
["か","家庭内暴力（DV含む）",null,"家族関係（10）"]
["か","家庭不和",null,"家族関係（10）"]
["か","環境衛生等の環境問題に関すること",null,"生活環境（12）"]
["き","（地域の）危険個所について",null,"生活環境（12）"]
["き","寄付をしたい",null,"その他（14）"]
["き","給料の未払いについて",null,"仕事（９）"]
["き","（住居の）境界線に関する問題",null,"住居（11）"]
["き","共同募金への協力について",null,"その他（14）"]
["き","近隣住民との関係等",null,"家族関係（10）"]
["け","結婚について",null,"家族関係（10）"]
["け","健康について（健康不安・食生活の相談等）",null,"健康・保健医療（３）"]
["け","健康保険に関すること",null,"健康・保健医療（３）"]
["こ","公園の遊具等の問題",null,"子どもの地域生活（５）"]
["こ","厚生年金（保険）に関すること",null,"年 金・保 険（８）"]
["こ","高齢者医療制度に関すること",null,"健康・保健医療（３）"]
["こ","国民健康保険に関すること",null,"健康・保健医療（３）"]
["こ","国民年金に関すること",null,"年 金・保 険（８）"]
["こ","（地域の）子育てサークル等の情報",null,"子育て・母子保健（４）"]
["こ","子育ての問題について",null,"子育て・母子保健（４）"]
["こ","子育てサロンについて",null,"子育て・母子保健（４）"]
["こ","子ども会について",null,"子どもの地域生活（５）"]
["こ","子ども食堂について",null,"子育て・母子保健（４）"]
["こ","子どもの遊び場に関すること",null,"子どもの地域生活（５）"]
["こ","子どもの教育・学校に関すること",null,"子どもの教育・学校生活（６）"]
["こ","子どもを預かってくれる場所を探している",null,"子育て・母子保健（４）"]
["こ","ゴミ置き場に関すること",null,"生活環境（12）"]
["こ","ゴミ出しの代行",null,"日常的な支援（13）"]
["こ","雇用保険に関すること",null,"年 金・保 険（８）"]
["こ","雇用に関すること",null,"仕事（９）"]
["こ","孤立に関すること",null,"家族関係（10）"]
["さ","災害時の支援等について",null,"その他（14）"]
["さ","在宅福祉サービスについて",null,"在宅福祉（１）"]
["さ","里親制度について",null,"子育て・母子保健（４）"]
["し","施設入所に関する相談（介護保険を除く）",null,"在宅福祉（１）"]
["し","失業について",null,"仕事（９）"]
["し","しつけに関すること",null,"子育て・母子保健（４）"]
["し","児童虐待について（住民からの通告、発見を除く）",null,"子育て・母子保健（４）"]
["し","自動車損害賠償責任保険について",null,"年 金・保 険（８）"]
["し","児童手当について",null,"年 金・保 険（８）"]
["し","児童扶養手当について",null,"年 金・保 険（８）"]
["し","借地、借家に関すること",null,"住居（11）"]
["し","借金に関する相談（消費者金融など）",null,"生活費（７）"]
["し","就学支援制度に関すること",null,"生活費（７）"]
["し","就職に関すること",null,"仕事（９）"]
["し","出産について（支援制度等）",null,"子育て・母子保健（４）"]
["し","障害（児）者に対する支援について",null,"在宅福祉（１）"]
["し","障害者手帳の交付に関すること",null,"在宅福祉（１）"]
["し","食生活に関する相談",null,"健康・保健医療（３）"]
["し","除雪への協力",null,"日常的な支援（13）"]
["し","職業指導、職業能力の開発",null,"仕事（９）"]
["し","書類等の代読、説明",null,"日常的な支援（13）"]
["し","書類等の提出代行（行政への提出）",null,"日常的な支援（13）"]
["し","進学の問題について",null,"子どもの教育・学校生活（６）"]
["し","心身上の疾病・障害の予防及び治療",null,"健康・保健医療（３）"]
["せ","生活困窮者の自立支援制度の利用",null,"生活費（７）"]
["せ","生活習慣病予防",null,"健康・保健医療（３）"]
["せ","生活福祉資金に関すること",null,"生活費（７）"]
["せ","生活保護の申請・受給について",null,"生活費（７）"]
["せ","精神保健に関すること",null,"健康・保健医療（３）"]
["せ","成年後見人制度に関すること",null,"在宅福祉（１）"]
["そ","騒音（近隣住民）",null,"家族関係（10）"]
["そ","騒音（近隣住民以外）",null,"生活環境（12）"]
["そ","掃除の代行",null,"日常的な支援（13）"]
["そ","相続の問題について",null,"家族関係（10）"]
["た","（住居の）立ち退き",null,"住居（11）"]
["た","たばこをやめたい、やめさせたい",null,"健康・保健医療（３）"]
["ち","（地域の）治安に関する心配",null,"生活環境（12）"]
["ち","町内会（自治会）に関すること",null,"家族関係（10）"]
["つ","通院の付き添い",null,"日常的な支援（13）"]
["つ","（子どもの）通学通園路の問題",null,"子どもの地域生活（５）"]
["て","出稼ぎについて",null,"仕事（９）"]
["て","手紙の代筆",null,"日常的な支援（13）"]
["と","土地の売買に関すること",null,"住居（11）"]
["な","内職について",null,"仕事（９）"]
["に","日常生活自立支援事業に関すること",null,"在宅福祉（１）"]
["に","日本学生支援機構の奨学金に関すること",null,"生活費（７）"]
["に","乳幼児健診に関すること",null,"子育て・母子保健（４）"]
["に","妊娠に関すること",null,"子育て・母子保健（４）"]
["に","認知症について（疑いや予防、治療）",null,"健康・保健医療（３）"]
["に","認定こども園について",null,"子育て・母子保健（４）"]
["ね","年金について",null,"年 金・保 険（８）"]
["の","野良犬、野良猫の問題",null,"生活環境（12）"]
["は","徘徊（認知症など）",null,"家族関係（10）"]
["は","派遣労働に関する問題（雇い止めなど）",null,"仕事（９）"]
["は","母親学級について",null,"子育て・母子保健（４）"]
["ひ","ひきこもりについて",null,"家族関係（10）"]
["ふ","福祉手当（児童、障害者、高齢者等）",null,"年 金・保 険（８）"]
["ふ","（子どもの）不登校について",null,"子どもの教育・学校生活（６）"]
["ふ","扶養に関すること",null,"家族関係（10）"]
["へ","ペットの飼育について",null,"その他（14）"]
["へ","ペットの糞尿の問題（迷惑している）",null,"生活環境（12）"]
["ほ","保険所の入所等に関すること",null,"子育て・母子保健（４）"]
["ほ","保険学級について",null,"子育て・母子保健（４）"]
["ほ","母子・父子・寡婦福祉資金に関すること",null,"生活費（７）"]
["ほ","補装具・日常生活用具の給付・貸与について（介護保険以外）",null,"在宅福祉（１）"]
["ほ","ボランティア活動への参加について",null,"その他（14）"]
["や","家賃に関すること",null,"住居（11）"]
["ゆ","（認知症高齢者等の）行方不明",null,"家族関係（10）"]
["よ","要介護認定について",null,"介護保険（２）"]
["よ","養子縁組について",null,"子育て・母子保健（４）"]
["よ","幼稚園の入園等に関すること",null,"子育て・母子保健（４）"]
["よ","予防接種について",null,"健康・保健医療（３）"]
["り","離婚に関すること",null,"家族関係（10）"]
["り","リハビリテーションに関すること",null,"健康・保健医療（３）"]
["ろ","労働保険について",null,"年 金・保 険（８）"]
["ろ","老人クラブについて",null,"健康・保健医療（３）"]

{"sheet":"その他活動","index":5,"n_rows":15,"n_cols":4,"rows_kept":15,"cut":false,"hidden":false,"merged":[[9,0,14,0],[7,0,8,0],[2,1,3,3],[5,1,5,3]]}
[null,"活動回数等区分表"]
[]
[null,"活動回数等区分表の使い方\n① 活動内容に応じて『相談・支援活動』または『その他の活動』を選択して、『相談・支援活動』の場合は別表（相\n談・支援活動区分）をもとに該当する区分番号を記入、『その他の活動』の場合は件数を計上する。\n②活動内容に応じて『訪問回数』『連絡調整回数』で該当する区分に件数を計上する。\n③『活動日数』の欄に“〇”を記入する。"]
[]
[null,"※表中の民生委員・児童委員、主任児童委員は「委員」と記載する。"]
[null,"※表中の社会福祉施設、市町村行政、福祉事務所、児童相談所、婦人相談所、学校、教育委員会、社協等の関係機関・\n　団体は「関係機関」と記載する。"]
[]
["相談・支援活動","区　　分","説　　明","具体的内容（例示）"]
[null,"相談・支援 　　　　　　　　　　　　　　　　　　　　　　　　　　　　　　　　　　　　　　　　　　　　　　　　　　　　　　　　　　　　　　　　　　　　　　　　　↓　　　　　　　　　　　　　　　　　　　　　　　　　　　　　　　　　　　　　　　　　　　　　　　　　　　　　　　　　　　　　　　　　　　　　　　　　　　　　　　＊この区分に該当する場合は､｢分類表２｣からさらに､内容･分野を区分します　　　　　　　　　　　　　　　　　　　　　　　　　　　　　　　　　　　　　　　　　　　　　　　　　　　　　　　　　　　　　　　　　　　　　　　　　　　　　　　　　　　　　　　　　　　　　　　　　　　　　　　　　　　　　　　　　　　","　さまざまな相談を受けたり解決に向けて支援した活動、生活支援のための活動\n・必要な情報の提供\n・福祉サービスの利用支援\n・福祉サービスに関する苦情解決の支援\n・見守り支援\n・その他日常生活に関する支援等\n（注）直接相談を受けた場合だけでなく､関係機関からの相談や支援に\n　　　ついての調整・協議を行った件数も計上","　⇒　別表（相談・支援活動区分）を参照　　　　　　　　　　　　　　　　　　　　　　　　　　　　　　　　　　　　　　　　　　　　　　　　　　　　　　　　　　　　　　　　　　　　　　　　　　　　　　　　　　　　　　　　　　　　　　　　　　　　　　　　　　　　　　　　　　　　　　　　　　　　　　　　　　　　　　　　　　　　　　　　　　　　　　　　　　　　　　　　　　　　　　　　　　　　　　　　　　　　　　　　　　　　　　　　　　　　　　　　　　　　　　　　"]
["その他の活動","調査・実態把握　　　　　（１）","　委員、民児協、関係機関が情報を得るために行った調査・実態把握に関する活動\n・委員による世帯の支援に必要な情報の収集や状況把握\n・民児協独自の調査\n・関係機関からの依頼により行った調査\n（注）証明事務に関する事実確認・調査は「証明（調査・確認等）\n　　　事務（５）」に計上","【委員による情報の収集や状況把握】\n◯転入してきた世帯の福祉票や世帯票を作成した。\n【民児協独自の調査】\n◯住民の意識調査を行った。\n◯地域の遊び場の実態を把握した。\n◯地域の高齢者宅を訪問して、災害時の避難支援者の有無等を確認した。\n【関係機関からの依頼により行った調査】\n◯社協からの依頼で調査票を配布した（又は回収した）。\n◯行政からの依頼でマンション管理人に世帯の状況を聞いた。"]
[null,"行事・事業・会議　への参加・協力　　　　　　（２）","　関係機関からの要請により行事、事業、会議に委員として出席、参加、協力した活動\n（注）１つの行事・事業・会議につき１件。１日複数の行事等に\n　　　参加・協力した場合は、その延件数を計上\n（注）民児協が共催、共同実施している場合は、「地域福祉活動・\n　　　自主活動（３）」に計上","◯生活困窮者自立支援事業の支援調整会議に出席した。\n◯要保護児童対策地域協議会に出席した。\n◯入学式や運動会に出席した。\n◯共同募金活動に協力した。\n◯敬老パスの申請書を配付した。\n◯担当区域内の見守り世帯の葬儀に参列した。\n◯他機関の理事会や評議員会に出席した。"]
[null,"地域福祉活動・自主活動　　　（３）","　委員や民児協が行った地域福祉活動\n・委員が行った自主活動\n・民児協の活動\n・関係機関との協働活動","【委員が行った自主活動】\n◯委員が担当地区の関係者、団体に呼びかけて地域の課題について話しあった。\n◯委員活動に役立つ研修会に自主的に参加した。\n【民児協の活動】\n◯子育てサロンのチラシを作成した。\n◯市民向けの啓発ポスターを作成した。\n【関係機関との協働活動】\n◯社協と協働してひきこもり理解の啓発広報を行った。"]
[null,"民児協運営・研修　　　　　（４）","　委員が民児協の会議や研修等に参加および企画参画\n・民児協の定例会、部会・委員会、研修会等への参加\n・民児協の定例会、部会・委員会、研修会等の企画実施への\n　参画\n（注）関係機関が委員を対象に開催する研修会への参加も計上","【会議等への参加】\n◯民児協の定例会に参加した。\n◯参加対象が委員に限定して企画された民児協や行政主催の研修会に参加した。\n【事業運営への参画】\n◯民児協部会の企画・運営を行った。\n◯定例会のために資料を作成した。\n◯集計報告書を提出するため、活動記録を整理・点検した。\n◯地域のイベントで委員のPR 活動を行った。"]
[null,"証 明（調査・確認等）事 務　　　　　（５）","　委員が依頼を受けて証明事務を行った活動\n・本人から協力を求められた場合に行った証明、調査、事実\n　確認等\n・関係機関から協力を求められた場合に行った証明、調査、\n　事実確認等\n（注）証明書、調査書の発行有無にかかわらず計上","【住民の求めに基づく証明・調査事務】\n◯民間保険申請の際、本人の申立て内容を確認して書類の作成支援をした。\n【行政手続きの協力事務】\n◯就学困難証明・生活困窮証明書類に把握事項を記入した。\n◯就学支援金制度の申請に伴う当該世帯の状況確認の要請に協力した。"]
[null,"要保護児童の発見                   の通告・仲介　　　　　　（６）","　委員が要保護児童を発見した時に対応した活動\n・自ら要保護児童を発見して通告\n・要保護児童発見者からの依頼による関係機関への通告\n（注）関係機関から連絡を受けた場合は、内容によって「相談・\n　　　支援」、「調査・実態把握（１）」に計上","【委員による発見・通告】\n◯子どもから虐待を受けているとの告白を受け、児童相談所に通告した。\n【仲介による通告】\n◯住民から虐待の疑いのある家庭の通報があり、児童相談所等に連絡した。"]

{"sheet":"訪問回数","index":6,"n_rows":5,"n_cols":4,"rows_kept":5,"cut":false,"hidden":false,"merged":[[2,0,4,0]]}
[null,"活動回数等区分表"]
[]
["訪問回数","区　　分","説　　明","具体的な内容（例示）"]
[null,"訪問・連絡活動　　　　　（７）","　見守り、声かけなどを目的として委員が地域の人に行った活動の回数\n・訪問活動\n・連絡活動\n（注）要保護児童等に対するものを含む\n（注）電話や電子メールによるものを含む","【訪問活動】\n◯一人暮らし高齢者の自宅を訪問して、様子を確認した。\n◯郵便物がたまっているのを発見し、安否を確認した。\n◯訪問の移動中や外出先で見守り世帯の家族に偶然出会い状況を\n  尋ねた。\n【連絡活動】\n◯一人暮らしでひきこもりがちな高齢者の自宅に電話連絡をして、\n  様子を確認した。\n（注）訪問先は自宅に限らない\n（注）友愛訪問･安否確認のための訪問を含む"]
[null,"その他　　　　　　　　　（８）","　（７）以外で委員が地域の人に行った活動の回数\n・訪問活動\n・連絡活動","【訪問活動】\n◯自宅を訪問したが、不在だった。\n◯関係機関から依頼されて、調査票をもって訪問した。\n◯相手から相談依頼があって、訪問した。\n【連絡活動】\n◯配布した調査票の不備を指摘された。\n◯地域の人から情報提供を受けた。\n◯退院の報告を受けた。"]

{"sheet":"連絡調整回数","index":7,"n_rows":42,"n_cols":4,"rows_kept":42,"cut":false,"hidden":false,"merged":[[37,1,37,3],[38,1,38,3],[39,1,39,3],[40,1,40,3],[2,0,4,0],[24,1,24,3],[25,1,25,3],[28,1,28,3],[6,1,6,2],[33,1,33,2],[20,1,20,3],[15,1,15,3]]}
[null,"活動回数等区分表"]
[]
["連絡調整回数","区　　分","説　　明","具体的な内容（例示）"]
[null,"委員相互　　　　　　　（９）","　他の委員と連絡調整した回数","◯会議の時間を変更する連絡をした。\n◯会議の時間を変更する連絡を受けた。\n◯対応しているケースの支援方法を相談した。\n◯委員と会議の打ち合わせをした。　　　　　　　　　　　　　　　　　　　　　　　　　　　　　　　　　　　　　　　　"]
[null,"その他の関係機関　　　（10）","　関係機関と連絡調整した回数","◯民児協事務局と会議の打ち合わせをした。\n◯行事の連絡を受けて対応した。\n◯意見具申書を提出した。\n◯地域の人に委員としてかかわっている行事を案内\n　した。\n◯関係機関に必要な手続きを確認した。\n◯関係機関から情報提供を受けた。"]
[]
[null,"「連絡調整回数」欄について"]
[null,"民生委員・児童委員が委員同士で、または関係機関（の職員）と「連絡調整した」場合（「連絡調整を受けた」場合も）、活動記録の活動内容区分"]
[null,"「連絡調整回数」欄に記入します。"]
[null,"ただし、７項「『訪問回数』欄について－②記入欄『その他（8）』に該当するもの」にある「住民から民生委員・児童委員に対して、または民生委員・児童委員から"]
[null,"住民に対して行う事務的な連絡の場合」は、「連絡調整回数」欄に記入しません。"]
[null,"「連絡調整回数」の記入欄は「委員相互（9）」と「その他の関係機関（10）」の2つがあり、以下にいくつか例示します。"]
[]
[null,"①記入欄　「委員相互（９）」に該当するもの"]
[null,"≪民生委員・児童委員同士の連絡調整≫"]
[null,"●他の委員と連絡調整を「した」場合（「受けた」場合）"]
[null,"　　※電話での連絡、訪問しての連絡、通知を郵送しての連絡、電子メールやファクシミリを利用しての連絡、委員同士での相談やアドバイス、これらすべてが"]
[null,"　　　含まれます。（以下同じ）"]
[null,"②記入欄　「その他の関係機関（10）」に該当するもの"]
[null,"≪住民との連絡調整≫"]
[null,"●民生委員・児童委員が委員活動の一環として参加している地域事業の日程や開催場所の変更、出欠席等の連絡調整を「した」場合「受けた」場合）"]
[null,"　　※行事や会議、活動に参画している集団（＝関係機関）からの連絡と捉えます。"]
[]
[null,"≪住民からの連絡による関係機関との連絡調整≫"]
[null,"●住民から相談をもちかけられ、役場の担当課等に連絡等を「した」場合"]
[null,"●住民からの虐待の疑いや事実等に関して電話や直接話を受け、市町村、福祉事務所または児童相談所に連絡を「した」場合"]
[]
[null,"≪関係機関からの連絡調整≫"]
[null,"●児童相談所や福祉事務所等の従事者から、虐待等の事実について報告を受けた場合"]
[null,"　　※報告や連絡を受け児童相談所等と今後の支援について相談をした場合は、「相談・支援件数」として、内容と分野を"]
[null,"　　　　確認し記入したうえで、「連絡調整回数」欄に件数を記入します。"]
[]
[]
[null,"その他：活動記録の記入について"]
[null,"　活動記録の整理・点検は、「その他の活動件数」の「民児協運営・研修（４）」に該当します。"]
[null,"以下に具体的に該当するものを例示します。"]
[]
[null,"●集計報告書を提出するため、活動記録を整理・点検する（集計、集計報告書記入作業含む）"]
[null,"●年間集計表に、当該月の活動件数を記入する"]
[null,"●単位民児協会長として、各委員の集計報告書をもとに全員分の活動件数を集計する"]
[null,"●民児協として必要な住民への支援を検討するため、活動記録の整理・点検をしてみる"]
[null,"　　※毎日もしくは一定期間まとめて活動を記入する場合の記録作業については、活動記録の件数として取り扱う必要はありません。"]

{"sheet":"活動日数","index":8,"n_rows":4,"n_cols":4,"rows_kept":4,"cut":false,"hidden":false,"merged":[[2,0,3,0]]}
[null,"活動回数等区分表"]
[]
["活動日数","区　　分","説　　明","具体的な内容（例示）"]
[null,"活動日数　(11)","　活動を行った実日数","（注）一日に複数の活動を行った場合で\n      も活動日数欄には一つだけ◯を記\n      入。"]

{"sheet":"総合計","index":9,"n_rows":46,"n_cols":66,"rows_kept":46,"cut":false,"hidden":false,"merged":[[1,9,1,10],[1,11,1,17],[2,11,3,17],[4,11,5,17],[42,0,43,1],[26,1,30,1],[32,0,37,1],[10,0,30,0],[10,1,25,1],[39,0,40,1],[7,0,8,17],[10,16,10,17],[0,0,1,1],[10,35,10,36],[26,20,30,20],[45,0,45,2],[10,2,10,3],[2,9,3,10],[4,9,5,10],[32,19,37,20],[39,19,40,20],[42,19,43,20],[45,19,45,21],[10,19,30,19],[10,20,25,20],[10,21,10,22],[32,38,37,39],[39,38,40,39],[42,38,43,39],[45,38,45,40],[9,38,30,38],[9,39,25,39],[9,40,9,41],[26,39,30,39]]}
[2023]
[null,null,"年度",null,null,null,null,null,null,"民生委員番号"]
["民生委員･児童委員  活動記録集計表",null,null,null,null,null,null,null,null,"民児協名",null,null,null,null,null,null,null,null,null,null,null,null,"↑のボタンをクリックすると当該年度のデータを前年度分として下表にコピーすることができます。正常に動作しない場合は"]
[null,null,null,null,null,null,null,null,null,null,null,null,null,null,null,null,null,null,null,null,null,null,"下記の手順で活動件数をコピーしてください。　※年度更新処理を実行すると各月の活動記録がクリアされますのでご注意ください。"]
[null,null,null,null,null,null,null,null,null,"氏　名",null,null,null,null,null,null,null,null,null,null,null,null,"前年度の活動件数を入力、または左表の総合計をコピー＆ペーストしてください。"]
[null,null,null,null,null,null,null,null,null,null,null,null,null,null,null,null,null,null,null,null,null,null,"コピー&ペーストはE12セルをクリックしたままP46セルまで範囲選択をして右クリックしてコピー（C）をクリック"]
[null,null,null,null,null,null,null,null,null,null,null,null,null,null,null,null,null,null,null,null,null,null,"X12を選択して右クリックして、貼り付けのオプション：値（v）をクリックしてください。"]
[" 活動件数 集計報告書　総合計",null,null,null,null,null,null,null,null,null,null,null,null,null,null,null,null,null,"【",{"$f":"A1-1","v":2022},"年度活動件数】",null,"※関数を張り付けてしまうと昨年度分の実績になりません。"]
[]
[null,null,null,null,null,null,null,null,null,null,null,null,null,null,null,null,null,null,null,null,null,null,null,null,null,null,null,null,null,null,null,null,null,null,null,null,null,null,"相談・支援活動","（内容別）",null,null,"4月",null,"5月",null,"6月",null,"7月",null,"8月",null,"9月",null,"10月",null,"11月",null,"12月",null,"1月",null,"2月",null,"3月"]
["相談・支援活動","（内容別）",null,null,"4月","5月","6月","7月","8月","9月","10月","11月","12月","1月","2月","3月","合計件数",null,null,"相談・支援活動","（内容別）",null,null,"4月","5月","6月","7月","8月","9月","10月","11月","12月","1月","2月","3月","合計件数",null,null,null,null,null,null,{"$f":"$T8","v":2022},{"$f":"$A1","v":2023},{"$f":"$T8","v":2022},{"$f":"$A1","v":2023},{"$f":"$T8","v":2022},{"$f":"$A1","v":2023},{"$f":"$T8","v":2022},{"$f":"$A1","v":2023},{"$f":"$T8","v":2022},{"$f":"$A1","v":2023},{"$f":"$T8","v":2022},{"$f":"$A1","v":2023},{"$f":"$T8","v":2022},{"$f":"$A1","v":2023},{"$f":"$T8","v":2022},{"$f":"$A1","v":2023},{"$f":"$T8","v":2022},{"$f":"$A1","v":2023},{"$f":"$T8","v":2022},{"$f":"$A1","v":2023},{"$f":"$T8","v":2022},{"$f":"$A1","v":2023},{"$f":"$T8","v":2022},{"$f":"$A1","v":2023}]
[null,null,"在　宅　福　祉","(1)",{"$f":"'4月'!$AA12","v":0},{"$f":"'5月'!$AA12","v":0},{"$f":"'6月'!$AA12","v":0},{"$f":"'7月'!$AA12","v":0},{"$f":"'8月'!$AA12","v":0},{"$f":"'9月'!$AA12","v":0},{"$f":"'10月'!$AA12","v":0},{"$f":"'11月'!$AA12","v":0},{"$f":"'12月'!$AA12","v":0},{"$f":"'1月'!$AA12","v":0},{"$f":"'2月'!$AA12","v":0},{"$f":"'3月'!$AA12","v":0},{"$f":"SUM(E12:P12)","v":0},"件",null,null,null,"在 宅 福 祉","(1)",0,0,0,0,0,0,0,0,0,0,0,0,{"$f":"SUM(X12:AI12)","v":0},"件",null,null,null,"在 宅 福 祉","(1)",{"$f":"X12","v":0},{"$f":"E12","v":0},{"$f":"Y12","v":0},{"$f":"F12","v":0},{"$f":"Z12","v":0},{"$f":"G12","v":0},{"$f":"AA12","v":0},{"$f":"H12","v":0},{"$f":"AB12","v":0},{"$f":"I12","v":0},{"$f":"AC12","v":0},{"$f":"J12","v":0},{"$f":"AD12","v":0},{"$f":"K12","v":0},{"$f":"AE12","v":0},{"$f":"L12","v":0},{"$f":"AF12","v":0},{"$f":"M12","v":0},{"$f":"AG12","v":0},{"$f":"N12","v":0},{"$f":"AH12","v":0},{"$f":"O12","v":0},{"$f":"AI12","v":0},{"$f":"P12","v":0}]
[null,null,"介　護　保　険","(2)",{"$f":"'4月'!$AA13","v":0},{"$f":"'5月'!$AA13","v":0},{"$f":"'6月'!$AA13","v":0},{"$f":"'7月'!$AA13","v":0},{"$f":"'8月'!$AA13","v":0},{"$f":"'9月'!$AA13","v":0},{"$f":"'10月'!$AA13","v":0},{"$f":"'11月'!$AA13","v":0},{"$f":"'12月'!$AA13","v":0},{"$f":"'1月'!$AA13","v":0},{"$f":"'2月'!$AA13","v":0},{"$f":"'3月'!$AA13","v":0},{"$f":"SUM(E13:P13)","v":0},null,null,null,null,"介　護　保　険","(2)",0,0,0,0,0,0,0,0,0,0,0,0,0,null,null,null,null,"介　護　保　険","(2)",{"$f":"X13","v":0},{"$f":"E13","v":0},{"$f":"Y13","v":0},{"$f":"F13","v":0},{"$f":"Z13","v":0},{"$f":"G13","v":0},{"$f":"AA13","v":0},{"$f":"H13","v":0},{"$f":"AB13","v":0},{"$f":"I13","v":0},{"$f":"AC13","v":0},{"$f":"J13","v":0},{"$f":"AD13","v":0},{"$f":"K13","v":0},{"$f":"AE13","v":0},{"$f":"L13","v":0},{"$f":"AF13","v":0},{"$f":"M13","v":0},{"$f":"AG13","v":0},{"$f":"N13","v":0},{"$f":"AH13","v":0},{"$f":"O13","v":0},{"$f":"AI13","v":0},{"$f":"P13","v":0}]
[null,null,"健康・保健医療","(3)",{"$f":"'4月'!$AA14","v":0},{"$f":"'5月'!$AA14","v":0},{"$f":"'6月'!$AA14","v":0},{"$f":"'7月'!$AA14","v":0},{"$f":"'8月'!$AA14","v":0},{"$f":"'9月'!$AA14","v":0},{"$f":"'10月'!$AA14","v":0},{"$f":"'11月'!$AA14","v":0},{"$f":"'12月'!$AA14","v":0},{"$f":"'1月'!$AA14","v":0},{"$f":"'2月'!$AA14","v":0},{"$f":"'3月'!$AA14","v":0},{"$f":"SUM(E14:P14)","v":0},null,null,null,null,"健康・保健医療","(3)",0,0,0,0,0,0,0,0,0,0,0,0,0,null,null,null,null,"健康・保健医療","(3)",0,0,0,0,0,0,0,0,0,0,0,0,0,0,0,0,0,0,0,0,0,0,0,0]
[null,null,"子育て・母子保健","(4)",{"$f":"'4月'!$AA15","v":0},{"$f":"'5月'!$AA15","v":0},{"$f":"'6月'!$AA15","v":0},{"$f":"'7月'!$AA15","v":0},{"$f":"'8月'!$AA15","v":0},{"$f":"'9月'!$AA15","v":0},{"$f":"'10月'!$AA15","v":0},{"$f":"'11月'!$AA15","v":0},{"$f":"'12月'!$AA15","v":0},{"$f":"'1月'!$AA15","v":0},{"$f":"'2月'!$AA15","v":0},{"$f":"'3月'!$AA15","v":0},0,null,null,null,null,"子育て・母子保健","(4)",0,0,0,0,0,0,0,0,0,0,0,0,0,null,null,null,null,"子育て・母子保健","(4)",0,0,0,0,0,0,0,0,0,0,0,0,0,0,0,0,0,0,0,0,0,0,0,0]
[null,null,"子どもの地域生活","(5)",{"$f":"'4月'!$AA16","v":0},{"$f":"'5月'!$AA16","v":0},{"$f":"'6月'!$AA16","v":0},{"$f":"'7月'!$AA16","v":0},{"$f":"'8月'!$AA16","v":0},{"$f":"'9月'!$AA16","v":0},{"$f":"'10月'!$AA16","v":0},{"$f":"'11月'!$AA16","v":0},{"$f":"'12月'!$AA16","v":0},{"$f":"'1月'!$AA16","v":0},{"$f":"'2月'!$AA16","v":0},{"$f":"'3月'!$AA16","v":0},0,null,null,null,null,"子どもの地域生活","(5)",0,0,0,0,0,0,0,0,0,0,0,0,0,null,null,null,null,"子どもの地域生活","(5)",0,0,0,0,0,0,0,0,0,0,0,0,0,0,0,0,0,0,0,0,0,0,0,0]
[null,null,"子どもの教育･学校生活","(6)",{"$f":"'4月'!$AA17","v":0},{"$f":"'5月'!$AA17","v":0},{"$f":"'6月'!$AA17","v":0},{"$f":"'7月'!$AA17","v":0},{"$f":"'8月'!$AA17","v":0},{"$f":"'9月'!$AA17","v":0},{"$f":"'10月'!$AA17","v":0},{"$f":"'11月'!$AA17","v":0},{"$f":"'12月'!$AA17","v":0},{"$f":"'1月'!$AA17","v":0},{"$f":"'2月'!$AA17","v":0},{"$f":"'3月'!$AA17","v":0},0,null,null,null,null,"子どもの教育･学校生活","(6)",0,0,0,0,0,0,0,0,0,0,0,0,0,null,null,null,null,"子どもの教育･学校生活","(6)",0,0,0,0,0,0,0,0,0,0,0,0,0,0,0,0,0,0,0,0,0,0,0,0]
[null,null,"生　　活　　費","(7)",{"$f":"'4月'!$AA18","v":0},{"$f":"'5月'!$AA18","v":0},{"$f":"'6月'!$AA18","v":0},{"$f":"'7月'!$AA18","v":0},{"$f":"'8月'!$AA18","v":0},{"$f":"'9月'!$AA18","v":0},{"$f":"'10月'!$AA18","v":0},{"$f":"'11月'!$AA18","v":0},{"$f":"'12月'!$AA18","v":0},{"$f":"'1月'!$AA18","v":0},{"$f":"'2月'!$AA18","v":0},{"$f":"'3月'!$AA18","v":0},0,null,null,null,null,"生　　活　　費","(7)",0,0,0,0,0,0,0,0,0,0,0,0,0,null,null,null,null,"生　　活　　費","(7)",0,0,0,0,0,0,0,0,0,0,0,0,0,0,0,0,0,0,0,0,0,0,0,0]
[null,null,"年　金・保　険","(8)",{"$f":"'4月'!$AA19","v":0},{"$f":"'5月'!$AA19","v":0},{"$f":"'6月'!$AA19","v":0},{"$f":"'7月'!$AA19","v":0},{"$f":"'8月'!$AA19","v":0},{"$f":"'9月'!$AA19","v":0},{"$f":"'10月'!$AA19","v":0},{"$f":"'11月'!$AA19","v":0},{"$f":"'12月'!$AA19","v":0},{"$f":"'1月'!$AA19","v":0},{"$f":"'2月'!$AA19","v":0},{"$f":"'3月'!$AA19","v":0},0,null,null,null,null,"年　金・保　険","(8)",0,0,0,0,0,0,0,0,0,0,0,0,0,null,null,null,null,"年　金・保　険","(8)",0,0,0,0,0,0,0,0,0,0,0,0,0,0,0,0,0,0,0,0,0,0,0,0]
[null,null,"仕　　　　　事","(9)",{"$f":"'4月'!$AA20","v":0},{"$f":"'5月'!$AA20","v":0},{"$f":"'6月'!$AA20","v":0},{"$f":"'7月'!$AA20","v":0},{"$f":"'8月'!$AA20","v":0},{"$f":"'9月'!$AA20","v":0},{"$f":"'10月'!$AA20","v":0},{"$f":"'11月'!$AA20","v":0},{"$f":"'12月'!$AA20","v":0},{"$f":"'1月'!$AA20","v":0},{"$f":"'2月'!$AA20","v":0},{"$f":"'3月'!$AA20","v":0},0,null,null,null,null,"仕　　　　　事","(9)",0,0,0,0,0,0,0,0,0,0,0,0,0,null,null,null,null,"仕　　　　　事","(9)",0,0,0,0,0,0,0,0,0,0,0,0,0,0,0,0,0,0,0,0,0,0,0,0]
[null,null,"家　族　関　係","(10)",{"$f":"'4月'!$AA21","v":0},{"$f":"'5月'!$AA21","v":0},{"$f":"'6月'!$AA21","v":0},{"$f":"'7月'!$AA21","v":0},{"$f":"'8月'!$AA21","v":0},{"$f":"'9月'!$AA21","v":0},{"$f":"'10月'!$AA21","v":0},{"$f":"'11月'!$AA21","v":0},{"$f":"'12月'!$AA21","v":0},{"$f":"'1月'!$AA21","v":0},{"$f":"'2月'!$AA21","v":0},{"$f":"'3月'!$AA21","v":0},0,null,null,null,null,"家　族　関　係","(10)",0,0,0,0,0,0,0,0,0,0,0,0,0,null,null,null,null,"家　族　関　係","(10)",0,0,0,0,0,0,0,0,0,0,0,0,0,0,0,0,0,0,0,0,0,0,0,0]
[null,null,"住　　　　　居","(11)",{"$f":"'4月'!$AA22","v":0},{"$f":"'5月'!$AA22","v":0},{"$f":"'6月'!$AA22","v":0},{"$f":"'7月'!$AA22","v":0},{"$f":"'8月'!$AA22","v":0},{"$f":"'9月'!$AA22","v":0},{"$f":"'10月'!$AA22","v":0},{"$f":"'11月'!$AA22","v":0},{"$f":"'12月'!$AA22","v":0},{"$f":"'1月'!$AA22","v":0},{"$f":"'2月'!$AA22","v":0},{"$f":"'3月'!$AA22","v":0},0,null,null,null,null,"住　　　　　居","(11)",0,0,0,0,0,0,0,0,0,0,0,0,0,null,null,null,null,"住　　　　　居","(11)",0,0,0,0,0,0,0,0,0,0,0,0,0,0,0,0,0,0,0,0,0,0,0,0]
[null,null,"生　活　環　境","(12)",{"$f":"'4月'!$AA23","v":0},{"$f":"'5月'!$AA23","v":0},{"$f":"'6月'!$AA23","v":0},{"$f":"'7月'!$AA23","v":0},{"$f":"'8月'!$AA23","v":0},{"$f":"'9月'!$AA23","v":0},{"$f":"'10月'!$AA23","v":0},{"$f":"'11月'!$AA23","v":0},{"$f":"'12月'!$AA23","v":0},{"$f":"'1月'!$AA23","v":0},{"$f":"'2月'!$AA23","v":0},{"$f":"'3月'!$AA23","v":0},0,null,null,null,null,"生　活　環　境","(12)",0,0,0,0,0,0,0,0,0,0,0,0,0,null,null,null,null,"生　活　環　境","(12)",0,0,0,0,0,0,0,0,0,0,0,0,0,0,0,0,0,0,0,0,0,0,0,0]
[null,null,"日 常 的 な 支 援","(13)",{"$f":"'4月'!$AA24","v":0},{"$f":"'5月'!$AA24","v":0},{"$f":"'6月'!$AA24","v":0},{"$f":"'7月'!$AA24","v":0},{"$f":"'8月'!$AA24","v":0},{"$f":"'9月'!$AA24","v":0},{"$f":"'10月'!$AA24","v":0},{"$f":"'11月'!$AA24","v":0},{"$f":"'12月'!$AA24","v":0},{"$f":"'1月'!$AA24","v":0},{"$f":"'2月'!$AA24","v":0},{"$f":"'3月'!$AA24","v":0},0,null,null,null,null,"日 常 的 な 支 援","(13)",0,0,0,0,0,0,0,0,0,0,0,0,0,null,null,null,null,"日 常 的 な 支 援","(13)",0,0,0,0,0,0,0,0,0,0,0,0,0,0,0,0,0,0,0,0,0,0,0,0]
[null,null,"そ　　の　　他","(14)",{"$f":"'4月'!$AA25","v":0},{"$f":"'5月'!$AA25","v":0},{"$f":"'6月'!$AA25","v":0},{"$f":"'7月'!$AA25","v":0},{"$f":"'8月'!$AA25","v":0},{"$f":"'9月'!$AA25","v":0},{"$f":"'10月'!$AA25","v":0},{"$f":"'11月'!$AA25","v":0},{"$f":"'12月'!$AA25","v":0},{"$f":"'1月'!$AA25","v":0},{"$f":"'2月'!$AA25","v":0},{"$f":"'3月'!$AA25","v":0},0,null,null,null,null,"そ　　の　　他","(14)",0,0,0,0,0,0,0,0,0,0,0,0,0,null,null,null,null,"そ　　の　　他","(14)",0,0,0,0,0,0,0,0,0,0,0,0,0,0,0,0,0,0,0,0,0,0,0,0]
[null,null,"計","(15)",{"$f":"'4月'!$AA26","v":0},{"$f":"'5月'!$AA26","v":0},{"$f":"'6月'!$AA26","v":0},{"$f":"'7月'!$AA26","v":0},{"$f":"'8月'!$AA26","v":0},{"$f":"'9月'!$AA26","v":0},{"$f":"'10月'!$AA26","v":0},{"$f":"'11月'!$AA26","v":0},{"$f":"'12月'!$AA26","v":0},{"$f":"'1月'!$AA26","v":0},{"$f":"'2月'!$AA26","v":0},{"$f":"'3月'!$AA26","v":0},0,null,null,null,null,"計","(15)",0,0,0,0,0,0,0,0,0,0,0,0,0,null,null,null,null,"計","(15)",{"$f":"SUM(AQ12:AQ25)","v":0},{"$f":"SUM(AR12:AR25)","v":0},{"$f":"SUM(AS12:AS25)","v":0},{"$f":"SUM(AT12:AT25)","v":0},0,{"$f":"SUM(AV12:AV25)","v":0},0,{"$f":"SUM(AX12:AX25)","v":0},0,{"$f":"SUM(AZ12:AZ25)","v":0},0,{"$f":"SUM(BB12:BB25)","v":0},0,{"$f":"SUM(BD12:BD25)","v":0},0,{"$f":"SUM(BF12:BF25)","v":0},0,{"$f":"SUM(BH12:BH25)","v":0},0,{"$f":"SUM(BJ12:BJ25)","v":0},0,{"$f":"SUM(BL12:BL25)","v":0},0,{"$f":"SUM(BN12:BN25)","v":0}]
[null,"（分野別）","高齢者に関すること","(16)",{"$f":"'4月'!$AA27","v":0},{"$f":"'5月'!$AA27","v":0},{"$f":"'6月'!$AA27","v":0},{"$f":"'7月'!$AA27","v":0},{"$f":"'8月'!$AA27","v":0},{"$f":"'9月'!$AA27","v":0},{"$f":"'10月'!$AA27","v":0},{"$f":"'11月'!$AA27","v":0},{"$f":"'12月'!$AA27","v":0},{"$f":"'1月'!$AA27","v":0},{"$f":"'2月'!$AA27","v":0},{"$f":"'3月'!$AA27","v":0},0,"件",null,null,"（分野別）","高齢者に関すること","(16)",0,0,0,0,0,0,0,0,0,0,0,0,0,"件",null,null,"（分野別）","高齢者に関すること","(16)",{"$f":"X27","v":0},{"$f":"E27","v":0},{"$f":"Y27","v":0},{"$f":"F27","v":0},{"$f":"Z27","v":0},{"$f":"G27","v":0},{"$f":"AA27","v":0},{"$f":"H27","v":0},{"$f":"AB27","v":0},{"$f":"I27","v":0},{"$f":"AC27","v":0},{"$f":"J27","v":0},{"$f":"AD27","v":0},{"$f":"K27","v":0},{"$f":"AE27","v":0},{"$f":"L27","v":0},{"$f":"AF27","v":0},{"$f":"M27","v":0},{"$f":"AG27","v":0},{"$f":"N27","v":0},{"$f":"AH27","v":0},{"$f":"O27","v":0},{"$f":"AI27","v":0},{"$f":"P27","v":0}]
[null,null,"障害者に関すること","(17)",{"$f":"'4月'!$AA28","v":0},{"$f":"'5月'!$AA28","v":0},{"$f":"'6月'!$AA28","v":0},{"$f":"'7月'!$AA28","v":0},{"$f":"'8月'!$AA28","v":0},{"$f":"'9月'!$AA28","v":0},{"$f":"'10月'!$AA28","v":0},{"$f":"'11月'!$AA28","v":0},{"$f":"'12月'!$AA28","v":0},{"$f":"'1月'!$AA28","v":0},{"$f":"'2月'!$AA28","v":0},{"$f":"'3月'!$AA28","v":0},0,null,null,null,null,"障害者に関すること","(17)",0,0,0,0,0,0,0,0,0,0,0,0,0,null,null,null,null,"障害者に関すること","(17)",{"$f":"X28","v":0},{"$f":"E28","v":0},{"$f":"Y28","v":0},{"$f":"F28","v":0},{"$f":"Z28","v":0},{"$f":"G28","v":0},{"$f":"AA28","v":0},{"$f":"H28","v":0},{"$f":"AB28","v":0},{"$f":"I28","v":0},{"$f":"AC28","v":0},{"$f":"J28","v":0},{"$f":"AD28","v":0},{"$f":"K28","v":0},{"$f":"AE28","v":0},{"$f":"L28","v":0},{"$f":"AF28","v":0},{"$f":"M28","v":0},{"$f":"AG28","v":0},{"$f":"N28","v":0},{"$f":"AH28","v":0},{"$f":"O28","v":0},{"$f":"AI28","v":0},{"$f":"P28","v":0}]
[null,null,"子どもに関すること","(18)",{"$f":"'4月'!$AA29","v":0},{"$f":"'5月'!$AA29","v":0},{"$f":"'6月'!$AA29","v":0},{"$f":"'7月'!$AA29","v":0},{"$f":"'8月'!$AA29","v":0},{"$f":"'9月'!$AA29","v":0},{"$f":"'10月'!$AA29","v":0},{"$f":"'11月'!$AA29","v":0},{"$f":"'12月'!$AA29","v":0},{"$f":"'1月'!$AA29","v":0},{"$f":"'2月'!$AA29","v":0},{"$f":"'3月'!$AA29","v":0},0,null,null,null,null,"子どもに関すること","(18)",0,0,0,0,0,0,0,0,0,0,0,0,0,null,null,null,null,"子どもに関すること","(18)",0,0,0,0,0,0,0,0,0,0,0,0,0,0,0,0,0,0,0,0,0,0,0,0]
[null,null,"そ　　の　　他","(19)",{"$f":"'4月'!$AA30","v":0},{"$f":"'5月'!$AA30","v":0},{"$f":"'6月'!$AA30","v":0},{"$f":"'7月'!$AA30","v":0},{"$f":"'8月'!$AA30","v":0},{"$f":"'9月'!$AA30","v":0},{"$f":"'10月'!$AA30","v":0},{"$f":"'11月'!$AA30","v":0},{"$f":"'12月'!$AA30","v":0},{"$f":"'1月'!$AA30","v":0},{"$f":"'2月'!$AA30","v":0},{"$f":"'3月'!$AA30","v":0},0,null,null,null,null,"そ　　の　　他","(19)",0,0,0,0,0,0,0,0,0,0,0,0,0,null,null,null,null,"そ　　の　　他","(19)",0,0,0,0,0,0,0,0,0,0,0,0,0,0,0,0,0,0,0,0,0,0,0,0]
[null,null,"計","(20)",{"$f":"'4月'!$AA31","v":0},{"$f":"'5月'!$AA31","v":0},{"$f":"'6月'!$AA31","v":0},{"$f":"'7月'!$AA31","v":0},{"$f":"'8月'!$AA31","v":0},{"$f":"'9月'!$AA31","v":0},{"$f":"'10月'!$AA31","v":0},{"$f":"'11月'!$AA31","v":0},{"$f":"'12月'!$AA31","v":0},{"$f":"'1月'!$AA31","v":0},{"$f":"'2月'!$AA31","v":0},{"$f":"'3月'!$AA31","v":0},0,null,null,null,null,"計","(20)",0,0,0,0,0,0,0,0,0,0,0,0,0,null,null,null,null,"計","(20)",{"$f":"SUM(AQ27:AQ30)","v":0},{"$f":"SUM(AR27:AR30)","v":0},0,0,0,0,0,0,0,0,0,0,0,0,0,0,0,0,0,0,0,0,0,0]
["　※(15)と(20)の合計件数は一致",null,null,null,null,null,null,null,null,null,null,null,null,null,null,null,0,null,null,"　※(15)と(20)の合計件数は一致",null,null,null,null,null,null,null,null,null,null,null,null,null,null,null,0]
["その他の活動",null,"調査・実態把握","(1)",{"$f":"'4月'!$AA33","v":0},{"$f":"'5月'!$AA33","v":0},{"$f":"'6月'!$AA33","v":0},{"$f":"'7月'!$AA33","v":0},{"$f":"'8月'!$AA33","v":0},{"$f":"'9月'!$AA33","v":0},{"$f":"'10月'!$AA33","v":0},{"$f":"'11月'!$AA33","v":0},{"$f":"'12月'!$AA33","v":0},{"$f":"'1月'!$AA33","v":0},{"$f":"'2月'!$AA33","v":0},{"$f":"'3月'!$AA33","v":0},0,"件",null,"その他の活動",null,"調査・実態把握","(1)",0,0,0,0,0,0,0,0,0,0,0,0,0,"件",null,"その他の活動",null,"調査・実態把握","(1)",{"$f":"X33","v":0},{"$f":"E33","v":0},{"$f":"Y33","v":0},{"$f":"F33","v":0},{"$f":"Z33","v":0},{"$f":"G33","v":0},{"$f":"AA33","v":0},{"$f":"H33","v":0},{"$f":"AB33","v":0},{"$f":"I33","v":0},{"$f":"AC33","v":0},{"$f":"J33","v":0},{"$f":"AD33","v":0},{"$f":"K33","v":0},{"$f":"AE33","v":0},{"$f":"L33","v":0},{"$f":"AF33","v":0},{"$f":"M33","v":0},{"$f":"AG33","v":0},{"$f":"N33","v":0},{"$f":"AH33","v":0},{"$f":"O33","v":0},{"$f":"AI33","v":0},{"$f":"P33","v":0}]
[null,null,"行事・事業・会議への参加・協力","(2)",{"$f":"'4月'!$AA34","v":0},{"$f":"'5月'!$AA34","v":0},{"$f":"'6月'!$AA34","v":0},{"$f":"'7月'!$AA34","v":0},{"$f":"'8月'!$AA34","v":0},{"$f":"'9月'!$AA34","v":0},{"$f":"'10月'!$AA34","v":0},{"$f":"'11月'!$AA34","v":0},{"$f":"'12月'!$AA34","v":0},{"$f":"'1月'!$AA34","v":0},{"$f":"'2月'!$AA34","v":0},{"$f":"'3月'!$AA34","v":0},0,null,null,null,null,"行事・事業・会議への参加・協力","(2)",0,0,0,0,0,0,0,0,0,0,0,0,0,null,null,null,null,"行事・事業・会議への参加・協力","(2)",{"$f":"X34","v":0},{"$f":"E34","v":0},{"$f":"Y34","v":0},{"$f":"F34","v":0},{"$f":"Z34","v":0},{"$f":"G34","v":0},{"$f":"AA34","v":0},{"$f":"H34","v":0},{"$f":"AB34","v":0},{"$f":"I34","v":0},{"$f":"AC34","v":0},{"$f":"J34","v":0},{"$f":"AD34","v":0},{"$f":"K34","v":0},{"$f":"AE34","v":0},{"$f":"L34","v":0},{"$f":"AF34","v":0},{"$f":"M34","v":0},{"$f":"AG34","v":0},{"$f":"N34","v":0},{"$f":"AH34","v":0},{"$f":"O34","v":0},{"$f":"AI34","v":0},{"$f":"P34","v":0}]
[null,null,"地域福祉活動･自主活動","(3)",{"$f":"'4月'!$AA35","v":0},{"$f":"'5月'!$AA35","v":0},{"$f":"'6月'!$AA35","v":0},{"$f":"'7月'!$AA35","v":0},{"$f":"'8月'!$AA35","v":0},{"$f":"'9月'!$AA35","v":0},{"$f":"'10月'!$AA35","v":0},{"$f":"'11月'!$AA35","v":0},{"$f":"'12月'!$AA35","v":0},{"$f":"'1月'!$AA35","v":0},{"$f":"'2月'!$AA35","v":0},{"$f":"'3月'!$AA35","v":0},0,null,null,null,null,"地域福祉活動･自主活動","(3)",0,0,0,0,0,0,0,0,0,0,0,0,0,null,null,null,null,"地域福祉活動･自主活動","(3)",0,0,0,0,0,0,0,0,0,0,0,0,0,0,0,0,0,0,0,0,0,0,0,0]
[null,null,"民児協運営・研修","(4)",{"$f":"'4月'!$AA36","v":0},{"$f":"'5月'!$AA36","v":0},{"$f":"'6月'!$AA36","v":0},{"$f":"'7月'!$AA36","v":0},{"$f":"'8月'!$AA36","v":0},{"$f":"'9月'!$AA36","v":0},{"$f":"'10月'!$AA36","v":0},{"$f":"'11月'!$AA36","v":0},{"$f":"'12月'!$AA36","v":0},{"$f":"'1月'!$AA36","v":0},{"$f":"'2月'!$AA36","v":0},{"$f":"'3月'!$AA36","v":0},0,null,null,null,null,"民児協運営・研修","(4)",0,0,0,0,0,0,0,0,0,0,0,0,0,null,null,null,null,"民児協運営・研修","(4)",0,0,0,0,0,0,0,0,0,0,0,0,0,0,0,0,0,0,0,0,0,0,0,0]
[null,null,"証　明　事　務","(5)",{"$f":"'4月'!$AA37","v":0},{"$f":"'5月'!$AA37","v":0},{"$f":"'6月'!$AA37","v":0},{"$f":"'7月'!$AA37","v":0},{"$f":"'8月'!$AA37","v":0},{"$f":"'9月'!$AA37","v":0},{"$f":"'10月'!$AA37","v":0},{"$f":"'11月'!$AA37","v":0},{"$f":"'12月'!$AA37","v":0},{"$f":"'1月'!$AA37","v":0},{"$f":"'2月'!$AA37","v":0},{"$f":"'3月'!$AA37","v":0},0,null,null,null,null,"証　明　事　務","(5)",0,0,0,0,0,0,0,0,0,0,0,0,0,null,null,null,null,"証　明　事　務","(5)",0,0,0,0,0,0,0,0,0,0,0,0,0,0,0,0,0,0,0,0,0,0,0,0]
[null,null,"要保護児童の発見の通告・仲介","(6)",{"$f":"'4月'!$AA38","v":0},{"$f":"'5月'!$AA38","v":0},{"$f":"'6月'!$AA38","v":0},{"$f":"'7月'!$AA38","v":0},{"$f":"'8月'!$AA38","v":0},{"$f":"'9月'!$AA38","v":0},{"$f":"'10月'!$AA38","v":0},{"$f":"'11月'!$AA38","v":0},{"$f":"'12月'!$AA38","v":0},{"$f":"'1月'!$AA38","v":0},{"$f":"'2月'!$AA38","v":0},{"$f":"'3月'!$AA38","v":0},0,null,null,null,null,"要保護児童の発見の通告・仲介","(6)",0,0,0,0,0,0,0,0,0,0,0,0,0,null,null,null,null,"要保護児童の発見の通告・仲介","(6)",0,0,0,0,0,0,0,0,0,0,0,0,0,0,0,0,0,0,0,0,0,0,0,0]
[null,null,null,null,null,null,null,null,null,null,null,null,null,null,null,null,0,null,null,null,null,null,null,null,null,null,null,null,null,null,null,null,null,null,null,0]
["訪問回数",null,"訪問・連絡活動","(7)",{"$f":"'4月'!$AA40","v":0},{"$f":"'5月'!$AA40","v":0},{"$f":"'6月'!$AA40","v":0},{"$f":"'7月'!$AA40","v":0},{"$f":"'8月'!$AA40","v":0},{"$f":"'9月'!$AA40","v":0},{"$f":"'10月'!$AA40","v":0},{"$f":"'11月'!$AA40","v":0},{"$f":"'12月'!$AA40","v":0},{"$f":"'1月'!$AA40","v":0},{"$f":"'2月'!$AA40","v":0},{"$f":"'3月'!$AA40","v":0},0,"回",null,"訪問回数",null,"訪問・連絡活動","(7)",0,0,0,0,0,0,0,0,0,0,0,0,0,"回",null,"訪問回数",null,"訪問・連絡活動","(7)",{"$f":"X40","v":0},{"$f":"E40","v":0},{"$f":"Y40","v":0},{"$f":"F40","v":0},{"$f":"Z40","v":0},{"$f":"G40","v":0},{"$f":"AA40","v":0},{"$f":"H40","v":0},{"$f":"AB40","v":0},{"$f":"I40","v":0},{"$f":"AC40","v":0},{"$f":"J40","v":0},{"$f":"AD40","v":0},{"$f":"K40","v":0},{"$f":"AE40","v":0},{"$f":"L40","v":0},{"$f":"AF40","v":0},{"$f":"M40","v":0},{"$f":"AG40","v":0},{"$f":"N40","v":0},{"$f":"AH40","v":0},{"$f":"O40","v":0},{"$f":"AI40","v":0},{"$f":"P40","v":0}]
[null,null,"そ 　の　 他","(8)",{"$f":"'4月'!$AA41","v":0},{"$f":"'5月'!$AA41","v":0},{"$f":"'6月'!$AA41","v":0},{"$f":"'7月'!$AA41","v":0},{"$f":"'8月'!$AA41","v":0},{"$f":"'9月'!$AA41","v":0},{"$f":"'10月'!$AA41","v":0},{"$f":"'11月'!$AA41","v":0},{"$f":"'12月'!$AA41","v":0},{"$f":"'1月'!$AA41","v":0},{"$f":"'2月'!$AA41","v":0},{"$f":"'3月'!$AA41","v":0},0,null,null,null,null,"そ 　の　 他","(8)",0,0,0,0,0,0,0,0,0,0,0,0,0,null,null,null,null,"そ 　の　 他","(8)",{"$f":"X41","v":0},{"$f":"E41","v":0},{"$f":"Y41","v":0},{"$f":"F41","v":0},{"$f":"Z41","v":0},{"$f":"G41","v":0},{"$f":"AA41","v":0},{"$f":"H41","v":0},{"$f":"AB41","v":0},{"$f":"I41","v":0},{"$f":"AC41","v":0},{"$f":"J41","v":0},{"$f":"AD41","v":0},{"$f":"K41","v":0},{"$f":"AE41","v":0},{"$f":"L41","v":0},{"$f":"AF41","v":0},{"$f":"M41","v":0},{"$f":"AG41","v":0},{"$f":"N41","v":0},{"$f":"AH41","v":0},{"$f":"O41","v":0},{"$f":"AI41","v":0},{"$f":"P41","v":0}]
[null,null,null,null,null,null,null,null,null,null,null,null,null,null,null,null,0,null,null,null,null,null,null,null,null,null,null,null,null,null,null,null,null,null,null,0]
["連絡調整回数",null,"委　員　相　互","(9)",{"$f":"'4月'!$AA43","v":0},{"$f":"'5月'!$AA43","v":0},{"$f":"'6月'!$AA43","v":0},{"$f":"'7月'!$AA43","v":0},{"$f":"'8月'!$AA43","v":0},{"$f":"'9月'!$AA43","v":0},{"$f":"'10月'!$AA43","v":0},{"$f":"'11月'!$AA43","v":0},{"$f":"'12月'!$AA43","v":0},{"$f":"'1月'!$AA43","v":0},{"$f":"'2月'!$AA43","v":0},{"$f":"'3月'!$AA43","v":0},0,"回",null,"連絡調整回数",null,"委　員　相　互","(9)",0,0,0,0,0,0,0,0,0,0,0,0,0,"回",null,"連絡調整回数",null,"委　員　相　互","(9)",{"$f":"X43","v":0},{"$f":"E43","v":0},{"$f":"Y43","v":0},{"$f":"F43","v":0},{"$f":"Z43","v":0},{"$f":"G43","v":0},{"$f":"AA43","v":0},{"$f":"H43","v":0},{"$f":"AB43","v":0},{"$f":"I43","v":0},{"$f":"AC43","v":0},{"$f":"J43","v":0},{"$f":"AD43","v":0},{"$f":"K43","v":0},{"$f":"AE43","v":0},{"$f":"L43","v":0},{"$f":"AF43","v":0},{"$f":"M43","v":0},{"$f":"AG43","v":0},{"$f":"N43","v":0},{"$f":"AH43","v":0},{"$f":"O43","v":0},{"$f":"AI43","v":0},{"$f":"P43","v":0}]
[null,null,"その他の関係機関","(10)",{"$f":"'4月'!$AA44","v":0},{"$f":"'5月'!$AA44","v":0},{"$f":"'6月'!$AA44","v":0},{"$f":"'7月'!$AA44","v":0},{"$f":"'8月'!$AA44","v":0},{"$f":"'9月'!$AA44","v":0},{"$f":"'10月'!$AA44","v":0},{"$f":"'11月'!$AA44","v":0},{"$f":"'12月'!$AA44","v":0},{"$f":"'1月'!$AA44","v":0},{"$f":"'2月'!$AA44","v":0},{"$f":"'3月'!$AA44","v":0},0,null,null,null,null,"その他の関係機関","(10)",0,0,0,0,0,0,0,0,0,0,0,0,0,null,null,null,null,"その他の関係機関","(10)",{"$f":"X44","v":0},{"$f":"E44","v":0},{"$f":"Y44","v":0},{"$f":"F44","v":0},{"$f":"Z44","v":0},{"$f":"G44","v":0},{"$f":"AA44","v":0},{"$f":"H44","v":0},{"$f":"AB44","v":0},{"$f":"I44","v":0},{"$f":"AC44","v":0},{"$f":"J44","v":0},{"$f":"AD44","v":0},{"$f":"K44","v":0},{"$f":"AE44","v":0},{"$f":"L44","v":0},{"$f":"AF44","v":0},{"$f":"M44","v":0},{"$f":"AG44","v":0},{"$f":"N44","v":0},{"$f":"AH44","v":0},{"$f":"O44","v":0},{"$f":"AI44","v":0},{"$f":"P44","v":0}]
[null,null,null,null,null,null,null,null,null,null,null,null,null,null,null,null,null,null,null,null,null,null,null,null,null,null,null,null,null,null,null,null,null,null,null,0]
["活　動　日　数",null,null,"(11)",{"$f":"'4月'!$AA46","v":0},{"$f":"'5月'!$AA46","v":0},{"$f":"'6月'!$AA46","v":0},{"$f":"'7月'!$AA46","v":0},{"$f":"'8月'!$AA46","v":0},{"$f":"'9月'!$AA46","v":0},{"$f":"'10月'!$AA46","v":0},{"$f":"'11月'!$AA46","v":0},{"$f":"'12月'!$AA46","v":0},{"$f":"'1月'!$AA46","v":0},{"$f":"'2月'!$AA46","v":0},{"$f":"'3月'!$AA46","v":0},0,"日",null,"活　動　日　数",null,null,"(11)",0,0,0,0,0,0,0,0,0,0,0,0,0,"日",null,"活　動　日　数",null,null,"(11)",{"$f":"X46","v":0},{"$f":"E46","v":0},{"$f":"Y46","v":0},{"$f":"F46","v":0},{"$f":"Z46","v":0},{"$f":"G46","v":0},{"$f":"AA46","v":0},{"$f":"H46","v":0},{"$f":"AB46","v":0},{"$f":"I46","v":0},{"$f":"AC46","v":0},{"$f":"J46","v":0},{"$f":"AD46","v":0},{"$f":"K46","v":0},{"$f":"AE46","v":0},{"$f":"L46","v":0},{"$f":"AF46","v":0},{"$f":"M46","v":0},{"$f":"AG46","v":0},{"$f":"N46","v":0},{"$f":"AH46","v":0},{"$f":"O46","v":0},{"$f":"AI46","v":0},{"$f":"P46","v":0}]

{"sheet":"4月","index":10,"n_rows":119,"n_cols":43,"rows_kept":119,"cut":false,"hidden":false,"merged":[[16,29,16,34],[16,35,16,36],[16,37,16,38],[0,0,0,2],[17,2,17,6],[40,2,40,6],[27,2,27,6],[41,2,41,6],[38,2,38,6],[3,2,7,6],[9,2,9,6],[14,2,14,6],[15,2,15,6],[8,21,8,22],[9,22,9,27],[31,22,31,27],[39,22,40,23],[8,25,8,27],[19,2,19,6],[20,2,20,6],[21,2,21,6],[29,2,29,6],[22,2,22,6],[23,2,23,6],[42,2,42,6],[37,2,37,6],[74,2,74,6],[47,2,47,6],[48,2,48,6],[55,2,55,6],[56,2,56,6],[57,2,57,6],[60,2,60,6],[49,2,49,6],[50,2,50,6],[51,2,51,6],[52,2,52,6],[53,2,53,6],[54,2,54,6],[43,2,43,6],[44,2,44,6],[45,2,45,6],[46,2,46,6],[58,2,58,6],[59,2,59,6],[81,2,81,6],[71,2,71,6],[72,2,72,6],[73,2,73,6],[80,2,80,6],[70,2,70,6],[61,2,61,6],[62,2,62,6],[76,2,76,6],[77,2,77,6],[78,2,78,6],[65,2,65,6],[64,2,64,6],[63,2,63,6],[79,2,79,6],[75,2,75,6],[69,2,69,6],[67,2,67,6],[68,2,68,6],[66,2,66,6],[83,0,83,6],[3,19,6,19],[3,9,3,14],[3,7,3,8],[13,2,13,6],[10,2,10,6],[3,0,7,1],[4,11,6,11],[4,10,6,10],[18,2,18,6],[12,2,12,6],[16,2,16,6],[8,2,8,6],[11,2,11,6],[24,2,24,6],[25,2,25,6],[26,2,26,6],[28,2,28,6],[4,12,6,12],[82,2,82,6],[33,2,33,6],[34,2,34,6],[35,2,35,6],[36,2,36,6],[30,2,30,6],[31,2,31,6],[32,2,32,6],[4,8,6,8],[4,7,6,7],[4,9,6,9],[4,18,6,18],[4,17,6,17],[39,2,39,6],[0,15,0,19],[1,15,1,19],[0,13,0,14],[1,13,1,14],[1,22,1,27],[46,22,46,24],[5,24,6,27],[4,23,4,27],[3,17,3,18],[3,15,3,16],[4,16,6,16],[4,15,6,15],[4,14,6,14],[4,13,6,13],[42,22,43,23],[26,23,30,23],[32,22,37,23],[11,22,30,22],[11,23,25,23]]}
[{"$f":"総合計!$A$1","v":2023},null,null,"年",4,"月 の","民生委員･児童委員   活動記録内容",null,null,null,null,null,null,"民児協名：",null,{"$f":"総合計!L3","v":0},null,null,null,null,null,null,"民生委員番号"]
[{"$f":"IF(B119<>T84,\"報告日数（A列）と活動日数（T列）が一致していません。活動日数（T列）は一日に一つだけ【〇】を入力してください。\",\"\")","v":""},null,null,null,null,null,null,null,null,null,null,null,null,"氏 　　名：",null,{"$f":"総合計!L5","v":0},null,null,null,null,null,null,{"$f":"総合計!L2","v":0}]
[null,null,null,null,null,null,null,{"$f":"IF(H84=I84,\"\",\"※↓「内容」↓「分野」の件数が一致するように入力してください。\")","v":""},null,null,null,null,null,null,null,null,null,null,null,{"$f":"IF(T84>30,\"活動日数が今月の日数を越えないように訂正してください。\",\"\")","v":""}]
["日・曜日",null,"活 動 概 要",null,null,null,null,"相談･支援活動",null,"その他の活動",null,null,null,null,null,"訪問回数",null,"連絡調整回数",null,"活動日数",null,null,"民児協名:"]
[null,null,null,null,null,null,null,"内容","分野","調査・\n実態把握","行事･事業･会議への参加 ･協力","地域福祉活動 ･自主活動","民児協\n運営･研修","証明(調査・確認等)事務","要保護児童の発見の通告･仲介","訪問･\n連絡活動","その他","委員相互","その他の\n関係機関",null,null,null,null,{"$f":"総合計!L3","v":0}]
[null,null,null,null,null,null,null,null,null,null,null,null,null,null,null,null,null,null,null,null,null,null,"氏名：",null,{"$f":"総合計!L5","v":0}]
[]
[null,null,null,null,null,null,null,"(1)～(14)","(16)～(19)","(1)","(2)","(3)","(4)","(5)","(6)","(7)","(8)","(9)","(10)","(11)",null,null,null,null,null,null,null,null,null,"■会長報告用（データ）"]
[null,{"$f":"IF(A9<>\"\",WEEKDAY($A$1&\"/\"&$E$1&\"/\"&A9),\"\")","v":""},null,null,null,null,null,null,null,null,null,null,null,null,null,null,null,null,null,null,null,{"$f":"A1","v":2023},null,"年","4月分",null,null,null,null,"民児協の会長へデータで活動件数等をご報告する場合は下のデータをご利用ください。"]
[null,{"$f":"IF(A10<>\"\",WEEKDAY($A$1&\"/\"&$E$1&\"/\"&A10),\"\")","v":""},null,null,null,null,null,null,null,null,null,null,null,null,null,null,null,null,null,null,null,null," 活動件数 集計報告書 "]
[null,"",null,null,null,null,null,null,null,null,null,null,null,null,null,null,null,null,null,null,null,null,null,null,null,null,null,null,null,"相談・支援活動（内容別）"]
[null,"",null,null,null,null,null,null,null,null,null,null,null,null,null,null,null,null,null,null,null,null,"相談・支援活動","（内容別）","在　宅　福　祉","(1)",{"$f":"COUNTIF($H$9:$H$83,1)","v":0},"件",null,"(1)","(2)","(3)","(4)","(5)","(6)","(7)","(8)","(9)","(10)","(11)","(12)","(13)","(14)"]
[null,"",null,null,null,null,null,null,null,null,null,null,null,null,null,null,null,null,null,null,null,null,null,null,"介　護　保　険","(2)",{"$f":"COUNTIF($H$9:$H$83,2)","v":0},null,null,{"$f":"AA12","v":0},{"$f":"AA13","v":0},{"$f":"AA14","v":0},{"$f":"AA15","v":0},{"$f":"AA16","v":0},{"$f":"AA17","v":0},{"$f":"AA18","v":0},{"$f":"AA19","v":0},{"$f":"AA20","v":0},{"$f":"AA21","v":0},{"$f":"AA22","v":0},{"$f":"AA23","v":0},{"$f":"AA24","v":0},{"$f":"AA25","v":0}]
[null,"",null,null,null,null,null,null,null,null,null,null,null,null,null,null,null,null,null,null,null,null,null,null,"健康・保健医療","(3)",{"$f":"COUNTIF($H$9:$H$83,3)","v":0},null,null,"相談・支援活動（分野別）"]
[null,"",null,null,null,null,null,null,null,null,null,null,null,null,null,null,null,null,null,null,null,null,null,null,"子育て・母子保健","(4)",{"$f":"COUNTIF($H$9:$H$83,4)","v":0},null,null,"(16)","(17)","(18)","(19)"]
[null,"",null,null,null,null,null,null,null,null,null,null,null,null,null,null,null,null,null,null,null,null,null,null,"子どもの地域生活","(5)",{"$f":"COUNTIF($H$9:$H$83,5)","v":0},null,null,{"$f":"AA27","v":0},{"$f":"AA28","v":0},{"$f":"AA29","v":0},{"$f":"AA30","v":0}]
[null,"",null,null,null,null,null,null,null,null,null,null,null,null,null,null,null,null,null,null,null,null,null,null,"子どもの教育･学校生活","(6)",{"$f":"COUNTIF($H$9:$H$83,6)","v":0},null,null,"その他活動",null,null,null,null,null,"訪問回数",null,"連絡調整回数",null,"活動日数"]
[null,"",null,null,null,null,null,null,null,null,null,null,null,null,null,null,null,null,null,null,null,null,null,null,"生　　活　　費","(7)",{"$f":"COUNTIF($H$9:$H$83,7)","v":0},null,null,"(1)","(2)","(3)","(4)","(5)","(6)","(7)","(8)","(9)","(10)","(11)"]
[null,"",null,null,null,null,null,null,null,null,null,null,null,null,null,null,null,null,null,null,null,null,null,null,"年　金・保　険","(8)",{"$f":"COUNTIF($H$9:$H$83,8)","v":0},null,null,{"$f":"AA33","v":0},{"$f":"AA34","v":0},{"$f":"AA35","v":0},{"$f":"AA36","v":0},{"$f":"AA37","v":0},{"$f":"AA38","v":0},{"$f":"AA40","v":0},{"$f":"AA41","v":0},{"$f":"AA43","v":0},{"$f":"AA44","v":0},{"$f":"AA46","v":0}]
[null,"",null,null,null,null,null,null,null,null,null,null,null,null,null,null,null,null,null,null,null,null,null,null,"仕　　　　　事","(9)",{"$f":"COUNTIF($H$9:$H$83,9)","v":0}]
[null,"",null,null,null,null,null,null,null,null,null,null,null,null,null,null,null,null,null,null,null,null,null,null,"家　族　関　係","(10)",{"$f":"COUNTIF($H$9:$H$83,10)","v":0}]
[null,"",null,null,null,null,null,null,null,null,null,null,null,null,null,null,null,null,null,null,null,null,null,null,"住　　　　　居","(11)",{"$f":"COUNTIF($H$9:$H$83,11)","v":0}]
[null,"",null,null,null,null,null,null,null,null,null,null,null,null,null,null,null,null,null,null,null,null,null,null,"生　活　環　境","(12)",{"$f":"COUNTIF($H$9:$H$83,12)","v":0}]
[null,"",null,null,null,null,null,null,null,null,null,null,null,null,null,null,null,null,null,null,null,null,null,null,"日 常 的 な 支 援","(13)",{"$f":"COUNTIF($H$9:$H$83,13)","v":0}]
[null,"",null,null,null,null,null,null,null,null,null,null,null,null,null,null,null,null,null,null,null,null,null,null,"そ　　の　　他","(14)",{"$f":"COUNTIF($H$9:$H$83,14)","v":0}]
[null,"",null,null,null,null,null,null,null,null,null,null,null,null,null,null,null,null,null,null,null,null,null,null,"計","(15)",{"$f":"SUM(AA12:AA25)","v":0}]
[null,"",null,null,null,null,null,null,null,null,null,null,null,null,null,null,null,null,null,null,null,null,null,"（分野別）","高齢者に関すること","(16)",{"$f":"COUNTIF($I$9:$I$83,16)","v":0},"件"]
[null,"",null,null,null,null,null,null,null,null,null,null,null,null,null,null,null,null,null,null,null,null,null,null,"障害者に関すること","(17)",{"$f":"COUNTIF($I$9:$I$83,17)","v":0}]
[null,"",null,null,null,null,null,null,null,null,null,null,null,null,null,null,null,null,null,null,null,null,null,null,"子どもに関すること","(18)",{"$f":"COUNTIF($I$9:$I$83,18)","v":0}]
[null,"",null,null,null,null,null,null,null,null,null,null,null,null,null,null,null,null,null,null,null,null,null,null,"そ　　の　　他","(19)",{"$f":"COUNTIF($I$9:$I$83,19)","v":0}]
[null,"",null,null,null,null,null,null,null,null,null,null,null,null,null,null,null,null,null,null,null,null,null,null,"計","(20)",{"$f":"SUM(AA27:AA30)","v":0}]
[null,"",null,null,null,null,null,null,null,null,null,null,null,null,null,null,null,null,null,null,null,null,"　※(15)と(20)の合計件数は一致　"]
[null,"",null,null,null,null,null,null,null,null,null,null,null,null,null,null,null,null,null,null,null,null,"その他の活動",null,"調査・実態把握","(1)",{"$f":"J84","v":0},"件"]
[null,"",null,null,null,null,null,null,null,null,null,null,null,null,null,null,null,null,null,null,null,null,null,null,"行事・事業・会議への参加・協力","(2)",{"$f":"K84","v":0}]
[null,"",null,null,null,null,null,null,null,null,null,null,null,null,null,null,null,null,null,null,null,null,null,null,"地域福祉活動･自主活動","(3)",{"$f":"L84","v":0}]
[null,"",null,null,null,null,null,null,null,null,null,null,null,null,null,null,null,null,null,null,null,null,null,null,"民児協運営・研修","(4)",{"$f":"M84","v":0}]
[null,"",null,null,null,null,null,null,null,null,null,null,null,null,null,null,null,null,null,null,null,null,null,null,"証　明　事　務","(5)",{"$f":"N84","v":0}]
[null,"",null,null,null,null,null,null,null,null,null,null,null,null,null,null,null,null,null,null,null,null,null,null,"要保護児童の発見の通告･仲介","(6)",{"$f":"O84","v":0}]
[null,""]
[null,"",null,null,null,null,null,null,null,null,null,null,null,null,null,null,null,null,null,null,null,null,"訪問回数",null,"訪問・連絡活動","(7)",{"$f":"P84","v":0},"回"]
[null,"",null,null,null,null,null,null,null,null,null,null,null,null,null,null,null,null,null,null,null,null,null,null,"そ 　の　 他","(8)",{"$f":"Q84","v":0}]
[null,""]
[null,"",null,null,null,null,null,null,null,null,null,null,null,null,null,null,null,null,null,null,null,null,"連絡調整回数",null,"委　員　相　互","(9)",{"$f":"R84","v":0},"回"]
[null,"",null,null,null,null,null,null,null,null,null,null,null,null,null,null,null,null,null,null,null,null,null,null,"その他の関係機関","(10)",{"$f":"S84","v":0}]
[null,""]
[null,"",null,null,null,null,null,null,null,null,null,null,null,null,null,null,null,null,null,null,null,null,null,null,"活　動　日　数","(11)",{"$f":"T84","v":0},"日"]
[null,"",null,null,null,null,null,null,null,null,null,null,null,null,null,null,null,null,null,null,null,null,{"$f":"A1&\"年\"&E1&\"月\"","v":"2023年4月"}]
[null,"",null,null,null,null,null,null,null,null,null,null,null,null,null,null,null,null,null,null,null,null,"日","曜"]
[null,"",null,null,null,null,null,null,null,null,null,null,null,null,null,null,null,null,null,null,null,null,1,{"$f":"WEEKDAY($A$1&\"/\"&$E$1&\"/\"&W49)","v":7}]
[null,"",null,null,null,null,null,null,null,null,null,null,null,null,null,null,null,null,null,null,null,null,2,{"$f":"WEEKDAY($A$1&\"/\"&$E$1&\"/\"&W50)","v":1}]
[null,"",null,null,null,null,null,null,null,null,null,null,null,null,null,null,null,null,null,null,null,null,3,2]
[null,"",null,null,null,null,null,null,null,null,null,null,null,null,null,null,null,null,null,null,null,null,4,3]
[null,"",null,null,null,null,null,null,null,null,null,null,null,null,null,null,null,null,null,null,null,null,5,4]
[null,"",null,null,null,null,null,null,null,null,null,null,null,null,null,null,null,null,null,null,null,null,6,5]
[null,"",null,null,null,null,null,null,null,null,null,null,null,null,null,null,null,null,null,null,null,null,7,6]
[null,"",null,null,null,null,null,null,null,null,null,null,null,null,null,null,null,null,null,null,null,null,8,7]
[null,"",null,null,null,null,null,null,null,null,null,null,null,null,null,null,null,null,null,null,null,null,9,1]
[null,"",null,null,null,null,null,null,null,null,null,null,null,null,null,null,null,null,null,null,null,null,10,2]
[null,"",null,null,null,null,null,null,null,null,null,null,null,null,null,null,null,null,null,null,null,null,11,3]
[null,"",null,null,null,null,null,null,null,null,null,null,null,null,null,null,null,null,null,null,null,null,12,4]
[null,"",null,null,null,null,null,null,null,null,null,null,null,null,null,null,null,null,null,null,null,null,13,5]
[null,"",null,null,null,null,null,null,null,null,null,null,null,null,null,null,null,null,null,null,null,null,14,6]
[null,"",null,null,null,null,null,null,null,null,null,null,null,null,null,null,null,null,null,null,null,null,15,7]
[null,"",null,null,null,null,null,null,null,null,null,null,null,null,null,null,null,null,null,null,null,null,16,1]
[null,"",null,null,null,null,null,null,null,null,null,null,null,null,null,null,null,null,null,null,null,null,17,2]
[null,"",null,null,null,null,null,null,null,null,null,null,null,null,null,null,null,null,null,null,null,null,18,3]
[null,"",null,null,null,null,null,null,null,null,null,null,null,null,null,null,null,null,null,null,null,null,19,4]
[null,"",null,null,null,null,null,null,null,null,null,null,null,null,null,null,null,null,null,null,null,null,20,5]
[null,"",null,null,null,null,null,null,null,null,null,null,null,null,null,null,null,null,null,null,null,null,21,6]
[null,"",null,null,null,null,null,null,null,null,null,null,null,null,null,null,null,null,null,null,null,null,22,7]
[null,"",null,null,null,null,null,null,null,null,null,null,null,null,null,null,null,null,null,null,null,null,23,1]
[null,"",null,null,null,null,null,null,null,null,null,null,null,null,null,null,null,null,null,null,null,null,24,2]
[null,"",null,null,null,null,null,null,null,null,null,null,null,null,null,null,null,null,null,null,null,null,25,3]
[null,{"$f":"IF(A74<>\"\",WEEKDAY($A$1&\"/\"&$E$1&\"/\"&A74),\"\")","v":""},null,null,null,null,null,null,null,null,null,null,null,null,null,null,null,null,null,null,null,null,26,4]
[null,"",null,null,null,null,null,null,null,null,null,null,null,null,null,null,null,null,null,null,null,null,27,5]
[null,"",null,null,null,null,null,null,null,null,null,null,null,null,null,null,null,null,null,null,null,null,28,6]
[null,"",null,null,null,null,null,null,null,null,null,null,null,null,null,null,null,null,null,null,null,null,29,7]
[null,"",null,null,null,null,null,null,null,null,null,null,null,null,null,null,null,null,null,null,null,null,30,1]
[null,""]
[null,""]
[null,""]
[null,""]
[null,""]
["合　　　　　　計",null,null,null,null,null,null,{"$f":"COUNTA(H9:H83)","v":0},{"$f":"COUNTA(I9:I83)","v":0},{"$f":"SUM(J9:J83)","v":0},0,0,0,0,0,0,0,0,0,{"$f":"COUNTA(T9:T83)","v":0}]
[null,null,null,null,null,null,null,{"$f":"IF(H84=I84,\"\",\"※↑「内容」↑「分野」の件数が一致するように入力してください。\")","v":""},null,null,null,null,null,null,null,null,null,null,null,{"$f":"IF(T84>30,\"↑\",\"\")","v":""}]
[{"$f":"IF(B119<>T84,\"報告日数（A列）と活動日数（T列）が一致していません。活動日数（T列）は一日に一つだけ【〇】を入力してください。\",\"\")","v":""},null,null,null,null,null,null,null,null,null,null,null,null,null,null,null,null,null,null,{"$f":"IF(T84>30,\"活動日数が今月の日数を越えないように訂正してください。\",\"\")","v":""}]
["日","日別活動件数"]
[{"$f":"COUNTIF($A$9:$A$83,1)","v":0},{"$f":"COUNTIF(A88,\">=1\" )","v":0}]
[{"$f":"COUNTIF($A$9:$A$83,2)","v":0},{"$f":"COUNTIF(A89,\">=1\" )","v":0}]
[{"$f":"COUNTIF($A$9:$A$83,3)","v":0},0]
[{"$f":"COUNTIF($A$9:$A$83,4)","v":0},0]
[{"$f":"COUNTIF($A$9:$A$83,5)","v":0},0]
[{"$f":"COUNTIF($A$9:$A$83,6)","v":0},0]
[{"$f":"COUNTIF($A$9:$A$83,7)","v":0},0]
[{"$f":"COUNTIF($A$9:$A$83,8)","v":0},0]
[{"$f":"COUNTIF($A$9:$A$83,9)","v":0},0]
[{"$f":"COUNTIF($A$9:$A$83,10)","v":0},0]
[{"$f":"COUNTIF($A$9:$A$83,11)","v":0},0]
[{"$f":"COUNTIF($A$9:$A$83,12)","v":0},0]
[{"$f":"COUNTIF($A$9:$A$83,13)","v":0},0]
[{"$f":"COUNTIF($A$9:$A$83,14)","v":0},0]
[{"$f":"COUNTIF($A$9:$A$83,15)","v":0},0]
[{"$f":"COUNTIF($A$9:$A$83,16)","v":0},0]
[{"$f":"COUNTIF($A$9:$A$83,17)","v":0},0]
[{"$f":"COUNTIF($A$9:$A$83,18)","v":0},0]
[{"$f":"COUNTIF($A$9:$A$83,19)","v":0},0]
[{"$f":"COUNTIF($A$9:$A$83,20)","v":0},0]
[{"$f":"COUNTIF($A$9:$A$83,21)","v":0},0]
[{"$f":"COUNTIF($A$9:$A$83,22)","v":0},0]
[{"$f":"COUNTIF($A$9:$A$83,23)","v":0},0]
[{"$f":"COUNTIF($A$9:$A$83,24)","v":0},0]
[{"$f":"COUNTIF($A$9:$A$83,25)","v":0},0]
[{"$f":"COUNTIF($A$9:$A$83,26)","v":0},0]
[{"$f":"COUNTIF($A$9:$A$83,27)","v":0},0]
[{"$f":"COUNTIF($A$9:$A$83,28)","v":0},0]
[{"$f":"COUNTIF($A$9:$A$83,29)","v":0},0]
[{"$f":"COUNTIF($A$9:$A$83,30)","v":0},0]
[{"$f":"COUNTIF($A$9:$A$83,31)","v":0},0]
[null,{"$f":"SUM(B88:B118)","v":0}]

{"sheet":"5月","index":11,"n_rows":119,"n_cols":43,"rows_kept":119,"cut":false,"hidden":false,"merged":[[16,29,16,34],[16,35,16,36],[16,37,16,38],[15,2,15,6],[8,2,8,6],[0,0,0,2],[4,10,6,10],[4,9,6,9],[4,18,6,18],[4,17,6,17],[4,16,6,16],[4,15,6,15],[4,14,6,14],[4,13,6,13],[3,0,7,1],[3,17,3,18],[3,15,3,16],[4,11,6,11],[0,15,0,19],[0,13,0,14],[26,2,26,6],[27,2,27,6],[28,2,28,6],[5,24,6,27],[4,23,4,27],[83,0,83,6],[3,19,6,19],[3,9,3,14],[3,7,3,8],[13,2,13,6],[8,21,8,22],[42,22,43,23],[26,23,30,23],[32,22,37,23],[11,22,30,22],[11,23,25,23],[4,12,6,12],[31,22,31,27],[39,22,40,23],[9,22,9,27],[17,2,17,6],[3,2,7,6],[9,2,9,6],[14,2,14,6],[82,2,82,6],[33,2,33,6],[34,2,34,6],[35,2,35,6],[36,2,36,6],[39,2,39,6],[40,2,40,6],[43,2,43,6],[44,2,44,6],[58,2,58,6],[51,2,51,6],[52,2,52,6],[53,2,53,6],[59,2,59,6],[45,2,45,6],[81,2,81,6],[71,2,71,6],[72,2,72,6],[73,2,73,6],[80,2,80,6],[70,2,70,6],[74,2,74,6],[61,2,61,6],[62,2,62,6],[64,2,64,6],[1,22,1,27],[46,22,46,24],[1,15,1,19],[1,13,1,14],[30,2,30,6],[31,2,31,6],[32,2,32,6],[37,2,37,6],[41,2,41,6],[38,2,38,6],[49,2,49,6],[54,2,54,6],[48,2,48,6],[50,2,50,6],[11,2,11,6],[10,2,10,6],[12,2,12,6],[16,2,16,6],[29,2,29,6],[22,2,22,6],[23,2,23,6],[24,2,24,6],[25,2,25,6],[79,2,79,6],[75,2,75,6],[76,2,76,6],[77,2,77,6],[78,2,78,6],[4,8,6,8],[4,7,6,7],[55,2,55,6],[56,2,56,6],[57,2,57,6],[19,2,19,6],[20,2,20,6],[21,2,21,6],[18,2,18,6],[60,2,60,6],[47,2,47,6],[46,2,46,6],[42,2,42,6],[63,2,63,6],[69,2,69,6],[67,2,67,6],[68,2,68,6],[65,2,65,6],[66,2,66,6]]}
[{"$f":"'4月'!$A$1","v":2023},null,null,"年",5,"月 の","民生委員･児童委員   活動記録内容",null,null,null,null,null,null,"民児協名：",null,{"$f":"総合計!L3","v":0},null,null,null,null,null,null,"民生委員番号"]
[{"$f":"IF(B119<>T84,\"報告日数（A列）と活動日数（T列）が一致していません。活動日数（T列）は一日に一つだけ【〇】を入力してください。\",\"\")","v":""},null,null,null,null,null,null,null,null,null,null,null,null,"氏 　　名：",null,{"$f":"総合計!L5","v":0},null,null,null,null,null,null,{"$f":"総合計!L2","v":0}]
[null,null,null,null,null,null,null,{"$f":"IF(H84=I84,\"\",\"※↓「内容」↓「分野」の件数が一致するように入力してください。\")","v":""},null,null,null,null,null,null,null,null,null,null,null,{"$f":"IF(T84>31,\"活動日数が今月の日数を越えないように訂正してください。\",\"\")","v":""}]
["日・曜日",null,"活 動 概 要",null,null,null,null,"相談･支援活動",null,"その他の活動",null,null,null,null,null,"訪問回数",null,"連絡調整回数",null,"活動日数",null,null,"民児協名:"]
[null,null,null,null,null,null,null,"内容","分野","調査・\n実態把握","行事･事業･会議への参加 ･協力","地域福祉活動 ･自主活動","民児協\n運営･研修","証明(調査・確認等)事務","要保護児童の発見の通告･仲介","訪問･\n連絡活動","その他","委員相互","その他の\n関係機関",null,null,null,null,{"$f":"総合計!L3","v":0}]
[null,null,null,null,null,null,null,null,null,null,null,null,null,null,null,null,null,null,null,null,null,null,"氏名：",null,{"$f":"総合計!L5","v":0}]
[]
[null,null,null,null,null,null,null,"(1)～(14)","(16)～(19)","(1)","(2)","(3)","(4)","(5)","(6)","(7)","(8)","(9)","(10)","(11)",null,null,null,null,null,null,null,null,null,"■会長報告用（データ）"]
[null,{"$f":"IF(A9<>\"\",WEEKDAY($A$1&\"/\"&$E$1&\"/\"&A9),\"\")","v":""},null,null,null,null,null,null,null,null,null,null,null,null,null,null,null,null,null,null,null,{"$f":"A1","v":2023},null,"年","5月分",null,null,null,null,"民児協の会長へデータで活動件数等をご報告する場合は下のデータをご利用ください。"]
[null,{"$f":"IF(A10<>\"\",WEEKDAY($A$1&\"/\"&$E$1&\"/\"&A10),\"\")","v":""},null,null,null,null,null,null,null,null,null,null,null,null,null,null,null,null,null,null,null,null," 活動件数 集計報告書 "]
[null,"",null,null,null,null,null,null,null,null,null,null,null,null,null,null,null,null,null,null,null,null,null,null,null,null,null,null,null,"相談・支援活動（内容別）"]
[null,"",null,null,null,null,null,null,null,null,null,null,null,null,null,null,null,null,null,null,null,null,"相談・支援活動","（内容別）","在　宅　福　祉","(1)",{"$f":"COUNTIF($H$9:$H$83,1)","v":0},"件",null,"(1)","(2)","(3)","(4)","(5)","(6)","(7)","(8)","(9)","(10)","(11)","(12)","(13)","(14)"]
[null,"",null,null,null,null,null,null,null,null,null,null,null,null,null,null,null,null,null,null,null,null,null,null,"介　護　保　険","(2)",{"$f":"COUNTIF($H$9:$H$83,2)","v":0},null,null,{"$f":"AA12","v":0},{"$f":"AA13","v":0},{"$f":"AA14","v":0},{"$f":"AA15","v":0},{"$f":"AA16","v":0},{"$f":"AA17","v":0},{"$f":"AA18","v":0},{"$f":"AA19","v":0},{"$f":"AA20","v":0},{"$f":"AA21","v":0},{"$f":"AA22","v":0},{"$f":"AA23","v":0},{"$f":"AA24","v":0},{"$f":"AA25","v":0}]
[null,"",null,null,null,null,null,null,null,null,null,null,null,null,null,null,null,null,null,null,null,null,null,null,"健康・保健医療","(3)",{"$f":"COUNTIF($H$9:$H$83,3)","v":0},null,null,"相談・支援活動（分野別）"]
[null,"",null,null,null,null,null,null,null,null,null,null,null,null,null,null,null,null,null,null,null,null,null,null,"子育て・母子保健","(4)",{"$f":"COUNTIF($H$9:$H$83,4)","v":0},null,null,"(16)","(17)","(18)","(19)"]
[null,"",null,null,null,null,null,null,null,null,null,null,null,null,null,null,null,null,null,null,null,null,null,null,"子どもの地域生活","(5)",{"$f":"COUNTIF($H$9:$H$83,5)","v":0},null,null,{"$f":"AA27","v":0},{"$f":"AA28","v":0},{"$f":"AA29","v":0},{"$f":"AA30","v":0}]
[null,"",null,null,null,null,null,null,null,null,null,null,null,null,null,null,null,null,null,null,null,null,null,null,"子どもの教育･学校生活","(6)",{"$f":"COUNTIF($H$9:$H$83,6)","v":0},null,null,"その他活動",null,null,null,null,null,"訪問回数",null,"連絡調整回数",null,"活動日数"]
[null,"",null,null,null,null,null,null,null,null,null,null,null,null,null,null,null,null,null,null,null,null,null,null,"生　　活　　費","(7)",{"$f":"COUNTIF($H$9:$H$83,7)","v":0},null,null,"(1)","(2)","(3)","(4)","(5)","(6)","(7)","(8)","(9)","(10)","(11)"]
[null,"",null,null,null,null,null,null,null,null,null,null,null,null,null,null,null,null,null,null,null,null,null,null,"年　金・保　険","(8)",{"$f":"COUNTIF($H$9:$H$83,8)","v":0},null,null,{"$f":"AA33","v":0},{"$f":"AA34","v":0},{"$f":"AA35","v":0},{"$f":"AA36","v":0},{"$f":"AA37","v":0},{"$f":"AA38","v":0},{"$f":"AA40","v":0},{"$f":"AA41","v":0},{"$f":"AA43","v":0},{"$f":"AA44","v":0},{"$f":"AA46","v":0}]
[null,"",null,null,null,null,null,null,null,null,null,null,null,null,null,null,null,null,null,null,null,null,null,null,"仕　　　　　事","(9)",{"$f":"COUNTIF($H$9:$H$83,9)","v":0}]
[null,"",null,null,null,null,null,null,null,null,null,null,null,null,null,null,null,null,null,null,null,null,null,null,"家　族　関　係","(10)",{"$f":"COUNTIF($H$9:$H$83,10)","v":0}]
[null,"",null,null,null,null,null,null,null,null,null,null,null,null,null,null,null,null,null,null,null,null,null,null,"住　　　　　居","(11)",{"$f":"COUNTIF($H$9:$H$83,11)","v":0}]
[null,"",null,null,null,null,null,null,null,null,null,null,null,null,null,null,null,null,null,null,null,null,null,null,"生　活　環　境","(12)",{"$f":"COUNTIF($H$9:$H$83,12)","v":0}]
[null,"",null,null,null,null,null,null,null,null,null,null,null,null,null,null,null,null,null,null,null,null,null,null,"日 常 的 な 支 援","(13)",{"$f":"COUNTIF($H$9:$H$83,13)","v":0}]
[null,"",null,null,null,null,null,null,null,null,null,null,null,null,null,null,null,null,null,null,null,null,null,null,"そ　　の　　他","(14)",{"$f":"COUNTIF($H$9:$H$83,14)","v":0}]
[null,"",null,null,null,null,null,null,null,null,null,null,null,null,null,null,null,null,null,null,null,null,null,null,"計","(15)",{"$f":"SUM(AA12:AA25)","v":0}]
[null,"",null,null,null,null,null,null,null,null,null,null,null,null,null,null,null,null,null,null,null,null,null,"（分野別）","高齢者に関すること","(16)",{"$f":"COUNTIF($I$9:$I$83,16)","v":0},"件"]
[null,"",null,null,null,null,null,null,null,null,null,null,null,null,null,null,null,null,null,null,null,null,null,null,"障害者に関すること","(17)",{"$f":"COUNTIF($I$9:$I$83,17)","v":0}]
[null,"",null,null,null,null,null,null,null,null,null,null,null,null,null,null,null,null,null,null,null,null,null,null,"子どもに関すること","(18)",{"$f":"COUNTIF($I$9:$I$83,18)","v":0}]
[null,"",null,null,null,null,null,null,null,null,null,null,null,null,null,null,null,null,null,null,null,null,null,null,"そ　　の　　他","(19)",{"$f":"COUNTIF($I$9:$I$83,19)","v":0}]
[null,"",null,null,null,null,null,null,null,null,null,null,null,null,null,null,null,null,null,null,null,null,null,null,"計","(20)",{"$f":"SUM(AA27:AA30)","v":0}]
[null,"",null,null,null,null,null,null,null,null,null,null,null,null,null,null,null,null,null,null,null,null,"　※(15)と(20)の合計件数は一致　"]
[null,"",null,null,null,null,null,null,null,null,null,null,null,null,null,null,null,null,null,null,null,null,"その他の活動",null,"調査・実態把握","(1)",{"$f":"J84","v":0},"件"]
[null,"",null,null,null,null,null,null,null,null,null,null,null,null,null,null,null,null,null,null,null,null,null,null,"行事・事業・会議への参加・協力","(2)",{"$f":"K84","v":0}]
[null,"",null,null,null,null,null,null,null,null,null,null,null,null,null,null,null,null,null,null,null,null,null,null,"地域福祉活動･自主活動","(3)",{"$f":"L84","v":0}]
[null,"",null,null,null,null,null,null,null,null,null,null,null,null,null,null,null,null,null,null,null,null,null,null,"民児協運営・研修","(4)",{"$f":"M84","v":0}]
[null,"",null,null,null,null,null,null,null,null,null,null,null,null,null,null,null,null,null,null,null,null,null,null,"証　明　事　務","(5)",{"$f":"N84","v":0}]
[null,"",null,null,null,null,null,null,null,null,null,null,null,null,null,null,null,null,null,null,null,null,null,null,"要保護児童の発見の通告･仲介","(6)",{"$f":"O84","v":0}]
[null,""]
[null,"",null,null,null,null,null,null,null,null,null,null,null,null,null,null,null,null,null,null,null,null,"訪問回数",null,"訪問・連絡活動","(7)",{"$f":"P84","v":0},"回"]
[null,"",null,null,null,null,null,null,null,null,null,null,null,null,null,null,null,null,null,null,null,null,null,null,"そ 　の　 他","(8)",{"$f":"Q84","v":0}]
[null,""]
[null,"",null,null,null,null,null,null,null,null,null,null,null,null,null,null,null,null,null,null,null,null,"連絡調整回数",null,"委　員　相　互","(9)",{"$f":"R84","v":0},"回"]
[null,"",null,null,null,null,null,null,null,null,null,null,null,null,null,null,null,null,null,null,null,null,null,null,"その他の関係機関","(10)",{"$f":"S84","v":0}]
[null,""]
[null,"",null,null,null,null,null,null,null,null,null,null,null,null,null,null,null,null,null,null,null,null,null,null,"活　動　日　数","(11)",{"$f":"T84","v":0},"日"]
[null,"",null,null,null,null,null,null,null,null,null,null,null,null,null,null,null,null,null,null,null,null,{"$f":"A1&\"年\"&E1&\"月\"","v":"2023年5月"}]
[null,"",null,null,null,null,null,null,null,null,null,null,null,null,null,null,null,null,null,null,null,null,"日","曜"]
[null,"",null,null,null,null,null,null,null,null,null,null,null,null,null,null,null,null,null,null,null,null,1,{"$f":"WEEKDAY($A$1&\"/\"&$E$1&\"/\"&W49)","v":2}]
[null,"",null,null,null,null,null,null,null,null,null,null,null,null,null,null,null,null,null,null,null,null,2,{"$f":"WEEKDAY($A$1&\"/\"&$E$1&\"/\"&W50)","v":3}]
[null,"",null,null,null,null,null,null,null,null,null,null,null,null,null,null,null,null,null,null,null,null,3,4]
[null,"",null,null,null,null,null,null,null,null,null,null,null,null,null,null,null,null,null,null,null,null,4,5]
[null,"",null,null,null,null,null,null,null,null,null,null,null,null,null,null,null,null,null,null,null,null,5,6]
[null,"",null,null,null,null,null,null,null,null,null,null,null,null,null,null,null,null,null,null,null,null,6,7]
[null,"",null,null,null,null,null,null,null,null,null,null,null,null,null,null,null,null,null,null,null,null,7,1]
[null,"",null,null,null,null,null,null,null,null,null,null,null,null,null,null,null,null,null,null,null,null,8,2]
[null,"",null,null,null,null,null,null,null,null,null,null,null,null,null,null,null,null,null,null,null,null,9,3]
[null,"",null,null,null,null,null,null,null,null,null,null,null,null,null,null,null,null,null,null,null,null,10,4]
[null,"",null,null,null,null,null,null,null,null,null,null,null,null,null,null,null,null,null,null,null,null,11,5]
[null,"",null,null,null,null,null,null,null,null,null,null,null,null,null,null,null,null,null,null,null,null,12,6]
[null,"",null,null,null,null,null,null,null,null,null,null,null,null,null,null,null,null,null,null,null,null,13,7]
[null,"",null,null,null,null,null,null,null,null,null,null,null,null,null,null,null,null,null,null,null,null,14,1]
[null,"",null,null,null,null,null,null,null,null,null,null,null,null,null,null,null,null,null,null,null,null,15,2]
[null,"",null,null,null,null,null,null,null,null,null,null,null,null,null,null,null,null,null,null,null,null,16,3]
[null,"",null,null,null,null,null,null,null,null,null,null,null,null,null,null,null,null,null,null,null,null,17,4]
[null,"",null,null,null,null,null,null,null,null,null,null,null,null,null,null,null,null,null,null,null,null,18,5]
[null,"",null,null,null,null,null,null,null,null,null,null,null,null,null,null,null,null,null,null,null,null,19,6]
[null,"",null,null,null,null,null,null,null,null,null,null,null,null,null,null,null,null,null,null,null,null,20,7]
[null,"",null,null,null,null,null,null,null,null,null,null,null,null,null,null,null,null,null,null,null,null,21,1]
[null,"",null,null,null,null,null,null,null,null,null,null,null,null,null,null,null,null,null,null,null,null,22,2]
[null,"",null,null,null,null,null,null,null,null,null,null,null,null,null,null,null,null,null,null,null,null,23,3]
[null,"",null,null,null,null,null,null,null,null,null,null,null,null,null,null,null,null,null,null,null,null,24,4]
[null,"",null,null,null,null,null,null,null,null,null,null,null,null,null,null,null,null,null,null,null,null,25,5]
[null,{"$f":"IF(A74<>\"\",WEEKDAY($A$1&\"/\"&$E$1&\"/\"&A74),\"\")","v":""},null,null,null,null,null,null,null,null,null,null,null,null,null,null,null,null,null,null,null,null,26,6]
[null,"",null,null,null,null,null,null,null,null,null,null,null,null,null,null,null,null,null,null,null,null,27,7]
[null,"",null,null,null,null,null,null,null,null,null,null,null,null,null,null,null,null,null,null,null,null,28,1]
[null,"",null,null,null,null,null,null,null,null,null,null,null,null,null,null,null,null,null,null,null,null,29,2]
[null,"",null,null,null,null,null,null,null,null,null,null,null,null,null,null,null,null,null,null,null,null,30,3]
[null,"",null,null,null,null,null,null,null,null,null,null,null,null,null,null,null,null,null,null,null,null,31,4]
[null,""]
[null,""]
[null,""]
[null,""]
["合　　　　　　計",null,null,null,null,null,null,{"$f":"COUNTA(H9:H83)","v":0},{"$f":"COUNTA(I9:I83)","v":0},{"$f":"SUM(J9:J83)","v":0},0,0,0,0,0,0,0,0,0,{"$f":"COUNTA(T9:T83)","v":0}]
[null,null,null,null,null,null,null,{"$f":"IF(H84=I84,\"\",\"※↑「内容」↑「分野」の件数が一致するように入力してください。\")","v":""},null,null,null,null,null,null,null,null,null,null,null,{"$f":"IF(T84>31,\"↑\",\"\")","v":""}]
[{"$f":"IF(B119<>T84,\"報告日数（A列）と活動日数（T列）が一致していません。活動日数（T列）は一日に一つだけ【〇】を入力してください。\",\"\")","v":""},null,null,null,null,null,null,null,null,null,null,null,null,null,null,null,null,null,null,{"$f":"IF(T84>31,\"活動日数が今月の日数を越えないように訂正してください。\",\"\")","v":""}]
[]
[{"$f":"COUNTIF($A$9:$A$83,1)","v":0},{"$f":"COUNTIF(A88,\">=1\" )","v":0}]
[{"$f":"COUNTIF($A$9:$A$83,2)","v":0},{"$f":"COUNTIF(A89,\">=1\" )","v":0}]
[{"$f":"COUNTIF($A$9:$A$83,3)","v":0},0]
[{"$f":"COUNTIF($A$9:$A$83,4)","v":0},0]
[{"$f":"COUNTIF($A$9:$A$83,5)","v":0},0]
[{"$f":"COUNTIF($A$9:$A$83,6)","v":0},0]
[{"$f":"COUNTIF($A$9:$A$83,7)","v":0},0]
[{"$f":"COUNTIF($A$9:$A$83,8)","v":0},0]
[{"$f":"COUNTIF($A$9:$A$83,9)","v":0},0]
[{"$f":"COUNTIF($A$9:$A$83,10)","v":0},0]
[{"$f":"COUNTIF($A$9:$A$83,11)","v":0},0]
[{"$f":"COUNTIF($A$9:$A$83,12)","v":0},0]
[{"$f":"COUNTIF($A$9:$A$83,13)","v":0},0]
[{"$f":"COUNTIF($A$9:$A$83,14)","v":0},0]
[{"$f":"COUNTIF($A$9:$A$83,15)","v":0},0]
[{"$f":"COUNTIF($A$9:$A$83,16)","v":0},0]
[{"$f":"COUNTIF($A$9:$A$83,17)","v":0},0]
[{"$f":"COUNTIF($A$9:$A$83,18)","v":0},0]
[{"$f":"COUNTIF($A$9:$A$83,19)","v":0},0]
[{"$f":"COUNTIF($A$9:$A$83,20)","v":0},0]
[{"$f":"COUNTIF($A$9:$A$83,21)","v":0},0]
[{"$f":"COUNTIF($A$9:$A$83,22)","v":0},0]
[{"$f":"COUNTIF($A$9:$A$83,23)","v":0},0]
[{"$f":"COUNTIF($A$9:$A$83,24)","v":0},0]
[{"$f":"COUNTIF($A$9:$A$83,25)","v":0},0]
[{"$f":"COUNTIF($A$9:$A$83,26)","v":0},0]
[{"$f":"COUNTIF($A$9:$A$83,27)","v":0},0]
[{"$f":"COUNTIF($A$9:$A$83,28)","v":0},0]
[{"$f":"COUNTIF($A$9:$A$83,29)","v":0},0]
[{"$f":"COUNTIF($A$9:$A$83,30)","v":0},0]
[{"$f":"COUNTIF($A$9:$A$83,31)","v":0},0]
[null,{"$f":"SUM(B88:B118)","v":0}]

{"sheet":"6月","index":12,"n_rows":119,"n_cols":43,"rows_kept":119,"cut":false,"hidden":false,"merged":[[16,29,16,34],[16,35,16,36],[16,37,16,38],[0,15,0,19],[1,15,1,19],[0,13,0,14],[1,13,1,14],[4,8,6,8],[0,0,0,2],[1,22,1,27],[5,24,6,27],[4,23,4,27],[4,18,6,18],[4,17,6,17],[4,16,6,16],[4,15,6,15],[4,14,6,14],[4,13,6,13],[4,12,6,12],[8,21,8,22],[9,22,9,27],[61,2,61,6],[69,2,69,6],[67,2,67,6],[68,2,68,6],[4,7,6,7],[55,2,55,6],[56,2,56,6],[57,2,57,6],[60,2,60,6],[47,2,47,6],[48,2,48,6],[65,2,65,6],[66,2,66,6],[49,2,49,6],[50,2,50,6],[58,2,58,6],[59,2,59,6],[54,2,54,6],[64,2,64,6],[63,2,63,6],[62,2,62,6],[33,2,33,6],[38,2,38,6],[43,2,43,6],[81,2,81,6],[71,2,71,6],[72,2,72,6],[73,2,73,6],[80,2,80,6],[70,2,70,6],[79,2,79,6],[75,2,75,6],[76,2,76,6],[77,2,77,6],[78,2,78,6],[74,2,74,6],[44,2,44,6],[45,2,45,6],[46,2,46,6],[40,2,40,6],[15,2,15,6],[11,2,11,6],[19,2,19,6],[20,2,20,6],[21,2,21,6],[30,2,30,6],[17,2,17,6],[51,2,51,6],[52,2,52,6],[53,2,53,6],[39,22,40,23],[29,2,29,6],[22,2,22,6],[23,2,23,6],[24,2,24,6],[25,2,25,6],[26,2,26,6],[28,2,28,6],[27,2,27,6],[31,2,31,6],[46,22,46,24],[32,2,32,6],[37,2,37,6],[41,2,41,6],[42,22,43,23],[26,23,30,23],[32,22,37,23],[11,22,30,22],[11,23,25,23],[31,22,31,27],[42,2,42,6],[83,0,83,6],[3,19,6,19],[3,9,3,14],[3,7,3,8],[13,2,13,6],[10,2,10,6],[3,0,7,1],[3,17,3,18],[3,15,3,16],[18,2,18,6],[12,2,12,6],[16,2,16,6],[3,2,7,6],[8,2,8,6],[4,11,6,11],[4,10,6,10],[82,2,82,6],[34,2,34,6],[35,2,35,6],[36,2,36,6],[39,2,39,6],[9,2,9,6],[14,2,14,6],[4,9,6,9]]}
[{"$f":"'4月'!$A$1","v":2023},null,null,"年",6,"月 の","民生委員･児童委員   活動記録内容",null,null,null,null,null,null,"民児協名：",null,{"$f":"総合計!L3","v":0},null,null,null,null,null,null,"民生委員番号"]
[{"$f":"IF(B119<>T84,\"報告日数（A列）と活動日数（T列）が一致していません。活動日数（T列）は一日に一つだけ【〇】を入力してください。\",\"\")","v":""},null,null,null,null,null,null,null,null,null,null,null,null,"氏 　　名：",null,{"$f":"総合計!L5","v":0},null,null,null,null,null,null,{"$f":"総合計!L2","v":0}]
[null,null,null,null,null,null,null,{"$f":"IF(H84=I84,\"\",\"※↓「内容」↓「分野」の件数が一致するように入力してください。\")","v":""},null,null,null,null,null,null,null,null,null,null,null,{"$f":"IF(T84>30,\"活動日数が今月の日数を越えないように訂正してください。\",\"\")","v":""}]
["日・曜日",null,"活 動 概 要",null,null,null,null,"相談･支援活動",null,"その他の活動",null,null,null,null,null,"訪問回数",null,"連絡調整回数",null,"活動日数",null,null,"民児協名:"]
[null,null,null,null,null,null,null,"内容","分野","調査・\n実態把握","行事･事業･会議への参加 ･協力","地域福祉活動 ･自主活動","民児協\n運営･研修","証明(調査・確認等)事務","要保護児童の発見の通告･仲介","訪問･\n連絡活動","その他","委員相互","その他の\n関係機関",null,null,null,null,{"$f":"総合計!L3","v":0}]
[null,null,null,null,null,null,null,null,null,null,null,null,null,null,null,null,null,null,null,null,null,null,"氏名：",null,{"$f":"総合計!L5","v":0}]
[]
[null,null,null,null,null,null,null,"(1)～(14)","(16)～(19)","(1)","(2)","(3)","(4)","(5)","(6)","(7)","(8)","(9)","(10)","(11)",null,null,null,null,null,null,null,null,null,"■会長報告用（データ）"]
[null,{"$f":"IF(A9<>\"\",WEEKDAY($A$1&\"/\"&$E$1&\"/\"&A9),\"\")","v":""},null,null,null,null,null,null,null,null,null,null,null,null,null,null,null,null,null,null,null,{"$f":"A1","v":2023},null,"年","6月分",null,null,null,null,"民児協の会長へデータで活動件数等をご報告する場合は下のデータをご利用ください。"]
[null,{"$f":"IF(A10<>\"\",WEEKDAY($A$1&\"/\"&$E$1&\"/\"&A10),\"\")","v":""},null,null,null,null,null,null,null,null,null,null,null,null,null,null,null,null,null,null,null,null," 活動件数 集計報告書 "]
[null,"",null,null,null,null,null,null,null,null,null,null,null,null,null,null,null,null,null,null,null,null,null,null,null,null,null,null,null,"相談・支援活動（内容別）"]
[null,"",null,null,null,null,null,null,null,null,null,null,null,null,null,null,null,null,null,null,null,null,"相談・支援活動","（内容別）","在　宅　福　祉","(1)",{"$f":"COUNTIF($H$9:$H$83,1)","v":0},"件",null,"(1)","(2)","(3)","(4)","(5)","(6)","(7)","(8)","(9)","(10)","(11)","(12)","(13)","(14)"]
[null,"",null,null,null,null,null,null,null,null,null,null,null,null,null,null,null,null,null,null,null,null,null,null,"介　護　保　険","(2)",{"$f":"COUNTIF($H$9:$H$83,2)","v":0},null,null,{"$f":"AA12","v":0},{"$f":"AA13","v":0},{"$f":"AA14","v":0},{"$f":"AA15","v":0},{"$f":"AA16","v":0},{"$f":"AA17","v":0},{"$f":"AA18","v":0},{"$f":"AA19","v":0},{"$f":"AA20","v":0},{"$f":"AA21","v":0},{"$f":"AA22","v":0},{"$f":"AA23","v":0},{"$f":"AA24","v":0},{"$f":"AA25","v":0}]
[null,"",null,null,null,null,null,null,null,null,null,null,null,null,null,null,null,null,null,null,null,null,null,null,"健康・保健医療","(3)",{"$f":"COUNTIF($H$9:$H$83,3)","v":0},null,null,"相談・支援活動（分野別）"]
[null,"",null,null,null,null,null,null,null,null,null,null,null,null,null,null,null,null,null,null,null,null,null,null,"子育て・母子保健","(4)",{"$f":"COUNTIF($H$9:$H$83,4)","v":0},null,null,"(16)","(17)","(18)","(19)"]
[null,"",null,null,null,null,null,null,null,null,null,null,null,null,null,null,null,null,null,null,null,null,null,null,"子どもの地域生活","(5)",{"$f":"COUNTIF($H$9:$H$83,5)","v":0},null,null,{"$f":"AA27","v":0},{"$f":"AA28","v":0},{"$f":"AA29","v":0},{"$f":"AA30","v":0}]
[null,"",null,null,null,null,null,null,null,null,null,null,null,null,null,null,null,null,null,null,null,null,null,null,"子どもの教育･学校生活","(6)",{"$f":"COUNTIF($H$9:$H$83,6)","v":0},null,null,"その他活動",null,null,null,null,null,"訪問回数",null,"連絡調整回数",null,"活動日数"]
[null,"",null,null,null,null,null,null,null,null,null,null,null,null,null,null,null,null,null,null,null,null,null,null,"生　　活　　費","(7)",{"$f":"COUNTIF($H$9:$H$83,7)","v":0},null,null,"(1)","(2)","(3)","(4)","(5)","(6)","(7)","(8)","(9)","(10)","(11)"]
[null,"",null,null,null,null,null,null,null,null,null,null,null,null,null,null,null,null,null,null,null,null,null,null,"年　金・保　険","(8)",{"$f":"COUNTIF($H$9:$H$83,8)","v":0},null,null,{"$f":"AA33","v":0},{"$f":"AA34","v":0},{"$f":"AA35","v":0},{"$f":"AA36","v":0},{"$f":"AA37","v":0},{"$f":"AA38","v":0},{"$f":"AA40","v":0},{"$f":"AA41","v":0},{"$f":"AA43","v":0},{"$f":"AA44","v":0},{"$f":"AA46","v":0}]
[null,"",null,null,null,null,null,null,null,null,null,null,null,null,null,null,null,null,null,null,null,null,null,null,"仕　　　　　事","(9)",{"$f":"COUNTIF($H$9:$H$83,9)","v":0}]
[null,"",null,null,null,null,null,null,null,null,null,null,null,null,null,null,null,null,null,null,null,null,null,null,"家　族　関　係","(10)",{"$f":"COUNTIF($H$9:$H$83,10)","v":0}]
[null,"",null,null,null,null,null,null,null,null,null,null,null,null,null,null,null,null,null,null,null,null,null,null,"住　　　　　居","(11)",{"$f":"COUNTIF($H$9:$H$83,11)","v":0}]
[null,"",null,null,null,null,null,null,null,null,null,null,null,null,null,null,null,null,null,null,null,null,null,null,"生　活　環　境","(12)",{"$f":"COUNTIF($H$9:$H$83,12)","v":0}]
[null,"",null,null,null,null,null,null,null,null,null,null,null,null,null,null,null,null,null,null,null,null,null,null,"日 常 的 な 支 援","(13)",{"$f":"COUNTIF($H$9:$H$83,13)","v":0}]
[null,"",null,null,null,null,null,null,null,null,null,null,null,null,null,null,null,null,null,null,null,null,null,null,"そ　　の　　他","(14)",{"$f":"COUNTIF($H$9:$H$83,14)","v":0}]
[null,"",null,null,null,null,null,null,null,null,null,null,null,null,null,null,null,null,null,null,null,null,null,null,"計","(15)",{"$f":"SUM(AA12:AA25)","v":0}]
[null,"",null,null,null,null,null,null,null,null,null,null,null,null,null,null,null,null,null,null,null,null,null,"（分野別）","高齢者に関すること","(16)",{"$f":"COUNTIF($I$9:$I$83,16)","v":0},"件"]
[null,"",null,null,null,null,null,null,null,null,null,null,null,null,null,null,null,null,null,null,null,null,null,null,"障害者に関すること","(17)",{"$f":"COUNTIF($I$9:$I$83,17)","v":0}]
[null,"",null,null,null,null,null,null,null,null,null,null,null,null,null,null,null,null,null,null,null,null,null,null,"子どもに関すること","(18)",{"$f":"COUNTIF($I$9:$I$83,18)","v":0}]
[null,"",null,null,null,null,null,null,null,null,null,null,null,null,null,null,null,null,null,null,null,null,null,null,"そ　　の　　他","(19)",{"$f":"COUNTIF($I$9:$I$83,19)","v":0}]
[null,"",null,null,null,null,null,null,null,null,null,null,null,null,null,null,null,null,null,null,null,null,null,null,"計","(20)",{"$f":"SUM(AA27:AA30)","v":0}]
[null,"",null,null,null,null,null,null,null,null,null,null,null,null,null,null,null,null,null,null,null,null,"　※(15)と(20)の合計件数は一致　"]
[null,"",null,null,null,null,null,null,null,null,null,null,null,null,null,null,null,null,null,null,null,null,"その他の活動",null,"調査・実態把握","(1)",{"$f":"J84","v":0},"件"]
[null,"",null,null,null,null,null,null,null,null,null,null,null,null,null,null,null,null,null,null,null,null,null,null,"行事・事業・会議への参加・協力","(2)",{"$f":"K84","v":0}]
[null,"",null,null,null,null,null,null,null,null,null,null,null,null,null,null,null,null,null,null,null,null,null,null,"地域福祉活動･自主活動","(3)",{"$f":"L84","v":0}]
[null,"",null,null,null,null,null,null,null,null,null,null,null,null,null,null,null,null,null,null,null,null,null,null,"民児協運営・研修","(4)",{"$f":"M84","v":0}]
[null,"",null,null,null,null,null,null,null,null,null,null,null,null,null,null,null,null,null,null,null,null,null,null,"証　明　事　務","(5)",{"$f":"N84","v":0}]
[null,"",null,null,null,null,null,null,null,null,null,null,null,null,null,null,null,null,null,null,null,null,null,null,"要保護児童の発見の通告･仲介","(6)",{"$f":"O84","v":0}]
[null,""]
[null,"",null,null,null,null,null,null,null,null,null,null,null,null,null,null,null,null,null,null,null,null,"訪問回数",null,"訪問・連絡活動","(7)",{"$f":"P84","v":0},"回"]
[null,"",null,null,null,null,null,null,null,null,null,null,null,null,null,null,null,null,null,null,null,null,null,null,"そ 　の　 他","(8)",{"$f":"Q84","v":0}]
[null,""]
[null,"",null,null,null,null,null,null,null,null,null,null,null,null,null,null,null,null,null,null,null,null,"連絡調整回数",null,"委　員　相　互","(9)",{"$f":"R84","v":0},"回"]
[null,"",null,null,null,null,null,null,null,null,null,null,null,null,null,null,null,null,null,null,null,null,null,null,"その他の関係機関","(10)",{"$f":"S84","v":0}]
[null,""]
[null,"",null,null,null,null,null,null,null,null,null,null,null,null,null,null,null,null,null,null,null,null,null,null,"活　動　日　数","(11)",{"$f":"T84","v":0},"日"]
[null,"",null,null,null,null,null,null,null,null,null,null,null,null,null,null,null,null,null,null,null,null,{"$f":"A1&\"年\"&E1&\"月\"","v":"2023年6月"}]
[null,"",null,null,null,null,null,null,null,null,null,null,null,null,null,null,null,null,null,null,null,null,"日","曜"]
[null,"",null,null,null,null,null,null,null,null,null,null,null,null,null,null,null,null,null,null,null,null,1,{"$f":"WEEKDAY($A$1&\"/\"&$E$1&\"/\"&W49)","v":5}]
[null,"",null,null,null,null,null,null,null,null,null,null,null,null,null,null,null,null,null,null,null,null,2,{"$f":"WEEKDAY($A$1&\"/\"&$E$1&\"/\"&W50)","v":6}]
[null,"",null,null,null,null,null,null,null,null,null,null,null,null,null,null,null,null,null,null,null,null,3,7]
[null,"",null,null,null,null,null,null,null,null,null,null,null,null,null,null,null,null,null,null,null,null,4,1]
[null,"",null,null,null,null,null,null,null,null,null,null,null,null,null,null,null,null,null,null,null,null,5,2]
[null,"",null,null,null,null,null,null,null,null,null,null,null,null,null,null,null,null,null,null,null,null,6,3]
[null,"",null,null,null,null,null,null,null,null,null,null,null,null,null,null,null,null,null,null,null,null,7,4]
[null,"",null,null,null,null,null,null,null,null,null,null,null,null,null,null,null,null,null,null,null,null,8,5]
[null,"",null,null,null,null,null,null,null,null,null,null,null,null,null,null,null,null,null,null,null,null,9,6]
[null,"",null,null,null,null,null,null,null,null,null,null,null,null,null,null,null,null,null,null,null,null,10,7]
[null,"",null,null,null,null,null,null,null,null,null,null,null,null,null,null,null,null,null,null,null,null,11,1]
[null,"",null,null,null,null,null,null,null,null,null,null,null,null,null,null,null,null,null,null,null,null,12,2]
[null,"",null,null,null,null,null,null,null,null,null,null,null,null,null,null,null,null,null,null,null,null,13,3]
[null,"",null,null,null,null,null,null,null,null,null,null,null,null,null,null,null,null,null,null,null,null,14,4]
[null,"",null,null,null,null,null,null,null,null,null,null,null,null,null,null,null,null,null,null,null,null,15,5]
[null,"",null,null,null,null,null,null,null,null,null,null,null,null,null,null,null,null,null,null,null,null,16,6]
[null,"",null,null,null,null,null,null,null,null,null,null,null,null,null,null,null,null,null,null,null,null,17,7]
[null,"",null,null,null,null,null,null,null,null,null,null,null,null,null,null,null,null,null,null,null,null,18,1]
[null,"",null,null,null,null,null,null,null,null,null,null,null,null,null,null,null,null,null,null,null,null,19,2]
[null,"",null,null,null,null,null,null,null,null,null,null,null,null,null,null,null,null,null,null,null,null,20,3]
[null,"",null,null,null,null,null,null,null,null,null,null,null,null,null,null,null,null,null,null,null,null,21,4]
[null,"",null,null,null,null,null,null,null,null,null,null,null,null,null,null,null,null,null,null,null,null,22,5]
[null,"",null,null,null,null,null,null,null,null,null,null,null,null,null,null,null,null,null,null,null,null,23,6]
[null,"",null,null,null,null,null,null,null,null,null,null,null,null,null,null,null,null,null,null,null,null,24,7]
[null,"",null,null,null,null,null,null,null,null,null,null,null,null,null,null,null,null,null,null,null,null,25,1]
[null,{"$f":"IF(A74<>\"\",WEEKDAY($A$1&\"/\"&$E$1&\"/\"&A74),\"\")","v":""},null,null,null,null,null,null,null,null,null,null,null,null,null,null,null,null,null,null,null,null,26,2]
[null,"",null,null,null,null,null,null,null,null,null,null,null,null,null,null,null,null,null,null,null,null,27,3]
[null,"",null,null,null,null,null,null,null,null,null,null,null,null,null,null,null,null,null,null,null,null,28,4]
[null,"",null,null,null,null,null,null,null,null,null,null,null,null,null,null,null,null,null,null,null,null,29,5]
[null,"",null,null,null,null,null,null,null,null,null,null,null,null,null,null,null,null,null,null,null,null,30,6]
[null,""]
[null,""]
[null,""]
[null,""]
[null,""]
["合　　　　　　計",null,null,null,null,null,null,{"$f":"COUNTA(H9:H83)","v":0},{"$f":"COUNTA(I9:I83)","v":0},{"$f":"SUM(J9:J83)","v":0},0,0,0,0,0,0,0,0,0,{"$f":"COUNTA(T9:T83)","v":0}]
[null,null,null,null,null,null,null,{"$f":"IF(H84=I84,\"\",\"※↑「内容」↑「分野」の件数が一致するように入力してください。\")","v":""},null,null,null,null,null,null,null,null,null,null,null,{"$f":"IF(T84>30,\"↑\",\"\")","v":""}]
[{"$f":"IF(B119<>T84,\"報告日数（A列）と活動日数（T列）が一致していません。活動日数（T列）は一日に一つだけ【〇】を入力してください。\",\"\")","v":""},null,null,null,null,null,null,null,null,null,null,null,null,null,null,null,null,null,null,{"$f":"IF(T84>30,\"活動日数が今月の日数を越えないように訂正してください。\",\"\")","v":""}]
[]
[{"$f":"COUNTIF($A$9:$A$83,1)","v":0},{"$f":"COUNTIF(A88,\">=1\" )","v":0}]
[{"$f":"COUNTIF($A$9:$A$83,2)","v":0},{"$f":"COUNTIF(A89,\">=1\" )","v":0}]
[{"$f":"COUNTIF($A$9:$A$83,3)","v":0},0]
[{"$f":"COUNTIF($A$9:$A$83,4)","v":0},0]
[{"$f":"COUNTIF($A$9:$A$83,5)","v":0},0]
[{"$f":"COUNTIF($A$9:$A$83,6)","v":0},0]
[{"$f":"COUNTIF($A$9:$A$83,7)","v":0},0]
[{"$f":"COUNTIF($A$9:$A$83,8)","v":0},0]
[{"$f":"COUNTIF($A$9:$A$83,9)","v":0},0]
[{"$f":"COUNTIF($A$9:$A$83,10)","v":0},0]
[{"$f":"COUNTIF($A$9:$A$83,11)","v":0},0]
[{"$f":"COUNTIF($A$9:$A$83,12)","v":0},0]
[{"$f":"COUNTIF($A$9:$A$83,13)","v":0},0]
[{"$f":"COUNTIF($A$9:$A$83,14)","v":0},0]
[{"$f":"COUNTIF($A$9:$A$83,15)","v":0},0]
[{"$f":"COUNTIF($A$9:$A$83,16)","v":0},0]
[{"$f":"COUNTIF($A$9:$A$83,17)","v":0},0]
[{"$f":"COUNTIF($A$9:$A$83,18)","v":0},0]
[{"$f":"COUNTIF($A$9:$A$83,19)","v":0},0]
[{"$f":"COUNTIF($A$9:$A$83,20)","v":0},0]
[{"$f":"COUNTIF($A$9:$A$83,21)","v":0},0]
[{"$f":"COUNTIF($A$9:$A$83,22)","v":0},0]
[{"$f":"COUNTIF($A$9:$A$83,23)","v":0},0]
[{"$f":"COUNTIF($A$9:$A$83,24)","v":0},0]
[{"$f":"COUNTIF($A$9:$A$83,25)","v":0},0]
[{"$f":"COUNTIF($A$9:$A$83,26)","v":0},0]
[{"$f":"COUNTIF($A$9:$A$83,27)","v":0},0]
[{"$f":"COUNTIF($A$9:$A$83,28)","v":0},0]
[{"$f":"COUNTIF($A$9:$A$83,29)","v":0},0]
[{"$f":"COUNTIF($A$9:$A$83,30)","v":0},0]
[{"$f":"COUNTIF($A$9:$A$83,31)","v":0},0]
[null,{"$f":"SUM(B88:B118)","v":0}]

{"sheet":"7月","index":13,"n_rows":119,"n_cols":43,"rows_kept":119,"cut":false,"hidden":false,"merged":[[16,29,16,34],[16,35,16,36],[16,37,16,38],[15,2,15,6],[8,2,8,6],[0,0,0,2],[4,10,6,10],[4,9,6,9],[4,18,6,18],[4,17,6,17],[4,16,6,16],[4,15,6,15],[4,14,6,14],[4,13,6,13],[3,0,7,1],[3,17,3,18],[3,15,3,16],[4,11,6,11],[0,15,0,19],[0,13,0,14],[26,2,26,6],[27,2,27,6],[28,2,28,6],[5,24,6,27],[4,23,4,27],[83,0,83,6],[3,19,6,19],[3,9,3,14],[3,7,3,8],[13,2,13,6],[8,21,8,22],[42,22,43,23],[26,23,30,23],[32,22,37,23],[11,22,30,22],[11,23,25,23],[4,12,6,12],[31,22,31,27],[39,22,40,23],[9,22,9,27],[17,2,17,6],[3,2,7,6],[9,2,9,6],[14,2,14,6],[82,2,82,6],[33,2,33,6],[34,2,34,6],[35,2,35,6],[36,2,36,6],[39,2,39,6],[40,2,40,6],[43,2,43,6],[44,2,44,6],[58,2,58,6],[51,2,51,6],[52,2,52,6],[53,2,53,6],[59,2,59,6],[45,2,45,6],[81,2,81,6],[71,2,71,6],[72,2,72,6],[73,2,73,6],[80,2,80,6],[70,2,70,6],[74,2,74,6],[61,2,61,6],[62,2,62,6],[64,2,64,6],[1,22,1,27],[46,22,46,24],[1,15,1,19],[1,13,1,14],[30,2,30,6],[31,2,31,6],[32,2,32,6],[37,2,37,6],[41,2,41,6],[38,2,38,6],[49,2,49,6],[54,2,54,6],[48,2,48,6],[50,2,50,6],[11,2,11,6],[10,2,10,6],[12,2,12,6],[16,2,16,6],[29,2,29,6],[22,2,22,6],[23,2,23,6],[24,2,24,6],[25,2,25,6],[79,2,79,6],[75,2,75,6],[76,2,76,6],[77,2,77,6],[78,2,78,6],[4,8,6,8],[4,7,6,7],[55,2,55,6],[56,2,56,6],[57,2,57,6],[19,2,19,6],[20,2,20,6],[21,2,21,6],[18,2,18,6],[60,2,60,6],[47,2,47,6],[46,2,46,6],[42,2,42,6],[63,2,63,6],[69,2,69,6],[67,2,67,6],[68,2,68,6],[65,2,65,6],[66,2,66,6]]}
[{"$f":"'4月'!$A$1","v":2023},null,null,"年",7,"月 の","民生委員･児童委員   活動記録内容",null,null,null,null,null,null,"民児協名：",null,{"$f":"総合計!L3","v":0},null,null,null,null,null,null,"民生委員番号"]
[{"$f":"IF(B119<>T84,\"報告日数（A列）と活動日数（T列）が一致していません。活動日数（T列）は一日に一つだけ【〇】を入力してください。\",\"\")","v":""},null,null,null,null,null,null,null,null,null,null,null,null,"氏 　　名：",null,{"$f":"総合計!L5","v":0},null,null,null,null,null,null,{"$f":"総合計!L2","v":0}]
[null,null,null,null,null,null,null,{"$f":"IF(H84=I84,\"\",\"※↓「内容」↓「分野」の件数が一致するように入力してください。\")","v":""},null,null,null,null,null,null,null,null,null,null,null,{"$f":"IF(T84>31,\"活動日数が今月の日数を越えないように訂正してください。\",\"\")","v":""}]
["日・曜日",null,"活 動 概 要",null,null,null,null,"相談･支援活動",null,"その他の活動",null,null,null,null,null,"訪問回数",null,"連絡調整回数",null,"活動日数",null,null,"民児協名:"]
[null,null,null,null,null,null,null,"内容","分野","調査・\n実態把握","行事･事業･会議への参加 ･協力","地域福祉活動 ･自主活動","民児協\n運営･研修","証明(調査・確認等)事務","要保護児童の発見の通告･仲介","訪問･\n連絡活動","その他","委員相互","その他の\n関係機関",null,null,null,null,{"$f":"総合計!L3","v":0}]
[null,null,null,null,null,null,null,null,null,null,null,null,null,null,null,null,null,null,null,null,null,null,"氏名：",null,{"$f":"総合計!L5","v":0}]
[]
[null,null,null,null,null,null,null,"(1)～(14)","(16)～(19)","(1)","(2)","(3)","(4)","(5)","(6)","(7)","(8)","(9)","(10)","(11)",null,null,null,null,null,null,null,null,null,"■会長報告用（データ）"]
[null,{"$f":"IF(A9<>\"\",WEEKDAY($A$1&\"/\"&$E$1&\"/\"&A9),\"\")","v":""},null,null,null,null,null,null,null,null,null,null,null,null,null,null,null,null,null,null,null,{"$f":"A1","v":2023},null,"年","7月分",null,null,null,null,"民児協の会長へデータで活動件数等をご報告する場合は下のデータをご利用ください。"]
[null,{"$f":"IF(A10<>\"\",WEEKDAY($A$1&\"/\"&$E$1&\"/\"&A10),\"\")","v":""},null,null,null,null,null,null,null,null,null,null,null,null,null,null,null,null,null,null,null,null," 活動件数 集計報告書 "]
[null,"",null,null,null,null,null,null,null,null,null,null,null,null,null,null,null,null,null,null,null,null,null,null,null,null,null,null,null,"相談・支援活動（内容別）"]
[null,"",null,null,null,null,null,null,null,null,null,null,null,null,null,null,null,null,null,null,null,null,"相談・支援活動","（内容別）","在　宅　福　祉","(1)",{"$f":"COUNTIF($H$9:$H$83,1)","v":0},"件",null,"(1)","(2)","(3)","(4)","(5)","(6)","(7)","(8)","(9)","(10)","(11)","(12)","(13)","(14)"]
[null,"",null,null,null,null,null,null,null,null,null,null,null,null,null,null,null,null,null,null,null,null,null,null,"介　護　保　険","(2)",{"$f":"COUNTIF($H$9:$H$83,2)","v":0},null,null,{"$f":"AA12","v":0},{"$f":"AA13","v":0},{"$f":"AA14","v":0},{"$f":"AA15","v":0},{"$f":"AA16","v":0},{"$f":"AA17","v":0},{"$f":"AA18","v":0},{"$f":"AA19","v":0},{"$f":"AA20","v":0},{"$f":"AA21","v":0},{"$f":"AA22","v":0},{"$f":"AA23","v":0},{"$f":"AA24","v":0},{"$f":"AA25","v":0}]
[null,"",null,null,null,null,null,null,null,null,null,null,null,null,null,null,null,null,null,null,null,null,null,null,"健康・保健医療","(3)",{"$f":"COUNTIF($H$9:$H$83,3)","v":0},null,null,"相談・支援活動（分野別）"]
[null,"",null,null,null,null,null,null,null,null,null,null,null,null,null,null,null,null,null,null,null,null,null,null,"子育て・母子保健","(4)",{"$f":"COUNTIF($H$9:$H$83,4)","v":0},null,null,"(16)","(17)","(18)","(19)"]
[null,"",null,null,null,null,null,null,null,null,null,null,null,null,null,null,null,null,null,null,null,null,null,null,"子どもの地域生活","(5)",{"$f":"COUNTIF($H$9:$H$83,5)","v":0},null,null,{"$f":"AA27","v":0},{"$f":"AA28","v":0},{"$f":"AA29","v":0},{"$f":"AA30","v":0}]
[null,"",null,null,null,null,null,null,null,null,null,null,null,null,null,null,null,null,null,null,null,null,null,null,"子どもの教育･学校生活","(6)",{"$f":"COUNTIF($H$9:$H$83,6)","v":0},null,null,"その他活動",null,null,null,null,null,"訪問回数",null,"連絡調整回数",null,"活動日数"]
[null,"",null,null,null,null,null,null,null,null,null,null,null,null,null,null,null,null,null,null,null,null,null,null,"生　　活　　費","(7)",{"$f":"COUNTIF($H$9:$H$83,7)","v":0},null,null,"(1)","(2)","(3)","(4)","(5)","(6)","(7)","(8)","(9)","(10)","(11)"]
[null,"",null,null,null,null,null,null,null,null,null,null,null,null,null,null,null,null,null,null,null,null,null,null,"年　金・保　険","(8)",{"$f":"COUNTIF($H$9:$H$83,8)","v":0},null,null,{"$f":"AA33","v":0},{"$f":"AA34","v":0},{"$f":"AA35","v":0},{"$f":"AA36","v":0},{"$f":"AA37","v":0},{"$f":"AA38","v":0},{"$f":"AA40","v":0},{"$f":"AA41","v":0},{"$f":"AA43","v":0},{"$f":"AA44","v":0},{"$f":"AA46","v":0}]
[null,"",null,null,null,null,null,null,null,null,null,null,null,null,null,null,null,null,null,null,null,null,null,null,"仕　　　　　事","(9)",{"$f":"COUNTIF($H$9:$H$83,9)","v":0}]
[null,"",null,null,null,null,null,null,null,null,null,null,null,null,null,null,null,null,null,null,null,null,null,null,"家　族　関　係","(10)",{"$f":"COUNTIF($H$9:$H$83,10)","v":0}]
[null,"",null,null,null,null,null,null,null,null,null,null,null,null,null,null,null,null,null,null,null,null,null,null,"住　　　　　居","(11)",{"$f":"COUNTIF($H$9:$H$83,11)","v":0}]
[null,"",null,null,null,null,null,null,null,null,null,null,null,null,null,null,null,null,null,null,null,null,null,null,"生　活　環　境","(12)",{"$f":"COUNTIF($H$9:$H$83,12)","v":0}]
[null,"",null,null,null,null,null,null,null,null,null,null,null,null,null,null,null,null,null,null,null,null,null,null,"日 常 的 な 支 援","(13)",{"$f":"COUNTIF($H$9:$H$83,13)","v":0}]
[null,"",null,null,null,null,null,null,null,null,null,null,null,null,null,null,null,null,null,null,null,null,null,null,"そ　　の　　他","(14)",{"$f":"COUNTIF($H$9:$H$83,14)","v":0}]
[null,"",null,null,null,null,null,null,null,null,null,null,null,null,null,null,null,null,null,null,null,null,null,null,"計","(15)",{"$f":"SUM(AA12:AA25)","v":0}]
[null,"",null,null,null,null,null,null,null,null,null,null,null,null,null,null,null,null,null,null,null,null,null,"（分野別）","高齢者に関すること","(16)",{"$f":"COUNTIF($I$9:$I$83,16)","v":0},"件"]
[null,"",null,null,null,null,null,null,null,null,null,null,null,null,null,null,null,null,null,null,null,null,null,null,"障害者に関すること","(17)",{"$f":"COUNTIF($I$9:$I$83,17)","v":0}]
[null,"",null,null,null,null,null,null,null,null,null,null,null,null,null,null,null,null,null,null,null,null,null,null,"子どもに関すること","(18)",{"$f":"COUNTIF($I$9:$I$83,18)","v":0}]
[null,"",null,null,null,null,null,null,null,null,null,null,null,null,null,null,null,null,null,null,null,null,null,null,"そ　　の　　他","(19)",{"$f":"COUNTIF($I$9:$I$83,19)","v":0}]
[null,"",null,null,null,null,null,null,null,null,null,null,null,null,null,null,null,null,null,null,null,null,null,null,"計","(20)",{"$f":"SUM(AA27:AA30)","v":0}]
[null,"",null,null,null,null,null,null,null,null,null,null,null,null,null,null,null,null,null,null,null,null,"　※(15)と(20)の合計件数は一致　"]
[null,"",null,null,null,null,null,null,null,null,null,null,null,null,null,null,null,null,null,null,null,null,"その他の活動",null,"調査・実態把握","(1)",{"$f":"J84","v":0},"件"]
[null,"",null,null,null,null,null,null,null,null,null,null,null,null,null,null,null,null,null,null,null,null,null,null,"行事・事業・会議への参加・協力","(2)",{"$f":"K84","v":0}]
[null,"",null,null,null,null,null,null,null,null,null,null,null,null,null,null,null,null,null,null,null,null,null,null,"地域福祉活動･自主活動","(3)",{"$f":"L84","v":0}]
[null,"",null,null,null,null,null,null,null,null,null,null,null,null,null,null,null,null,null,null,null,null,null,null,"民児協運営・研修","(4)",{"$f":"M84","v":0}]
[null,"",null,null,null,null,null,null,null,null,null,null,null,null,null,null,null,null,null,null,null,null,null,null,"証　明　事　務","(5)",{"$f":"N84","v":0}]
[null,"",null,null,null,null,null,null,null,null,null,null,null,null,null,null,null,null,null,null,null,null,null,null,"要保護児童の発見の通告･仲介","(6)",{"$f":"O84","v":0}]
[null,""]
[null,"",null,null,null,null,null,null,null,null,null,null,null,null,null,null,null,null,null,null,null,null,"訪問回数",null,"訪問・連絡活動","(7)",{"$f":"P84","v":0},"回"]
[null,"",null,null,null,null,null,null,null,null,null,null,null,null,null,null,null,null,null,null,null,null,null,null,"そ 　の　 他","(8)",{"$f":"Q84","v":0}]
[null,""]
[null,"",null,null,null,null,null,null,null,null,null,null,null,null,null,null,null,null,null,null,null,null,"連絡調整回数",null,"委　員　相　互","(9)",{"$f":"R84","v":0},"回"]
[null,"",null,null,null,null,null,null,null,null,null,null,null,null,null,null,null,null,null,null,null,null,null,null,"その他の関係機関","(10)",{"$f":"S84","v":0}]
[null,""]
[null,"",null,null,null,null,null,null,null,null,null,null,null,null,null,null,null,null,null,null,null,null,null,null,"活　動　日　数","(11)",{"$f":"T84","v":0},"日"]
[null,"",null,null,null,null,null,null,null,null,null,null,null,null,null,null,null,null,null,null,null,null,{"$f":"A1&\"年\"&E1&\"月\"","v":"2023年7月"}]
[null,"",null,null,null,null,null,null,null,null,null,null,null,null,null,null,null,null,null,null,null,null,"日","曜"]
[null,"",null,null,null,null,null,null,null,null,null,null,null,null,null,null,null,null,null,null,null,null,1,{"$f":"WEEKDAY($A$1&\"/\"&$E$1&\"/\"&W49)","v":7}]
[null,"",null,null,null,null,null,null,null,null,null,null,null,null,null,null,null,null,null,null,null,null,2,{"$f":"WEEKDAY($A$1&\"/\"&$E$1&\"/\"&W50)","v":1}]
[null,"",null,null,null,null,null,null,null,null,null,null,null,null,null,null,null,null,null,null,null,null,3,2]
[null,"",null,null,null,null,null,null,null,null,null,null,null,null,null,null,null,null,null,null,null,null,4,3]
[null,"",null,null,null,null,null,null,null,null,null,null,null,null,null,null,null,null,null,null,null,null,5,4]
[null,"",null,null,null,null,null,null,null,null,null,null,null,null,null,null,null,null,null,null,null,null,6,5]
[null,"",null,null,null,null,null,null,null,null,null,null,null,null,null,null,null,null,null,null,null,null,7,6]
[null,"",null,null,null,null,null,null,null,null,null,null,null,null,null,null,null,null,null,null,null,null,8,7]
[null,"",null,null,null,null,null,null,null,null,null,null,null,null,null,null,null,null,null,null,null,null,9,1]
[null,"",null,null,null,null,null,null,null,null,null,null,null,null,null,null,null,null,null,null,null,null,10,2]
[null,"",null,null,null,null,null,null,null,null,null,null,null,null,null,null,null,null,null,null,null,null,11,3]
[null,"",null,null,null,null,null,null,null,null,null,null,null,null,null,null,null,null,null,null,null,null,12,4]
[null,"",null,null,null,null,null,null,null,null,null,null,null,null,null,null,null,null,null,null,null,null,13,5]
[null,"",null,null,null,null,null,null,null,null,null,null,null,null,null,null,null,null,null,null,null,null,14,6]
[null,"",null,null,null,null,null,null,null,null,null,null,null,null,null,null,null,null,null,null,null,null,15,7]
[null,"",null,null,null,null,null,null,null,null,null,null,null,null,null,null,null,null,null,null,null,null,16,1]
[null,"",null,null,null,null,null,null,null,null,null,null,null,null,null,null,null,null,null,null,null,null,17,2]
[null,"",null,null,null,null,null,null,null,null,null,null,null,null,null,null,null,null,null,null,null,null,18,3]
[null,"",null,null,null,null,null,null,null,null,null,null,null,null,null,null,null,null,null,null,null,null,19,4]
[null,"",null,null,null,null,null,null,null,null,null,null,null,null,null,null,null,null,null,null,null,null,20,5]
[null,"",null,null,null,null,null,null,null,null,null,null,null,null,null,null,null,null,null,null,null,null,21,6]
[null,"",null,null,null,null,null,null,null,null,null,null,null,null,null,null,null,null,null,null,null,null,22,7]
[null,"",null,null,null,null,null,null,null,null,null,null,null,null,null,null,null,null,null,null,null,null,23,1]
[null,"",null,null,null,null,null,null,null,null,null,null,null,null,null,null,null,null,null,null,null,null,24,2]
[null,"",null,null,null,null,null,null,null,null,null,null,null,null,null,null,null,null,null,null,null,null,25,3]
[null,{"$f":"IF(A74<>\"\",WEEKDAY($A$1&\"/\"&$E$1&\"/\"&A74),\"\")","v":""},null,null,null,null,null,null,null,null,null,null,null,null,null,null,null,null,null,null,null,null,26,4]
[null,"",null,null,null,null,null,null,null,null,null,null,null,null,null,null,null,null,null,null,null,null,27,5]
[null,"",null,null,null,null,null,null,null,null,null,null,null,null,null,null,null,null,null,null,null,null,28,6]
[null,"",null,null,null,null,null,null,null,null,null,null,null,null,null,null,null,null,null,null,null,null,29,7]
[null,"",null,null,null,null,null,null,null,null,null,null,null,null,null,null,null,null,null,null,null,null,30,1]
[null,"",null,null,null,null,null,null,null,null,null,null,null,null,null,null,null,null,null,null,null,null,31,2]
[null,""]
[null,""]
[null,""]
[null,""]
["合　　　　　　計",null,null,null,null,null,null,{"$f":"COUNTA(H9:H83)","v":0},{"$f":"COUNTA(I9:I83)","v":0},{"$f":"SUM(J9:J83)","v":0},0,0,0,0,0,0,0,0,0,{"$f":"COUNTA(T9:T83)","v":0}]
[null,null,null,null,null,null,null,{"$f":"IF(H84=I84,\"\",\"※↑「内容」↑「分野」の件数が一致するように入力してください。\")","v":""},null,null,null,null,null,null,null,null,null,null,null,{"$f":"IF(T84>31,\"↑\",\"\")","v":""}]
[{"$f":"IF(B119<>T84,\"報告日数（A列）と活動日数（T列）が一致していません。活動日数（T列）は一日に一つだけ【〇】を入力してください。\",\"\")","v":""},null,null,null,null,null,null,null,null,null,null,null,null,null,null,null,null,null,null,{"$f":"IF(T84>31,\"活動日数が今月の日数を越えないように訂正してください。\",\"\")","v":""}]
[]
[{"$f":"COUNTIF($A$9:$A$83,1)","v":0},{"$f":"COUNTIF(A88,\">=1\" )","v":0}]
[{"$f":"COUNTIF($A$9:$A$83,2)","v":0},{"$f":"COUNTIF(A89,\">=1\" )","v":0}]
[{"$f":"COUNTIF($A$9:$A$83,3)","v":0},0]
[{"$f":"COUNTIF($A$9:$A$83,4)","v":0},0]
[{"$f":"COUNTIF($A$9:$A$83,5)","v":0},0]
[{"$f":"COUNTIF($A$9:$A$83,6)","v":0},0]
[{"$f":"COUNTIF($A$9:$A$83,7)","v":0},0]
[{"$f":"COUNTIF($A$9:$A$83,8)","v":0},0]
[{"$f":"COUNTIF($A$9:$A$83,9)","v":0},0]
[{"$f":"COUNTIF($A$9:$A$83,10)","v":0},0]
[{"$f":"COUNTIF($A$9:$A$83,11)","v":0},0]
[{"$f":"COUNTIF($A$9:$A$83,12)","v":0},0]
[{"$f":"COUNTIF($A$9:$A$83,13)","v":0},0]
[{"$f":"COUNTIF($A$9:$A$83,14)","v":0},0]
[{"$f":"COUNTIF($A$9:$A$83,15)","v":0},0]
[{"$f":"COUNTIF($A$9:$A$83,16)","v":0},0]
[{"$f":"COUNTIF($A$9:$A$83,17)","v":0},0]
[{"$f":"COUNTIF($A$9:$A$83,18)","v":0},0]
[{"$f":"COUNTIF($A$9:$A$83,19)","v":0},0]
[{"$f":"COUNTIF($A$9:$A$83,20)","v":0},0]
[{"$f":"COUNTIF($A$9:$A$83,21)","v":0},0]
[{"$f":"COUNTIF($A$9:$A$83,22)","v":0},0]
[{"$f":"COUNTIF($A$9:$A$83,23)","v":0},0]
[{"$f":"COUNTIF($A$9:$A$83,24)","v":0},0]
[{"$f":"COUNTIF($A$9:$A$83,25)","v":0},0]
[{"$f":"COUNTIF($A$9:$A$83,26)","v":0},0]
[{"$f":"COUNTIF($A$9:$A$83,27)","v":0},0]
[{"$f":"COUNTIF($A$9:$A$83,28)","v":0},0]
[{"$f":"COUNTIF($A$9:$A$83,29)","v":0},0]
[{"$f":"COUNTIF($A$9:$A$83,30)","v":0},0]
[{"$f":"COUNTIF($A$9:$A$83,31)","v":0},0]
[null,{"$f":"SUM(B88:B118)","v":0}]

{"sheet":"8月","index":14,"n_rows":119,"n_cols":43,"rows_kept":119,"cut":false,"hidden":false,"merged":[[16,29,16,34],[16,35,16,36],[16,37,16,38],[0,15,0,19],[1,15,1,19],[0,13,0,14],[1,13,1,14],[4,8,6,8],[0,0,0,2],[1,22,1,27],[5,24,6,27],[4,23,4,27],[4,18,6,18],[4,17,6,17],[4,16,6,16],[4,15,6,15],[4,14,6,14],[4,13,6,13],[4,12,6,12],[8,21,8,22],[9,22,9,27],[61,2,61,6],[69,2,69,6],[67,2,67,6],[68,2,68,6],[4,7,6,7],[55,2,55,6],[56,2,56,6],[57,2,57,6],[60,2,60,6],[47,2,47,6],[48,2,48,6],[65,2,65,6],[66,2,66,6],[49,2,49,6],[50,2,50,6],[58,2,58,6],[59,2,59,6],[54,2,54,6],[64,2,64,6],[63,2,63,6],[62,2,62,6],[33,2,33,6],[38,2,38,6],[43,2,43,6],[81,2,81,6],[71,2,71,6],[72,2,72,6],[73,2,73,6],[80,2,80,6],[70,2,70,6],[79,2,79,6],[75,2,75,6],[76,2,76,6],[77,2,77,6],[78,2,78,6],[74,2,74,6],[44,2,44,6],[45,2,45,6],[46,2,46,6],[40,2,40,6],[15,2,15,6],[11,2,11,6],[19,2,19,6],[20,2,20,6],[21,2,21,6],[30,2,30,6],[17,2,17,6],[51,2,51,6],[52,2,52,6],[53,2,53,6],[39,22,40,23],[29,2,29,6],[22,2,22,6],[23,2,23,6],[24,2,24,6],[25,2,25,6],[26,2,26,6],[28,2,28,6],[27,2,27,6],[31,2,31,6],[46,22,46,24],[32,2,32,6],[37,2,37,6],[41,2,41,6],[42,22,43,23],[26,23,30,23],[32,22,37,23],[11,22,30,22],[11,23,25,23],[31,22,31,27],[42,2,42,6],[83,0,83,6],[3,19,6,19],[3,9,3,14],[3,7,3,8],[13,2,13,6],[10,2,10,6],[3,0,7,1],[3,17,3,18],[3,15,3,16],[18,2,18,6],[12,2,12,6],[16,2,16,6],[3,2,7,6],[8,2,8,6],[4,11,6,11],[4,10,6,10],[82,2,82,6],[34,2,34,6],[35,2,35,6],[36,2,36,6],[39,2,39,6],[9,2,9,6],[14,2,14,6],[4,9,6,9]]}
[{"$f":"'4月'!$A$1","v":2023},null,null,"年",8,"月 の","民生委員･児童委員   活動記録内容",null,null,null,null,null,null,"民児協名：",null,{"$f":"総合計!L3","v":0},null,null,null,null,null,null,"民生委員番号"]
[{"$f":"IF(B119<>T84,\"報告日数（A列）と活動日数（T列）が一致していません。活動日数（T列）は一日に一つだけ【〇】を入力してください。\",\"\")","v":""},null,null,null,null,null,null,null,null,null,null,null,null,"氏 　　名：",null,{"$f":"総合計!L5","v":0},null,null,null,null,null,null,{"$f":"総合計!L2","v":0}]
[null,null,null,null,null,null,null,{"$f":"IF(H84=I84,\"\",\"※↓「内容」↓「分野」の件数が一致するように入力してください。\")","v":""},null,null,null,null,null,null,null,null,null,null,null,{"$f":"IF(T84>31,\"活動日数が今月の日数を越えないように訂正してください。\",\"\")","v":""}]
["日・曜日",null,"活 動 概 要",null,null,null,null,"相談･支援活動",null,"その他の活動",null,null,null,null,null,"訪問回数",null,"連絡調整回数",null,"活動日数",null,null,"民児協名:"]
[null,null,null,null,null,null,null,"内容","分野","調査・\n実態把握","行事･事業･会議への参加 ･協力","地域福祉活動 ･自主活動","民児協\n運営･研修","証明(調査・確認等)事務","要保護児童の発見の通告･仲介","訪問･\n連絡活動","その他","委員相互","その他の\n関係機関",null,null,null,null,{"$f":"総合計!L3","v":0}]
[null,null,null,null,null,null,null,null,null,null,null,null,null,null,null,null,null,null,null,null,null,null,"氏名：",null,{"$f":"総合計!L5","v":0}]
[]
[null,null,null,null,null,null,null,"(1)～(14)","(16)～(19)","(1)","(2)","(3)","(4)","(5)","(6)","(7)","(8)","(9)","(10)","(11)",null,null,null,null,null,null,null,null,null,"■会長報告用（データ）"]
[null,{"$f":"IF(A9<>\"\",WEEKDAY($A$1&\"/\"&$E$1&\"/\"&A9),\"\")","v":""},null,null,null,null,null,null,null,null,null,null,null,null,null,null,null,null,null,null,null,{"$f":"A1","v":2023},null,"年","8月分",null,null,null,null,"民児協の会長へデータで活動件数等をご報告する場合は下のデータをご利用ください。"]
[null,{"$f":"IF(A10<>\"\",WEEKDAY($A$1&\"/\"&$E$1&\"/\"&A10),\"\")","v":""},null,null,null,null,null,null,null,null,null,null,null,null,null,null,null,null,null,null,null,null," 活動件数 集計報告書 "]
[null,"",null,null,null,null,null,null,null,null,null,null,null,null,null,null,null,null,null,null,null,null,null,null,null,null,null,null,null,"相談・支援活動（内容別）"]
[null,"",null,null,null,null,null,null,null,null,null,null,null,null,null,null,null,null,null,null,null,null,"相談・支援活動","（内容別）","在　宅　福　祉","(1)",{"$f":"COUNTIF($H$9:$H$83,1)","v":0},"件",null,"(1)","(2)","(3)","(4)","(5)","(6)","(7)","(8)","(9)","(10)","(11)","(12)","(13)","(14)"]
[null,"",null,null,null,null,null,null,null,null,null,null,null,null,null,null,null,null,null,null,null,null,null,null,"介　護　保　険","(2)",{"$f":"COUNTIF($H$9:$H$83,2)","v":0},null,null,{"$f":"AA12","v":0},{"$f":"AA13","v":0},{"$f":"AA14","v":0},{"$f":"AA15","v":0},{"$f":"AA16","v":0},{"$f":"AA17","v":0},{"$f":"AA18","v":0},{"$f":"AA19","v":0},{"$f":"AA20","v":0},{"$f":"AA21","v":0},{"$f":"AA22","v":0},{"$f":"AA23","v":0},{"$f":"AA24","v":0},{"$f":"AA25","v":0}]
[null,"",null,null,null,null,null,null,null,null,null,null,null,null,null,null,null,null,null,null,null,null,null,null,"健康・保健医療","(3)",{"$f":"COUNTIF($H$9:$H$83,3)","v":0},null,null,"相談・支援活動（分野別）"]
[null,"",null,null,null,null,null,null,null,null,null,null,null,null,null,null,null,null,null,null,null,null,null,null,"子育て・母子保健","(4)",{"$f":"COUNTIF($H$9:$H$83,4)","v":0},null,null,"(16)","(17)","(18)","(19)"]
[null,"",null,null,null,null,null,null,null,null,null,null,null,null,null,null,null,null,null,null,null,null,null,null,"子どもの地域生活","(5)",{"$f":"COUNTIF($H$9:$H$83,5)","v":0},null,null,{"$f":"AA27","v":0},{"$f":"AA28","v":0},{"$f":"AA29","v":0},{"$f":"AA30","v":0}]
[null,"",null,null,null,null,null,null,null,null,null,null,null,null,null,null,null,null,null,null,null,null,null,null,"子どもの教育･学校生活","(6)",{"$f":"COUNTIF($H$9:$H$83,6)","v":0},null,null,"その他活動",null,null,null,null,null,"訪問回数",null,"連絡調整回数",null,"活動日数"]
[null,"",null,null,null,null,null,null,null,null,null,null,null,null,null,null,null,null,null,null,null,null,null,null,"生　　活　　費","(7)",{"$f":"COUNTIF($H$9:$H$83,7)","v":0},null,null,"(1)","(2)","(3)","(4)","(5)","(6)","(7)","(8)","(9)","(10)","(11)"]
[null,"",null,null,null,null,null,null,null,null,null,null,null,null,null,null,null,null,null,null,null,null,null,null,"年　金・保　険","(8)",{"$f":"COUNTIF($H$9:$H$83,8)","v":0},null,null,{"$f":"AA33","v":0},{"$f":"AA34","v":0},{"$f":"AA35","v":0},{"$f":"AA36","v":0},{"$f":"AA37","v":0},{"$f":"AA38","v":0},{"$f":"AA40","v":0},{"$f":"AA41","v":0},{"$f":"AA43","v":0},{"$f":"AA44","v":0},{"$f":"AA46","v":0}]
[null,"",null,null,null,null,null,null,null,null,null,null,null,null,null,null,null,null,null,null,null,null,null,null,"仕　　　　　事","(9)",{"$f":"COUNTIF($H$9:$H$83,9)","v":0}]
[null,"",null,null,null,null,null,null,null,null,null,null,null,null,null,null,null,null,null,null,null,null,null,null,"家　族　関　係","(10)",{"$f":"COUNTIF($H$9:$H$83,10)","v":0}]
[null,"",null,null,null,null,null,null,null,null,null,null,null,null,null,null,null,null,null,null,null,null,null,null,"住　　　　　居","(11)",{"$f":"COUNTIF($H$9:$H$83,11)","v":0}]
[null,"",null,null,null,null,null,null,null,null,null,null,null,null,null,null,null,null,null,null,null,null,null,null,"生　活　環　境","(12)",{"$f":"COUNTIF($H$9:$H$83,12)","v":0}]
[null,"",null,null,null,null,null,null,null,null,null,null,null,null,null,null,null,null,null,null,null,null,null,null,"日 常 的 な 支 援","(13)",{"$f":"COUNTIF($H$9:$H$83,13)","v":0}]
[null,"",null,null,null,null,null,null,null,null,null,null,null,null,null,null,null,null,null,null,null,null,null,null,"そ　　の　　他","(14)",{"$f":"COUNTIF($H$9:$H$83,14)","v":0}]
[null,"",null,null,null,null,null,null,null,null,null,null,null,null,null,null,null,null,null,null,null,null,null,null,"計","(15)",{"$f":"SUM(AA12:AA25)","v":0}]
[null,"",null,null,null,null,null,null,null,null,null,null,null,null,null,null,null,null,null,null,null,null,null,"（分野別）","高齢者に関すること","(16)",{"$f":"COUNTIF($I$9:$I$83,16)","v":0},"件"]
[null,"",null,null,null,null,null,null,null,null,null,null,null,null,null,null,null,null,null,null,null,null,null,null,"障害者に関すること","(17)",{"$f":"COUNTIF($I$9:$I$83,17)","v":0}]
[null,"",null,null,null,null,null,null,null,null,null,null,null,null,null,null,null,null,null,null,null,null,null,null,"子どもに関すること","(18)",{"$f":"COUNTIF($I$9:$I$83,18)","v":0}]
[null,"",null,null,null,null,null,null,null,null,null,null,null,null,null,null,null,null,null,null,null,null,null,null,"そ　　の　　他","(19)",{"$f":"COUNTIF($I$9:$I$83,19)","v":0}]
[null,"",null,null,null,null,null,null,null,null,null,null,null,null,null,null,null,null,null,null,null,null,null,null,"計","(20)",{"$f":"SUM(AA27:AA30)","v":0}]
[null,"",null,null,null,null,null,null,null,null,null,null,null,null,null,null,null,null,null,null,null,null,"　※(15)と(20)の合計件数は一致　"]
[null,"",null,null,null,null,null,null,null,null,null,null,null,null,null,null,null,null,null,null,null,null,"その他の活動",null,"調査・実態把握","(1)",{"$f":"J84","v":0},"件"]
[null,"",null,null,null,null,null,null,null,null,null,null,null,null,null,null,null,null,null,null,null,null,null,null,"行事・事業・会議への参加・協力","(2)",{"$f":"K84","v":0}]
[null,"",null,null,null,null,null,null,null,null,null,null,null,null,null,null,null,null,null,null,null,null,null,null,"地域福祉活動･自主活動","(3)",{"$f":"L84","v":0}]
[null,"",null,null,null,null,null,null,null,null,null,null,null,null,null,null,null,null,null,null,null,null,null,null,"民児協運営・研修","(4)",{"$f":"M84","v":0}]
[null,"",null,null,null,null,null,null,null,null,null,null,null,null,null,null,null,null,null,null,null,null,null,null,"証　明　事　務","(5)",{"$f":"N84","v":0}]
[null,"",null,null,null,null,null,null,null,null,null,null,null,null,null,null,null,null,null,null,null,null,null,null,"要保護児童の発見の通告･仲介","(6)",{"$f":"O84","v":0}]
[null,""]
[null,"",null,null,null,null,null,null,null,null,null,null,null,null,null,null,null,null,null,null,null,null,"訪問回数",null,"訪問・連絡活動","(7)",{"$f":"P84","v":0},"回"]
[null,"",null,null,null,null,null,null,null,null,null,null,null,null,null,null,null,null,null,null,null,null,null,null,"そ 　の　 他","(8)",{"$f":"Q84","v":0}]
[null,""]
[null,"",null,null,null,null,null,null,null,null,null,null,null,null,null,null,null,null,null,null,null,null,"連絡調整回数",null,"委　員　相　互","(9)",{"$f":"R84","v":0},"回"]
[null,"",null,null,null,null,null,null,null,null,null,null,null,null,null,null,null,null,null,null,null,null,null,null,"その他の関係機関","(10)",{"$f":"S84","v":0}]
[null,""]
[null,"",null,null,null,null,null,null,null,null,null,null,null,null,null,null,null,null,null,null,null,null,null,null,"活　動　日　数","(11)",{"$f":"T84","v":0},"日"]
[null,"",null,null,null,null,null,null,null,null,null,null,null,null,null,null,null,null,null,null,null,null,{"$f":"A1&\"年\"&E1&\"月\"","v":"2023年8月"}]
[null,"",null,null,null,null,null,null,null,null,null,null,null,null,null,null,null,null,null,null,null,null,"日","曜"]
[null,"",null,null,null,null,null,null,null,null,null,null,null,null,null,null,null,null,null,null,null,null,1,{"$f":"WEEKDAY($A$1&\"/\"&$E$1&\"/\"&W49)","v":3}]
[null,"",null,null,null,null,null,null,null,null,null,null,null,null,null,null,null,null,null,null,null,null,2,{"$f":"WEEKDAY($A$1&\"/\"&$E$1&\"/\"&W50)","v":4}]
[null,"",null,null,null,null,null,null,null,null,null,null,null,null,null,null,null,null,null,null,null,null,3,5]
[null,"",null,null,null,null,null,null,null,null,null,null,null,null,null,null,null,null,null,null,null,null,4,6]
[null,"",null,null,null,null,null,null,null,null,null,null,null,null,null,null,null,null,null,null,null,null,5,7]
[null,"",null,null,null,null,null,null,null,null,null,null,null,null,null,null,null,null,null,null,null,null,6,1]
[null,"",null,null,null,null,null,null,null,null,null,null,null,null,null,null,null,null,null,null,null,null,7,2]
[null,"",null,null,null,null,null,null,null,null,null,null,null,null,null,null,null,null,null,null,null,null,8,3]
[null,"",null,null,null,null,null,null,null,null,null,null,null,null,null,null,null,null,null,null,null,null,9,4]
[null,"",null,null,null,null,null,null,null,null,null,null,null,null,null,null,null,null,null,null,null,null,10,5]
[null,"",null,null,null,null,null,null,null,null,null,null,null,null,null,null,null,null,null,null,null,null,11,6]
[null,"",null,null,null,null,null,null,null,null,null,null,null,null,null,null,null,null,null,null,null,null,12,7]
[null,"",null,null,null,null,null,null,null,null,null,null,null,null,null,null,null,null,null,null,null,null,13,1]
[null,"",null,null,null,null,null,null,null,null,null,null,null,null,null,null,null,null,null,null,null,null,14,2]
[null,"",null,null,null,null,null,null,null,null,null,null,null,null,null,null,null,null,null,null,null,null,15,3]
[null,"",null,null,null,null,null,null,null,null,null,null,null,null,null,null,null,null,null,null,null,null,16,4]
[null,"",null,null,null,null,null,null,null,null,null,null,null,null,null,null,null,null,null,null,null,null,17,5]
[null,"",null,null,null,null,null,null,null,null,null,null,null,null,null,null,null,null,null,null,null,null,18,6]
[null,"",null,null,null,null,null,null,null,null,null,null,null,null,null,null,null,null,null,null,null,null,19,7]
[null,"",null,null,null,null,null,null,null,null,null,null,null,null,null,null,null,null,null,null,null,null,20,1]
[null,"",null,null,null,null,null,null,null,null,null,null,null,null,null,null,null,null,null,null,null,null,21,2]
[null,"",null,null,null,null,null,null,null,null,null,null,null,null,null,null,null,null,null,null,null,null,22,3]
[null,"",null,null,null,null,null,null,null,null,null,null,null,null,null,null,null,null,null,null,null,null,23,4]
[null,"",null,null,null,null,null,null,null,null,null,null,null,null,null,null,null,null,null,null,null,null,24,5]
[null,"",null,null,null,null,null,null,null,null,null,null,null,null,null,null,null,null,null,null,null,null,25,6]
[null,{"$f":"IF(A74<>\"\",WEEKDAY($A$1&\"/\"&$E$1&\"/\"&A74),\"\")","v":""},null,null,null,null,null,null,null,null,null,null,null,null,null,null,null,null,null,null,null,null,26,7]
[null,"",null,null,null,null,null,null,null,null,null,null,null,null,null,null,null,null,null,null,null,null,27,1]
[null,"",null,null,null,null,null,null,null,null,null,null,null,null,null,null,null,null,null,null,null,null,28,2]
[null,"",null,null,null,null,null,null,null,null,null,null,null,null,null,null,null,null,null,null,null,null,29,3]
[null,"",null,null,null,null,null,null,null,null,null,null,null,null,null,null,null,null,null,null,null,null,30,4]
[null,"",null,null,null,null,null,null,null,null,null,null,null,null,null,null,null,null,null,null,null,null,31,5]
[null,""]
[null,""]
[null,""]
[null,""]
["合　　　　　　計",null,null,null,null,null,null,{"$f":"COUNTA(H9:H83)","v":0},{"$f":"COUNTA(I9:I83)","v":0},{"$f":"SUM(J9:J83)","v":0},0,0,0,0,0,0,0,0,0,{"$f":"COUNTA(T9:T83)","v":0}]
[null,null,null,null,null,null,null,{"$f":"IF(H84=I84,\"\",\"※↑「内容」↑「分野」の件数が一致するように入力してください。\")","v":""},null,null,null,null,null,null,null,null,null,null,null,{"$f":"IF(T84>31,\"↑\",\"\")","v":""}]
[{"$f":"IF(B119<>T84,\"報告日数（A列）と活動日数（T列）が一致していません。活動日数（T列）は一日に一つだけ【〇】を入力してください。\",\"\")","v":""},null,null,null,null,null,null,null,null,null,null,null,null,null,null,null,null,null,null,{"$f":"IF(T84>31,\"活動日数が今月の日数を越えないように訂正してください。\",\"\")","v":""}]
[]
[{"$f":"COUNTIF($A$9:$A$83,1)","v":0},{"$f":"COUNTIF(A88,\">=1\" )","v":0}]
[{"$f":"COUNTIF($A$9:$A$83,2)","v":0},{"$f":"COUNTIF(A89,\">=1\" )","v":0}]
[{"$f":"COUNTIF($A$9:$A$83,3)","v":0},0]
[{"$f":"COUNTIF($A$9:$A$83,4)","v":0},0]
[{"$f":"COUNTIF($A$9:$A$83,5)","v":0},0]
[{"$f":"COUNTIF($A$9:$A$83,6)","v":0},0]
[{"$f":"COUNTIF($A$9:$A$83,7)","v":0},0]
[{"$f":"COUNTIF($A$9:$A$83,8)","v":0},0]
[{"$f":"COUNTIF($A$9:$A$83,9)","v":0},0]
[{"$f":"COUNTIF($A$9:$A$83,10)","v":0},0]
[{"$f":"COUNTIF($A$9:$A$83,11)","v":0},0]
[{"$f":"COUNTIF($A$9:$A$83,12)","v":0},0]
[{"$f":"COUNTIF($A$9:$A$83,13)","v":0},0]
[{"$f":"COUNTIF($A$9:$A$83,14)","v":0},0]
[{"$f":"COUNTIF($A$9:$A$83,15)","v":0},0]
[{"$f":"COUNTIF($A$9:$A$83,16)","v":0},0]
[{"$f":"COUNTIF($A$9:$A$83,17)","v":0},0]
[{"$f":"COUNTIF($A$9:$A$83,18)","v":0},0]
[{"$f":"COUNTIF($A$9:$A$83,19)","v":0},0]
[{"$f":"COUNTIF($A$9:$A$83,20)","v":0},0]
[{"$f":"COUNTIF($A$9:$A$83,21)","v":0},0]
[{"$f":"COUNTIF($A$9:$A$83,22)","v":0},0]
[{"$f":"COUNTIF($A$9:$A$83,23)","v":0},0]
[{"$f":"COUNTIF($A$9:$A$83,24)","v":0},0]
[{"$f":"COUNTIF($A$9:$A$83,25)","v":0},0]
[{"$f":"COUNTIF($A$9:$A$83,26)","v":0},0]
[{"$f":"COUNTIF($A$9:$A$83,27)","v":0},0]
[{"$f":"COUNTIF($A$9:$A$83,28)","v":0},0]
[{"$f":"COUNTIF($A$9:$A$83,29)","v":0},0]
[{"$f":"COUNTIF($A$9:$A$83,30)","v":0},0]
[{"$f":"COUNTIF($A$9:$A$83,31)","v":0},0]
[null,{"$f":"SUM(B88:B118)","v":0}]

{"sheet":"9月","index":15,"n_rows":119,"n_cols":43,"rows_kept":119,"cut":false,"hidden":false,"merged":[[16,29,16,34],[16,35,16,36],[16,37,16,38],[15,2,15,6],[8,2,8,6],[0,0,0,2],[4,10,6,10],[4,9,6,9],[4,18,6,18],[4,17,6,17],[4,16,6,16],[4,15,6,15],[4,14,6,14],[4,13,6,13],[3,0,7,1],[3,17,3,18],[3,15,3,16],[4,11,6,11],[0,15,0,19],[0,13,0,14],[26,2,26,6],[27,2,27,6],[28,2,28,6],[5,24,6,27],[4,23,4,27],[83,0,83,6],[3,19,6,19],[3,9,3,14],[3,7,3,8],[13,2,13,6],[8,21,8,22],[42,22,43,23],[26,23,30,23],[32,22,37,23],[11,22,30,22],[11,23,25,23],[4,12,6,12],[31,22,31,27],[39,22,40,23],[9,22,9,27],[17,2,17,6],[3,2,7,6],[9,2,9,6],[14,2,14,6],[82,2,82,6],[33,2,33,6],[34,2,34,6],[35,2,35,6],[36,2,36,6],[39,2,39,6],[40,2,40,6],[43,2,43,6],[44,2,44,6],[58,2,58,6],[51,2,51,6],[52,2,52,6],[53,2,53,6],[59,2,59,6],[45,2,45,6],[81,2,81,6],[71,2,71,6],[72,2,72,6],[73,2,73,6],[80,2,80,6],[70,2,70,6],[74,2,74,6],[61,2,61,6],[62,2,62,6],[64,2,64,6],[1,22,1,27],[46,22,46,24],[1,15,1,19],[1,13,1,14],[30,2,30,6],[31,2,31,6],[32,2,32,6],[37,2,37,6],[41,2,41,6],[38,2,38,6],[49,2,49,6],[54,2,54,6],[48,2,48,6],[50,2,50,6],[11,2,11,6],[10,2,10,6],[12,2,12,6],[16,2,16,6],[29,2,29,6],[22,2,22,6],[23,2,23,6],[24,2,24,6],[25,2,25,6],[79,2,79,6],[75,2,75,6],[76,2,76,6],[77,2,77,6],[78,2,78,6],[4,8,6,8],[4,7,6,7],[55,2,55,6],[56,2,56,6],[57,2,57,6],[19,2,19,6],[20,2,20,6],[21,2,21,6],[18,2,18,6],[60,2,60,6],[47,2,47,6],[46,2,46,6],[42,2,42,6],[63,2,63,6],[69,2,69,6],[67,2,67,6],[68,2,68,6],[65,2,65,6],[66,2,66,6]]}
[{"$f":"'4月'!$A$1","v":2023},null,null,"年",9,"月 の","民生委員･児童委員   活動記録内容",null,null,null,null,null,null,"民児協名：",null,{"$f":"総合計!L3","v":0},null,null,null,null,null,null,"民生委員番号"]
[{"$f":"IF(B119<>T84,\"報告日数（A列）と活動日数（T列）が一致していません。活動日数（T列）は一日に一つだけ【〇】を入力してください。\",\"\")","v":""},null,null,null,null,null,null,null,null,null,null,null,null,"氏 　　名：",null,{"$f":"総合計!L5","v":0},null,null,null,null,null,null,{"$f":"総合計!L2","v":0}]
[null,null,null,null,null,null,null,{"$f":"IF(H84=I84,\"\",\"※↓「内容」↓「分野」の件数が一致するように入力してください。\")","v":""},null,null,null,null,null,null,null,null,null,null,null,{"$f":"IF(T84>30,\"活動日数が今月の日数を越えないように訂正してください。\",\"\")","v":""}]
["日・曜日",null,"活 動 概 要",null,null,null,null,"相談･支援活動",null,"その他の活動",null,null,null,null,null,"訪問回数",null,"連絡調整回数",null,"活動日数",null,null,"民児協名:"]
[null,null,null,null,null,null,null,"内容","分野","調査・\n実態把握","行事･事業･会議への参加 ･協力","地域福祉活動 ･自主活動","民児協\n運営･研修","証明(調査・確認等)事務","要保護児童の発見の通告･仲介","訪問･\n連絡活動","その他","委員相互","その他の\n関係機関",null,null,null,null,{"$f":"総合計!L3","v":0}]
[null,null,null,null,null,null,null,null,null,null,null,null,null,null,null,null,null,null,null,null,null,null,"氏名：",null,{"$f":"総合計!L5","v":0}]
[]
[null,null,null,null,null,null,null,"(1)～(14)","(16)～(19)","(1)","(2)","(3)","(4)","(5)","(6)","(7)","(8)","(9)","(10)","(11)",null,null,null,null,null,null,null,null,null,"■会長報告用（データ）"]
[null,{"$f":"IF(A9<>\"\",WEEKDAY($A$1&\"/\"&$E$1&\"/\"&A9),\"\")","v":""},null,null,null,null,null,null,null,null,null,null,null,null,null,null,null,null,null,null,null,{"$f":"A1","v":2023},null,"年","9月分",null,null,null,null,"民児協の会長へデータで活動件数等をご報告する場合は下のデータをご利用ください。"]
[null,{"$f":"IF(A10<>\"\",WEEKDAY($A$1&\"/\"&$E$1&\"/\"&A10),\"\")","v":""},null,null,null,null,null,null,null,null,null,null,null,null,null,null,null,null,null,null,null,null," 活動件数 集計報告書 "]
[null,"",null,null,null,null,null,null,null,null,null,null,null,null,null,null,null,null,null,null,null,null,null,null,null,null,null,null,null,"相談・支援活動（内容別）"]
[null,"",null,null,null,null,null,null,null,null,null,null,null,null,null,null,null,null,null,null,null,null,"相談・支援活動","（内容別）","在　宅　福　祉","(1)",{"$f":"COUNTIF($H$9:$H$83,1)","v":0},"件",null,"(1)","(2)","(3)","(4)","(5)","(6)","(7)","(8)","(9)","(10)","(11)","(12)","(13)","(14)"]
[null,"",null,null,null,null,null,null,null,null,null,null,null,null,null,null,null,null,null,null,null,null,null,null,"介　護　保　険","(2)",{"$f":"COUNTIF($H$9:$H$83,2)","v":0},null,null,{"$f":"AA12","v":0},{"$f":"AA13","v":0},{"$f":"AA14","v":0},{"$f":"AA15","v":0},{"$f":"AA16","v":0},{"$f":"AA17","v":0},{"$f":"AA18","v":0},{"$f":"AA19","v":0},{"$f":"AA20","v":0},{"$f":"AA21","v":0},{"$f":"AA22","v":0},{"$f":"AA23","v":0},{"$f":"AA24","v":0},{"$f":"AA25","v":0}]
[null,"",null,null,null,null,null,null,null,null,null,null,null,null,null,null,null,null,null,null,null,null,null,null,"健康・保健医療","(3)",{"$f":"COUNTIF($H$9:$H$83,3)","v":0},null,null,"相談・支援活動（分野別）"]
[null,"",null,null,null,null,null,null,null,null,null,null,null,null,null,null,null,null,null,null,null,null,null,null,"子育て・母子保健","(4)",{"$f":"COUNTIF($H$9:$H$83,4)","v":0},null,null,"(16)","(17)","(18)","(19)"]
[null,"",null,null,null,null,null,null,null,null,null,null,null,null,null,null,null,null,null,null,null,null,null,null,"子どもの地域生活","(5)",{"$f":"COUNTIF($H$9:$H$83,5)","v":0},null,null,{"$f":"AA27","v":0},{"$f":"AA28","v":0},{"$f":"AA29","v":0},{"$f":"AA30","v":0}]
[null,"",null,null,null,null,null,null,null,null,null,null,null,null,null,null,null,null,null,null,null,null,null,null,"子どもの教育･学校生活","(6)",{"$f":"COUNTIF($H$9:$H$83,6)","v":0},null,null,"その他活動",null,null,null,null,null,"訪問回数",null,"連絡調整回数",null,"活動日数"]
[null,"",null,null,null,null,null,null,null,null,null,null,null,null,null,null,null,null,null,null,null,null,null,null,"生　　活　　費","(7)",{"$f":"COUNTIF($H$9:$H$83,7)","v":0},null,null,"(1)","(2)","(3)","(4)","(5)","(6)","(7)","(8)","(9)","(10)","(11)"]
[null,"",null,null,null,null,null,null,null,null,null,null,null,null,null,null,null,null,null,null,null,null,null,null,"年　金・保　険","(8)",{"$f":"COUNTIF($H$9:$H$83,8)","v":0},null,null,{"$f":"AA33","v":0},{"$f":"AA34","v":0},{"$f":"AA35","v":0},{"$f":"AA36","v":0},{"$f":"AA37","v":0},{"$f":"AA38","v":0},{"$f":"AA40","v":0},{"$f":"AA41","v":0},{"$f":"AA43","v":0},{"$f":"AA44","v":0},{"$f":"AA46","v":0}]
[null,"",null,null,null,null,null,null,null,null,null,null,null,null,null,null,null,null,null,null,null,null,null,null,"仕　　　　　事","(9)",{"$f":"COUNTIF($H$9:$H$83,9)","v":0}]
[null,"",null,null,null,null,null,null,null,null,null,null,null,null,null,null,null,null,null,null,null,null,null,null,"家　族　関　係","(10)",{"$f":"COUNTIF($H$9:$H$83,10)","v":0}]
[null,"",null,null,null,null,null,null,null,null,null,null,null,null,null,null,null,null,null,null,null,null,null,null,"住　　　　　居","(11)",{"$f":"COUNTIF($H$9:$H$83,11)","v":0}]
[null,"",null,null,null,null,null,null,null,null,null,null,null,null,null,null,null,null,null,null,null,null,null,null,"生　活　環　境","(12)",{"$f":"COUNTIF($H$9:$H$83,12)","v":0}]
[null,"",null,null,null,null,null,null,null,null,null,null,null,null,null,null,null,null,null,null,null,null,null,null,"日 常 的 な 支 援","(13)",{"$f":"COUNTIF($H$9:$H$83,13)","v":0}]
[null,"",null,null,null,null,null,null,null,null,null,null,null,null,null,null,null,null,null,null,null,null,null,null,"そ　　の　　他","(14)",{"$f":"COUNTIF($H$9:$H$83,14)","v":0}]
[null,"",null,null,null,null,null,null,null,null,null,null,null,null,null,null,null,null,null,null,null,null,null,null,"計","(15)",{"$f":"SUM(AA12:AA25)","v":0}]
[null,"",null,null,null,null,null,null,null,null,null,null,null,null,null,null,null,null,null,null,null,null,null,"（分野別）","高齢者に関すること","(16)",{"$f":"COUNTIF($I$9:$I$83,16)","v":0},"件"]
[null,"",null,null,null,null,null,null,null,null,null,null,null,null,null,null,null,null,null,null,null,null,null,null,"障害者に関すること","(17)",{"$f":"COUNTIF($I$9:$I$83,17)","v":0}]
[null,"",null,null,null,null,null,null,null,null,null,null,null,null,null,null,null,null,null,null,null,null,null,null,"子どもに関すること","(18)",{"$f":"COUNTIF($I$9:$I$83,18)","v":0}]
[null,"",null,null,null,null,null,null,null,null,null,null,null,null,null,null,null,null,null,null,null,null,null,null,"そ　　の　　他","(19)",{"$f":"COUNTIF($I$9:$I$83,19)","v":0}]
[null,"",null,null,null,null,null,null,null,null,null,null,null,null,null,null,null,null,null,null,null,null,null,null,"計","(20)",{"$f":"SUM(AA27:AA30)","v":0}]
[null,"",null,null,null,null,null,null,null,null,null,null,null,null,null,null,null,null,null,null,null,null,"　※(15)と(20)の合計件数は一致　"]
[null,"",null,null,null,null,null,null,null,null,null,null,null,null,null,null,null,null,null,null,null,null,"その他の活動",null,"調査・実態把握","(1)",{"$f":"J84","v":0},"件"]
[null,"",null,null,null,null,null,null,null,null,null,null,null,null,null,null,null,null,null,null,null,null,null,null,"行事・事業・会議への参加・協力","(2)",{"$f":"K84","v":0}]
[null,"",null,null,null,null,null,null,null,null,null,null,null,null,null,null,null,null,null,null,null,null,null,null,"地域福祉活動･自主活動","(3)",{"$f":"L84","v":0}]
[null,"",null,null,null,null,null,null,null,null,null,null,null,null,null,null,null,null,null,null,null,null,null,null,"民児協運営・研修","(4)",{"$f":"M84","v":0}]
[null,"",null,null,null,null,null,null,null,null,null,null,null,null,null,null,null,null,null,null,null,null,null,null,"証　明　事　務","(5)",{"$f":"N84","v":0}]
[null,"",null,null,null,null,null,null,null,null,null,null,null,null,null,null,null,null,null,null,null,null,null,null,"要保護児童の発見の通告･仲介","(6)",{"$f":"O84","v":0}]
[null,""]
[null,"",null,null,null,null,null,null,null,null,null,null,null,null,null,null,null,null,null,null,null,null,"訪問回数",null,"訪問・連絡活動","(7)",{"$f":"P84","v":0},"回"]
[null,"",null,null,null,null,null,null,null,null,null,null,null,null,null,null,null,null,null,null,null,null,null,null,"そ 　の　 他","(8)",{"$f":"Q84","v":0}]
[null,""]
[null,"",null,null,null,null,null,null,null,null,null,null,null,null,null,null,null,null,null,null,null,null,"連絡調整回数",null,"委　員　相　互","(9)",{"$f":"R84","v":0},"回"]
[null,"",null,null,null,null,null,null,null,null,null,null,null,null,null,null,null,null,null,null,null,null,null,null,"その他の関係機関","(10)",{"$f":"S84","v":0}]
[null,""]
[null,"",null,null,null,null,null,null,null,null,null,null,null,null,null,null,null,null,null,null,null,null,null,null,"活　動　日　数","(11)",{"$f":"T84","v":0},"日"]
[null,"",null,null,null,null,null,null,null,null,null,null,null,null,null,null,null,null,null,null,null,null,{"$f":"A1&\"年\"&E1&\"月\"","v":"2023年9月"}]
[null,"",null,null,null,null,null,null,null,null,null,null,null,null,null,null,null,null,null,null,null,null,"日","曜"]
[null,"",null,null,null,null,null,null,null,null,null,null,null,null,null,null,null,null,null,null,null,null,1,{"$f":"WEEKDAY($A$1&\"/\"&$E$1&\"/\"&W49)","v":6}]
[null,"",null,null,null,null,null,null,null,null,null,null,null,null,null,null,null,null,null,null,null,null,2,{"$f":"WEEKDAY($A$1&\"/\"&$E$1&\"/\"&W50)","v":7}]
[null,"",null,null,null,null,null,null,null,null,null,null,null,null,null,null,null,null,null,null,null,null,3,1]
[null,"",null,null,null,null,null,null,null,null,null,null,null,null,null,null,null,null,null,null,null,null,4,2]
[null,"",null,null,null,null,null,null,null,null,null,null,null,null,null,null,null,null,null,null,null,null,5,3]
[null,"",null,null,null,null,null,null,null,null,null,null,null,null,null,null,null,null,null,null,null,null,6,4]
[null,"",null,null,null,null,null,null,null,null,null,null,null,null,null,null,null,null,null,null,null,null,7,5]
[null,"",null,null,null,null,null,null,null,null,null,null,null,null,null,null,null,null,null,null,null,null,8,6]
[null,"",null,null,null,null,null,null,null,null,null,null,null,null,null,null,null,null,null,null,null,null,9,7]
[null,"",null,null,null,null,null,null,null,null,null,null,null,null,null,null,null,null,null,null,null,null,10,1]
[null,"",null,null,null,null,null,null,null,null,null,null,null,null,null,null,null,null,null,null,null,null,11,2]
[null,"",null,null,null,null,null,null,null,null,null,null,null,null,null,null,null,null,null,null,null,null,12,3]
[null,"",null,null,null,null,null,null,null,null,null,null,null,null,null,null,null,null,null,null,null,null,13,4]
[null,"",null,null,null,null,null,null,null,null,null,null,null,null,null,null,null,null,null,null,null,null,14,5]
[null,"",null,null,null,null,null,null,null,null,null,null,null,null,null,null,null,null,null,null,null,null,15,6]
[null,"",null,null,null,null,null,null,null,null,null,null,null,null,null,null,null,null,null,null,null,null,16,7]
[null,"",null,null,null,null,null,null,null,null,null,null,null,null,null,null,null,null,null,null,null,null,17,1]
[null,"",null,null,null,null,null,null,null,null,null,null,null,null,null,null,null,null,null,null,null,null,18,2]
[null,"",null,null,null,null,null,null,null,null,null,null,null,null,null,null,null,null,null,null,null,null,19,3]
[null,"",null,null,null,null,null,null,null,null,null,null,null,null,null,null,null,null,null,null,null,null,20,4]
[null,"",null,null,null,null,null,null,null,null,null,null,null,null,null,null,null,null,null,null,null,null,21,5]
[null,"",null,null,null,null,null,null,null,null,null,null,null,null,null,null,null,null,null,null,null,null,22,6]
[null,"",null,null,null,null,null,null,null,null,null,null,null,null,null,null,null,null,null,null,null,null,23,7]
[null,"",null,null,null,null,null,null,null,null,null,null,null,null,null,null,null,null,null,null,null,null,24,1]
[null,"",null,null,null,null,null,null,null,null,null,null,null,null,null,null,null,null,null,null,null,null,25,2]
[null,{"$f":"IF(A74<>\"\",WEEKDAY($A$1&\"/\"&$E$1&\"/\"&A74),\"\")","v":""},null,null,null,null,null,null,null,null,null,null,null,null,null,null,null,null,null,null,null,null,26,3]
[null,"",null,null,null,null,null,null,null,null,null,null,null,null,null,null,null,null,null,null,null,null,27,4]
[null,"",null,null,null,null,null,null,null,null,null,null,null,null,null,null,null,null,null,null,null,null,28,5]
[null,"",null,null,null,null,null,null,null,null,null,null,null,null,null,null,null,null,null,null,null,null,29,6]
[null,"",null,null,null,null,null,null,null,null,null,null,null,null,null,null,null,null,null,null,null,null,30,7]
[null,""]
[null,""]
[null,""]
[null,""]
[null,""]
["合　　　　　　計",null,null,null,null,null,null,{"$f":"COUNTA(H9:H83)","v":0},{"$f":"COUNTA(I9:I83)","v":0},{"$f":"SUM(J9:J83)","v":0},0,0,0,0,0,0,0,0,0,{"$f":"COUNTA(T9:T83)","v":0}]
[null,null,null,null,null,null,null,{"$f":"IF(H84=I84,\"\",\"※↑「内容」↑「分野」の件数が一致するように入力してください。\")","v":""},null,null,null,null,null,null,null,null,null,null,null,{"$f":"IF(T84>30,\"↑\",\"\")","v":""}]
[{"$f":"IF(B119<>T84,\"報告日数（A列）と活動日数（T列）が一致していません。活動日数（T列）は一日に一つだけ【〇】を入力してください。\",\"\")","v":""},null,null,null,null,null,null,null,null,null,null,null,null,null,null,null,null,null,null,{"$f":"IF(T84>30,\"活動日数が今月の日数を越えないように訂正してください。\",\"\")","v":""}]
[]
[{"$f":"COUNTIF($A$9:$A$83,1)","v":0},{"$f":"COUNTIF(A88,\">=1\" )","v":0}]
[{"$f":"COUNTIF($A$9:$A$83,2)","v":0},{"$f":"COUNTIF(A89,\">=1\" )","v":0}]
[{"$f":"COUNTIF($A$9:$A$83,3)","v":0},0]
[{"$f":"COUNTIF($A$9:$A$83,4)","v":0},0]
[{"$f":"COUNTIF($A$9:$A$83,5)","v":0},0]
[{"$f":"COUNTIF($A$9:$A$83,6)","v":0},0]
[{"$f":"COUNTIF($A$9:$A$83,7)","v":0},0]
[{"$f":"COUNTIF($A$9:$A$83,8)","v":0},0]
[{"$f":"COUNTIF($A$9:$A$83,9)","v":0},0]
[{"$f":"COUNTIF($A$9:$A$83,10)","v":0},0]
[{"$f":"COUNTIF($A$9:$A$83,11)","v":0},0]
[{"$f":"COUNTIF($A$9:$A$83,12)","v":0},0]
[{"$f":"COUNTIF($A$9:$A$83,13)","v":0},0]
[{"$f":"COUNTIF($A$9:$A$83,14)","v":0},0]
[{"$f":"COUNTIF($A$9:$A$83,15)","v":0},0]
[{"$f":"COUNTIF($A$9:$A$83,16)","v":0},0]
[{"$f":"COUNTIF($A$9:$A$83,17)","v":0},0]
[{"$f":"COUNTIF($A$9:$A$83,18)","v":0},0]
[{"$f":"COUNTIF($A$9:$A$83,19)","v":0},0]
[{"$f":"COUNTIF($A$9:$A$83,20)","v":0},0]
[{"$f":"COUNTIF($A$9:$A$83,21)","v":0},0]
[{"$f":"COUNTIF($A$9:$A$83,22)","v":0},0]
[{"$f":"COUNTIF($A$9:$A$83,23)","v":0},0]
[{"$f":"COUNTIF($A$9:$A$83,24)","v":0},0]
[{"$f":"COUNTIF($A$9:$A$83,25)","v":0},0]
[{"$f":"COUNTIF($A$9:$A$83,26)","v":0},0]
[{"$f":"COUNTIF($A$9:$A$83,27)","v":0},0]
[{"$f":"COUNTIF($A$9:$A$83,28)","v":0},0]
[{"$f":"COUNTIF($A$9:$A$83,29)","v":0},0]
[{"$f":"COUNTIF($A$9:$A$83,30)","v":0},0]
[{"$f":"COUNTIF($A$9:$A$83,31)","v":0},0]
[null,{"$f":"SUM(B88:B118)","v":0}]

{"sheet":"10月","index":16,"n_rows":119,"n_cols":43,"rows_kept":119,"cut":false,"hidden":false,"merged":[[16,29,16,34],[16,35,16,36],[16,37,16,38],[0,15,0,19],[1,15,1,19],[0,13,0,14],[1,13,1,14],[4,8,6,8],[0,0,0,2],[1,22,1,27],[5,24,6,27],[4,23,4,27],[4,18,6,18],[4,17,6,17],[4,16,6,16],[4,15,6,15],[4,14,6,14],[4,13,6,13],[4,12,6,12],[8,21,8,22],[9,22,9,27],[61,2,61,6],[69,2,69,6],[67,2,67,6],[68,2,68,6],[4,7,6,7],[55,2,55,6],[56,2,56,6],[57,2,57,6],[60,2,60,6],[47,2,47,6],[48,2,48,6],[65,2,65,6],[66,2,66,6],[49,2,49,6],[50,2,50,6],[58,2,58,6],[59,2,59,6],[54,2,54,6],[64,2,64,6],[63,2,63,6],[62,2,62,6],[33,2,33,6],[38,2,38,6],[43,2,43,6],[81,2,81,6],[71,2,71,6],[72,2,72,6],[73,2,73,6],[80,2,80,6],[70,2,70,6],[79,2,79,6],[75,2,75,6],[76,2,76,6],[77,2,77,6],[78,2,78,6],[74,2,74,6],[44,2,44,6],[45,2,45,6],[46,2,46,6],[40,2,40,6],[15,2,15,6],[11,2,11,6],[19,2,19,6],[20,2,20,6],[21,2,21,6],[30,2,30,6],[17,2,17,6],[51,2,51,6],[52,2,52,6],[53,2,53,6],[39,22,40,23],[29,2,29,6],[22,2,22,6],[23,2,23,6],[24,2,24,6],[25,2,25,6],[26,2,26,6],[28,2,28,6],[27,2,27,6],[31,2,31,6],[46,22,46,24],[32,2,32,6],[37,2,37,6],[41,2,41,6],[42,22,43,23],[26,23,30,23],[32,22,37,23],[11,22,30,22],[11,23,25,23],[31,22,31,27],[42,2,42,6],[83,0,83,6],[3,19,6,19],[3,9,3,14],[3,7,3,8],[13,2,13,6],[10,2,10,6],[3,0,7,1],[3,17,3,18],[3,15,3,16],[18,2,18,6],[12,2,12,6],[16,2,16,6],[3,2,7,6],[8,2,8,6],[4,11,6,11],[4,10,6,10],[82,2,82,6],[34,2,34,6],[35,2,35,6],[36,2,36,6],[39,2,39,6],[9,2,9,6],[14,2,14,6],[4,9,6,9]]}
[{"$f":"'4月'!$A$1","v":2023},null,null,"年",10,"月 の","民生委員･児童委員   活動記録内容",null,null,null,null,null,null,"民児協名：",null,{"$f":"総合計!L3","v":0},null,null,null,null,null,null,"民生委員番号"]
[{"$f":"IF(B119<>T84,\"報告日数（A列）と活動日数（T列）が一致していません。活動日数（T列）は一日に一つだけ【〇】を入力してください。\",\"\")","v":""},null,null,null,null,null,null,null,null,null,null,null,null,"氏 　　名：",null,{"$f":"総合計!L5","v":0},null,null,null,null,null,null,{"$f":"総合計!L2","v":0}]
[null,null,null,null,null,null,null,{"$f":"IF(H84=I84,\"\",\"※↓「内容」↓「分野」の件数が一致するように入力してください。\")","v":""},null,null,null,null,null,null,null,null,null,null,null,{"$f":"IF(T84>31,\"活動日数が今月の日数を越えないように訂正してください。\",\"\")","v":""}]
["日・曜日",null,"活 動 概 要",null,null,null,null,"相談･支援活動",null,"その他の活動",null,null,null,null,null,"訪問回数",null,"連絡調整回数",null,"活動日数",null,null,"民児協名:"]
[null,null,null,null,null,null,null,"内容","分野","調査・\n実態把握","行事･事業･会議への参加 ･協力","地域福祉活動 ･自主活動","民児協\n運営･研修","証明(調査・確認等)事務","要保護児童の発見の通告･仲介","訪問･\n連絡活動","その他","委員相互","その他の\n関係機関",null,null,null,null,{"$f":"総合計!L3","v":0}]
[null,null,null,null,null,null,null,null,null,null,null,null,null,null,null,null,null,null,null,null,null,null,"氏名：",null,{"$f":"総合計!L5","v":0}]
[]
[null,null,null,null,null,null,null,"(1)～(14)","(16)～(19)","(1)","(2)","(3)","(4)","(5)","(6)","(7)","(8)","(9)","(10)","(11)",null,null,null,null,null,null,null,null,null,"■会長報告用（データ）"]
[null,{"$f":"IF(A9<>\"\",WEEKDAY($A$1&\"/\"&$E$1&\"/\"&A9),\"\")","v":""},null,null,null,null,null,null,null,null,null,null,null,null,null,null,null,null,null,null,null,{"$f":"A1","v":2023},null,"年","10月分",null,null,null,null,"民児協の会長へデータで活動件数等をご報告する場合は下のデータをご利用ください。"]
[null,{"$f":"IF(A10<>\"\",WEEKDAY($A$1&\"/\"&$E$1&\"/\"&A10),\"\")","v":""},null,null,null,null,null,null,null,null,null,null,null,null,null,null,null,null,null,null,null,null," 活動件数 集計報告書 "]
[null,"",null,null,null,null,null,null,null,null,null,null,null,null,null,null,null,null,null,null,null,null,null,null,null,null,null,null,null,"相談・支援活動（内容別）"]
[null,"",null,null,null,null,null,null,null,null,null,null,null,null,null,null,null,null,null,null,null,null,"相談・支援活動","（内容別）","在　宅　福　祉","(1)",{"$f":"COUNTIF($H$9:$H$83,1)","v":0},"件",null,"(1)","(2)","(3)","(4)","(5)","(6)","(7)","(8)","(9)","(10)","(11)","(12)","(13)","(14)"]
[null,"",null,null,null,null,null,null,null,null,null,null,null,null,null,null,null,null,null,null,null,null,null,null,"介　護　保　険","(2)",{"$f":"COUNTIF($H$9:$H$83,2)","v":0},null,null,{"$f":"AA12","v":0},{"$f":"AA13","v":0},{"$f":"AA14","v":0},{"$f":"AA15","v":0},{"$f":"AA16","v":0},{"$f":"AA17","v":0},{"$f":"AA18","v":0},{"$f":"AA19","v":0},{"$f":"AA20","v":0},{"$f":"AA21","v":0},{"$f":"AA22","v":0},{"$f":"AA23","v":0},{"$f":"AA24","v":0},{"$f":"AA25","v":0}]
[null,"",null,null,null,null,null,null,null,null,null,null,null,null,null,null,null,null,null,null,null,null,null,null,"健康・保健医療","(3)",{"$f":"COUNTIF($H$9:$H$83,3)","v":0},null,null,"相談・支援活動（分野別）"]
[null,"",null,null,null,null,null,null,null,null,null,null,null,null,null,null,null,null,null,null,null,null,null,null,"子育て・母子保健","(4)",{"$f":"COUNTIF($H$9:$H$83,4)","v":0},null,null,"(16)","(17)","(18)","(19)"]
[null,"",null,null,null,null,null,null,null,null,null,null,null,null,null,null,null,null,null,null,null,null,null,null,"子どもの地域生活","(5)",{"$f":"COUNTIF($H$9:$H$83,5)","v":0},null,null,{"$f":"AA27","v":0},{"$f":"AA28","v":0},{"$f":"AA29","v":0},{"$f":"AA30","v":0}]
[null,"",null,null,null,null,null,null,null,null,null,null,null,null,null,null,null,null,null,null,null,null,null,null,"子どもの教育･学校生活","(6)",{"$f":"COUNTIF($H$9:$H$83,6)","v":0},null,null,"その他活動",null,null,null,null,null,"訪問回数",null,"連絡調整回数",null,"活動日数"]
[null,"",null,null,null,null,null,null,null,null,null,null,null,null,null,null,null,null,null,null,null,null,null,null,"生　　活　　費","(7)",{"$f":"COUNTIF($H$9:$H$83,7)","v":0},null,null,"(1)","(2)","(3)","(4)","(5)","(6)","(7)","(8)","(9)","(10)","(11)"]
[null,"",null,null,null,null,null,null,null,null,null,null,null,null,null,null,null,null,null,null,null,null,null,null,"年　金・保　険","(8)",{"$f":"COUNTIF($H$9:$H$83,8)","v":0},null,null,{"$f":"AA33","v":0},{"$f":"AA34","v":0},{"$f":"AA35","v":0},{"$f":"AA36","v":0},{"$f":"AA37","v":0},{"$f":"AA38","v":0},{"$f":"AA40","v":0},{"$f":"AA41","v":0},{"$f":"AA43","v":0},{"$f":"AA44","v":0},{"$f":"AA46","v":0}]
[null,"",null,null,null,null,null,null,null,null,null,null,null,null,null,null,null,null,null,null,null,null,null,null,"仕　　　　　事","(9)",{"$f":"COUNTIF($H$9:$H$83,9)","v":0}]
[null,"",null,null,null,null,null,null,null,null,null,null,null,null,null,null,null,null,null,null,null,null,null,null,"家　族　関　係","(10)",{"$f":"COUNTIF($H$9:$H$83,10)","v":0}]
[null,"",null,null,null,null,null,null,null,null,null,null,null,null,null,null,null,null,null,null,null,null,null,null,"住　　　　　居","(11)",{"$f":"COUNTIF($H$9:$H$83,11)","v":0}]
[null,"",null,null,null,null,null,null,null,null,null,null,null,null,null,null,null,null,null,null,null,null,null,null,"生　活　環　境","(12)",{"$f":"COUNTIF($H$9:$H$83,12)","v":0}]
[null,"",null,null,null,null,null,null,null,null,null,null,null,null,null,null,null,null,null,null,null,null,null,null,"日 常 的 な 支 援","(13)",{"$f":"COUNTIF($H$9:$H$83,13)","v":0}]
[null,"",null,null,null,null,null,null,null,null,null,null,null,null,null,null,null,null,null,null,null,null,null,null,"そ　　の　　他","(14)",{"$f":"COUNTIF($H$9:$H$83,14)","v":0}]
[null,"",null,null,null,null,null,null,null,null,null,null,null,null,null,null,null,null,null,null,null,null,null,null,"計","(15)",{"$f":"SUM(AA12:AA25)","v":0}]
[null,"",null,null,null,null,null,null,null,null,null,null,null,null,null,null,null,null,null,null,null,null,null,"（分野別）","高齢者に関すること","(16)",{"$f":"COUNTIF($I$9:$I$83,16)","v":0},"件"]
[null,"",null,null,null,null,null,null,null,null,null,null,null,null,null,null,null,null,null,null,null,null,null,null,"障害者に関すること","(17)",{"$f":"COUNTIF($I$9:$I$83,17)","v":0}]
[null,"",null,null,null,null,null,null,null,null,null,null,null,null,null,null,null,null,null,null,null,null,null,null,"子どもに関すること","(18)",{"$f":"COUNTIF($I$9:$I$83,18)","v":0}]
[null,"",null,null,null,null,null,null,null,null,null,null,null,null,null,null,null,null,null,null,null,null,null,null,"そ　　の　　他","(19)",{"$f":"COUNTIF($I$9:$I$83,19)","v":0}]
[null,"",null,null,null,null,null,null,null,null,null,null,null,null,null,null,null,null,null,null,null,null,null,null,"計","(20)",{"$f":"SUM(AA27:AA30)","v":0}]
[null,"",null,null,null,null,null,null,null,null,null,null,null,null,null,null,null,null,null,null,null,null,"　※(15)と(20)の合計件数は一致　"]
[null,"",null,null,null,null,null,null,null,null,null,null,null,null,null,null,null,null,null,null,null,null,"その他の活動",null,"調査・実態把握","(1)",{"$f":"J84","v":0},"件"]
[null,"",null,null,null,null,null,null,null,null,null,null,null,null,null,null,null,null,null,null,null,null,null,null,"行事・事業・会議への参加・協力","(2)",{"$f":"K84","v":0}]
[null,"",null,null,null,null,null,null,null,null,null,null,null,null,null,null,null,null,null,null,null,null,null,null,"地域福祉活動･自主活動","(3)",{"$f":"L84","v":0}]
[null,"",null,null,null,null,null,null,null,null,null,null,null,null,null,null,null,null,null,null,null,null,null,null,"民児協運営・研修","(4)",{"$f":"M84","v":0}]
[null,"",null,null,null,null,null,null,null,null,null,null,null,null,null,null,null,null,null,null,null,null,null,null,"証　明　事　務","(5)",{"$f":"N84","v":0}]
[null,"",null,null,null,null,null,null,null,null,null,null,null,null,null,null,null,null,null,null,null,null,null,null,"要保護児童の発見の通告･仲介","(6)",{"$f":"O84","v":0}]
[null,""]
[null,"",null,null,null,null,null,null,null,null,null,null,null,null,null,null,null,null,null,null,null,null,"訪問回数",null,"訪問・連絡活動","(7)",{"$f":"P84","v":0},"回"]
[null,"",null,null,null,null,null,null,null,null,null,null,null,null,null,null,null,null,null,null,null,null,null,null,"そ 　の　 他","(8)",{"$f":"Q84","v":0}]
[null,""]
[null,"",null,null,null,null,null,null,null,null,null,null,null,null,null,null,null,null,null,null,null,null,"連絡調整回数",null,"委　員　相　互","(9)",{"$f":"R84","v":0},"回"]
[null,"",null,null,null,null,null,null,null,null,null,null,null,null,null,null,null,null,null,null,null,null,null,null,"その他の関係機関","(10)",{"$f":"S84","v":0}]
[null,""]
[null,"",null,null,null,null,null,null,null,null,null,null,null,null,null,null,null,null,null,null,null,null,null,null,"活　動　日　数","(11)",{"$f":"T84","v":0},"日"]
[null,"",null,null,null,null,null,null,null,null,null,null,null,null,null,null,null,null,null,null,null,null,{"$f":"A1&\"年\"&E1&\"月\"","v":"2023年10月"}]
[null,"",null,null,null,null,null,null,null,null,null,null,null,null,null,null,null,null,null,null,null,null,"日","曜"]
[null,"",null,null,null,null,null,null,null,null,null,null,null,null,null,null,null,null,null,null,null,null,1,{"$f":"WEEKDAY($A$1&\"/\"&$E$1&\"/\"&W49)","v":1}]
[null,"",null,null,null,null,null,null,null,null,null,null,null,null,null,null,null,null,null,null,null,null,2,{"$f":"WEEKDAY($A$1&\"/\"&$E$1&\"/\"&W50)","v":2}]
[null,"",null,null,null,null,null,null,null,null,null,null,null,null,null,null,null,null,null,null,null,null,3,3]
[null,"",null,null,null,null,null,null,null,null,null,null,null,null,null,null,null,null,null,null,null,null,4,4]
[null,"",null,null,null,null,null,null,null,null,null,null,null,null,null,null,null,null,null,null,null,null,5,5]
[null,"",null,null,null,null,null,null,null,null,null,null,null,null,null,null,null,null,null,null,null,null,6,6]
[null,"",null,null,null,null,null,null,null,null,null,null,null,null,null,null,null,null,null,null,null,null,7,7]
[null,"",null,null,null,null,null,null,null,null,null,null,null,null,null,null,null,null,null,null,null,null,8,1]
[null,"",null,null,null,null,null,null,null,null,null,null,null,null,null,null,null,null,null,null,null,null,9,2]
[null,"",null,null,null,null,null,null,null,null,null,null,null,null,null,null,null,null,null,null,null,null,10,3]
[null,"",null,null,null,null,null,null,null,null,null,null,null,null,null,null,null,null,null,null,null,null,11,4]
[null,"",null,null,null,null,null,null,null,null,null,null,null,null,null,null,null,null,null,null,null,null,12,5]
[null,"",null,null,null,null,null,null,null,null,null,null,null,null,null,null,null,null,null,null,null,null,13,6]
[null,"",null,null,null,null,null,null,null,null,null,null,null,null,null,null,null,null,null,null,null,null,14,7]
[null,"",null,null,null,null,null,null,null,null,null,null,null,null,null,null,null,null,null,null,null,null,15,1]
[null,"",null,null,null,null,null,null,null,null,null,null,null,null,null,null,null,null,null,null,null,null,16,2]
[null,"",null,null,null,null,null,null,null,null,null,null,null,null,null,null,null,null,null,null,null,null,17,3]
[null,"",null,null,null,null,null,null,null,null,null,null,null,null,null,null,null,null,null,null,null,null,18,4]
[null,"",null,null,null,null,null,null,null,null,null,null,null,null,null,null,null,null,null,null,null,null,19,5]
[null,"",null,null,null,null,null,null,null,null,null,null,null,null,null,null,null,null,null,null,null,null,20,6]
[null,"",null,null,null,null,null,null,null,null,null,null,null,null,null,null,null,null,null,null,null,null,21,7]
[null,"",null,null,null,null,null,null,null,null,null,null,null,null,null,null,null,null,null,null,null,null,22,1]
[null,"",null,null,null,null,null,null,null,null,null,null,null,null,null,null,null,null,null,null,null,null,23,2]
[null,"",null,null,null,null,null,null,null,null,null,null,null,null,null,null,null,null,null,null,null,null,24,3]
[null,"",null,null,null,null,null,null,null,null,null,null,null,null,null,null,null,null,null,null,null,null,25,4]
[null,{"$f":"IF(A74<>\"\",WEEKDAY($A$1&\"/\"&$E$1&\"/\"&A74),\"\")","v":""},null,null,null,null,null,null,null,null,null,null,null,null,null,null,null,null,null,null,null,null,26,5]
[null,"",null,null,null,null,null,null,null,null,null,null,null,null,null,null,null,null,null,null,null,null,27,6]
[null,"",null,null,null,null,null,null,null,null,null,null,null,null,null,null,null,null,null,null,null,null,28,7]
[null,"",null,null,null,null,null,null,null,null,null,null,null,null,null,null,null,null,null,null,null,null,29,1]
[null,"",null,null,null,null,null,null,null,null,null,null,null,null,null,null,null,null,null,null,null,null,30,2]
[null,"",null,null,null,null,null,null,null,null,null,null,null,null,null,null,null,null,null,null,null,null,31,3]
[null,""]
[null,""]
[null,""]
[null,""]
["合　　　　　　計",null,null,null,null,null,null,{"$f":"COUNTA(H9:H83)","v":0},{"$f":"COUNTA(I9:I83)","v":0},{"$f":"SUM(J9:J83)","v":0},0,0,0,0,0,0,0,0,0,{"$f":"COUNTA(T9:T83)","v":0}]
[null,null,null,null,null,null,null,{"$f":"IF(H84=I84,\"\",\"※↑「内容」↑「分野」の件数が一致するように入力してください。\")","v":""},null,null,null,null,null,null,null,null,null,null,null,{"$f":"IF(T84>31,\"↑\",\"\")","v":""}]
[{"$f":"IF(B119<>T84,\"報告日数（A列）と活動日数（T列）が一致していません。活動日数（T列）は一日に一つだけ【〇】を入力してください。\",\"\")","v":""},null,null,null,null,null,null,null,null,null,null,null,null,null,null,null,null,null,null,{"$f":"IF(T84>31,\"活動日数が今月の日数を越えないように訂正してください。\",\"\")","v":""}]
[]
[{"$f":"COUNTIF($A$9:$A$83,1)","v":0},{"$f":"COUNTIF(A88,\">=1\" )","v":0}]
[{"$f":"COUNTIF($A$9:$A$83,2)","v":0},{"$f":"COUNTIF(A89,\">=1\" )","v":0}]
[{"$f":"COUNTIF($A$9:$A$83,3)","v":0},0]
[{"$f":"COUNTIF($A$9:$A$83,4)","v":0},0]
[{"$f":"COUNTIF($A$9:$A$83,5)","v":0},0]
[{"$f":"COUNTIF($A$9:$A$83,6)","v":0},0]
[{"$f":"COUNTIF($A$9:$A$83,7)","v":0},0]
[{"$f":"COUNTIF($A$9:$A$83,8)","v":0},0]
[{"$f":"COUNTIF($A$9:$A$83,9)","v":0},0]
[{"$f":"COUNTIF($A$9:$A$83,10)","v":0},0]
[{"$f":"COUNTIF($A$9:$A$83,11)","v":0},0]
[{"$f":"COUNTIF($A$9:$A$83,12)","v":0},0]
[{"$f":"COUNTIF($A$9:$A$83,13)","v":0},0]
[{"$f":"COUNTIF($A$9:$A$83,14)","v":0},0]
[{"$f":"COUNTIF($A$9:$A$83,15)","v":0},0]
[{"$f":"COUNTIF($A$9:$A$83,16)","v":0},0]
[{"$f":"COUNTIF($A$9:$A$83,17)","v":0},0]
[{"$f":"COUNTIF($A$9:$A$83,18)","v":0},0]
[{"$f":"COUNTIF($A$9:$A$83,19)","v":0},0]
[{"$f":"COUNTIF($A$9:$A$83,20)","v":0},0]
[{"$f":"COUNTIF($A$9:$A$83,21)","v":0},0]
[{"$f":"COUNTIF($A$9:$A$83,22)","v":0},0]
[{"$f":"COUNTIF($A$9:$A$83,23)","v":0},0]
[{"$f":"COUNTIF($A$9:$A$83,24)","v":0},0]
[{"$f":"COUNTIF($A$9:$A$83,25)","v":0},0]
[{"$f":"COUNTIF($A$9:$A$83,26)","v":0},0]
[{"$f":"COUNTIF($A$9:$A$83,27)","v":0},0]
[{"$f":"COUNTIF($A$9:$A$83,28)","v":0},0]
[{"$f":"COUNTIF($A$9:$A$83,29)","v":0},0]
[{"$f":"COUNTIF($A$9:$A$83,30)","v":0},0]
[{"$f":"COUNTIF($A$9:$A$83,31)","v":0},0]
[null,{"$f":"SUM(B88:B118)","v":0}]

{"sheet":"11月","index":17,"n_rows":119,"n_cols":43,"rows_kept":119,"cut":false,"hidden":false,"merged":[[16,29,16,34],[16,35,16,36],[16,37,16,38],[15,2,15,6],[8,2,8,6],[0,0,0,2],[4,10,6,10],[4,9,6,9],[4,18,6,18],[4,17,6,17],[4,16,6,16],[4,15,6,15],[4,14,6,14],[4,13,6,13],[3,0,7,1],[3,17,3,18],[3,15,3,16],[4,11,6,11],[0,15,0,19],[0,13,0,14],[26,2,26,6],[27,2,27,6],[28,2,28,6],[5,24,6,27],[4,23,4,27],[83,0,83,6],[3,19,6,19],[3,9,3,14],[3,7,3,8],[13,2,13,6],[8,21,8,22],[42,22,43,23],[26,23,30,23],[32,22,37,23],[11,22,30,22],[11,23,25,23],[4,12,6,12],[31,22,31,27],[39,22,40,23],[9,22,9,27],[17,2,17,6],[3,2,7,6],[9,2,9,6],[14,2,14,6],[82,2,82,6],[33,2,33,6],[34,2,34,6],[35,2,35,6],[36,2,36,6],[39,2,39,6],[40,2,40,6],[43,2,43,6],[44,2,44,6],[58,2,58,6],[51,2,51,6],[52,2,52,6],[53,2,53,6],[59,2,59,6],[45,2,45,6],[81,2,81,6],[71,2,71,6],[72,2,72,6],[73,2,73,6],[80,2,80,6],[70,2,70,6],[74,2,74,6],[61,2,61,6],[62,2,62,6],[64,2,64,6],[1,22,1,27],[46,22,46,24],[1,15,1,19],[1,13,1,14],[30,2,30,6],[31,2,31,6],[32,2,32,6],[37,2,37,6],[41,2,41,6],[38,2,38,6],[49,2,49,6],[54,2,54,6],[48,2,48,6],[50,2,50,6],[11,2,11,6],[10,2,10,6],[12,2,12,6],[16,2,16,6],[29,2,29,6],[22,2,22,6],[23,2,23,6],[24,2,24,6],[25,2,25,6],[79,2,79,6],[75,2,75,6],[76,2,76,6],[77,2,77,6],[78,2,78,6],[4,8,6,8],[4,7,6,7],[55,2,55,6],[56,2,56,6],[57,2,57,6],[19,2,19,6],[20,2,20,6],[21,2,21,6],[18,2,18,6],[60,2,60,6],[47,2,47,6],[46,2,46,6],[42,2,42,6],[63,2,63,6],[69,2,69,6],[67,2,67,6],[68,2,68,6],[65,2,65,6],[66,2,66,6]]}
[{"$f":"'4月'!$A$1","v":2023},null,null,"年",11,"月 の","民生委員･児童委員   活動記録内容",null,null,null,null,null,null,"民児協名：",null,{"$f":"総合計!L3","v":0},null,null,null,null,null,null,"民生委員番号"]
[{"$f":"IF(B119<>T84,\"報告日数（A列）と活動日数（T列）が一致していません。活動日数（T列）は一日に一つだけ【〇】を入力してください。\",\"\")","v":""},null,null,null,null,null,null,null,null,null,null,null,null,"氏 　　名：",null,{"$f":"総合計!L5","v":0},null,null,null,null,null,null,{"$f":"総合計!L2","v":0}]
[null,null,null,null,null,null,null,{"$f":"IF(H84=I84,\"\",\"※↓「内容」↓「分野」の件数が一致するように入力してください。\")","v":""},null,null,null,null,null,null,null,null,null,null,null,{"$f":"IF(T84>30,\"活動日数が今月の日数を越えないように訂正してください。\",\"\")","v":""}]
["日・曜日",null,"活 動 概 要",null,null,null,null,"相談･支援活動",null,"その他の活動",null,null,null,null,null,"訪問回数",null,"連絡調整回数",null,"活動日数",null,null,"民児協名:"]
[null,null,null,null,null,null,null,"内容","分野","調査・\n実態把握","行事･事業･会議への参加 ･協力","地域福祉活動 ･自主活動","民児協\n運営･研修","証明(調査・確認等)事務","要保護児童の発見の通告･仲介","訪問･\n連絡活動","その他","委員相互","その他の\n関係機関",null,null,null,null,{"$f":"総合計!L3","v":0}]
[null,null,null,null,null,null,null,null,null,null,null,null,null,null,null,null,null,null,null,null,null,null,"氏名：",null,{"$f":"総合計!L5","v":0}]
[]
[null,null,null,null,null,null,null,"(1)～(14)","(16)～(19)","(1)","(2)","(3)","(4)","(5)","(6)","(7)","(8)","(9)","(10)","(11)",null,null,null,null,null,null,null,null,null,"■会長報告用（データ）"]
[null,{"$f":"IF(A9<>\"\",WEEKDAY($A$1&\"/\"&$E$1&\"/\"&A9),\"\")","v":""},null,null,null,null,null,null,null,null,null,null,null,null,null,null,null,null,null,null,null,{"$f":"A1","v":2023},null,"年","11月分",null,null,null,null,"民児協の会長へデータで活動件数等をご報告する場合は下のデータをご利用ください。"]
[null,{"$f":"IF(A10<>\"\",WEEKDAY($A$1&\"/\"&$E$1&\"/\"&A10),\"\")","v":""},null,null,null,null,null,null,null,null,null,null,null,null,null,null,null,null,null,null,null,null," 活動件数 集計報告書 "]
[null,"",null,null,null,null,null,null,null,null,null,null,null,null,null,null,null,null,null,null,null,null,null,null,null,null,null,null,null,"相談・支援活動（内容別）"]
[null,"",null,null,null,null,null,null,null,null,null,null,null,null,null,null,null,null,null,null,null,null,"相談・支援活動","（内容別）","在　宅　福　祉","(1)",{"$f":"COUNTIF($H$9:$H$83,1)","v":0},"件",null,"(1)","(2)","(3)","(4)","(5)","(6)","(7)","(8)","(9)","(10)","(11)","(12)","(13)","(14)"]
[null,"",null,null,null,null,null,null,null,null,null,null,null,null,null,null,null,null,null,null,null,null,null,null,"介　護　保　険","(2)",{"$f":"COUNTIF($H$9:$H$83,2)","v":0},null,null,{"$f":"AA12","v":0},{"$f":"AA13","v":0},{"$f":"AA14","v":0},{"$f":"AA15","v":0},{"$f":"AA16","v":0},{"$f":"AA17","v":0},{"$f":"AA18","v":0},{"$f":"AA19","v":0},{"$f":"AA20","v":0},{"$f":"AA21","v":0},{"$f":"AA22","v":0},{"$f":"AA23","v":0},{"$f":"AA24","v":0},{"$f":"AA25","v":0}]
[null,"",null,null,null,null,null,null,null,null,null,null,null,null,null,null,null,null,null,null,null,null,null,null,"健康・保健医療","(3)",{"$f":"COUNTIF($H$9:$H$83,3)","v":0},null,null,"相談・支援活動（分野別）"]
[null,"",null,null,null,null,null,null,null,null,null,null,null,null,null,null,null,null,null,null,null,null,null,null,"子育て・母子保健","(4)",{"$f":"COUNTIF($H$9:$H$83,4)","v":0},null,null,"(16)","(17)","(18)","(19)"]
[null,"",null,null,null,null,null,null,null,null,null,null,null,null,null,null,null,null,null,null,null,null,null,null,"子どもの地域生活","(5)",{"$f":"COUNTIF($H$9:$H$83,5)","v":0},null,null,{"$f":"AA27","v":0},{"$f":"AA28","v":0},{"$f":"AA29","v":0},{"$f":"AA30","v":0}]
[null,"",null,null,null,null,null,null,null,null,null,null,null,null,null,null,null,null,null,null,null,null,null,null,"子どもの教育･学校生活","(6)",{"$f":"COUNTIF($H$9:$H$83,6)","v":0},null,null,"その他活動",null,null,null,null,null,"訪問回数",null,"連絡調整回数",null,"活動日数"]
[null,"",null,null,null,null,null,null,null,null,null,null,null,null,null,null,null,null,null,null,null,null,null,null,"生　　活　　費","(7)",{"$f":"COUNTIF($H$9:$H$83,7)","v":0},null,null,"(1)","(2)","(3)","(4)","(5)","(6)","(7)","(8)","(9)","(10)","(11)"]
[null,"",null,null,null,null,null,null,null,null,null,null,null,null,null,null,null,null,null,null,null,null,null,null,"年　金・保　険","(8)",{"$f":"COUNTIF($H$9:$H$83,8)","v":0},null,null,{"$f":"AA33","v":0},{"$f":"AA34","v":0},{"$f":"AA35","v":0},{"$f":"AA36","v":0},{"$f":"AA37","v":0},{"$f":"AA38","v":0},{"$f":"AA40","v":0},{"$f":"AA41","v":0},{"$f":"AA43","v":0},{"$f":"AA44","v":0},{"$f":"AA46","v":0}]
[null,"",null,null,null,null,null,null,null,null,null,null,null,null,null,null,null,null,null,null,null,null,null,null,"仕　　　　　事","(9)",{"$f":"COUNTIF($H$9:$H$83,9)","v":0}]
[null,"",null,null,null,null,null,null,null,null,null,null,null,null,null,null,null,null,null,null,null,null,null,null,"家　族　関　係","(10)",{"$f":"COUNTIF($H$9:$H$83,10)","v":0}]
[null,"",null,null,null,null,null,null,null,null,null,null,null,null,null,null,null,null,null,null,null,null,null,null,"住　　　　　居","(11)",{"$f":"COUNTIF($H$9:$H$83,11)","v":0}]
[null,"",null,null,null,null,null,null,null,null,null,null,null,null,null,null,null,null,null,null,null,null,null,null,"生　活　環　境","(12)",{"$f":"COUNTIF($H$9:$H$83,12)","v":0}]
[null,"",null,null,null,null,null,null,null,null,null,null,null,null,null,null,null,null,null,null,null,null,null,null,"日 常 的 な 支 援","(13)",{"$f":"COUNTIF($H$9:$H$83,13)","v":0}]
[null,"",null,null,null,null,null,null,null,null,null,null,null,null,null,null,null,null,null,null,null,null,null,null,"そ　　の　　他","(14)",{"$f":"COUNTIF($H$9:$H$83,14)","v":0}]
[null,"",null,null,null,null,null,null,null,null,null,null,null,null,null,null,null,null,null,null,null,null,null,null,"計","(15)",{"$f":"SUM(AA12:AA25)","v":0}]
[null,"",null,null,null,null,null,null,null,null,null,null,null,null,null,null,null,null,null,null,null,null,null,"（分野別）","高齢者に関すること","(16)",{"$f":"COUNTIF($I$9:$I$83,16)","v":0},"件"]
[null,"",null,null,null,null,null,null,null,null,null,null,null,null,null,null,null,null,null,null,null,null,null,null,"障害者に関すること","(17)",{"$f":"COUNTIF($I$9:$I$83,17)","v":0}]
[null,"",null,null,null,null,null,null,null,null,null,null,null,null,null,null,null,null,null,null,null,null,null,null,"子どもに関すること","(18)",{"$f":"COUNTIF($I$9:$I$83,18)","v":0}]
[null,"",null,null,null,null,null,null,null,null,null,null,null,null,null,null,null,null,null,null,null,null,null,null,"そ　　の　　他","(19)",{"$f":"COUNTIF($I$9:$I$83,19)","v":0}]
[null,"",null,null,null,null,null,null,null,null,null,null,null,null,null,null,null,null,null,null,null,null,null,null,"計","(20)",{"$f":"SUM(AA27:AA30)","v":0}]
[null,"",null,null,null,null,null,null,null,null,null,null,null,null,null,null,null,null,null,null,null,null,"　※(15)と(20)の合計件数は一致　"]
[null,"",null,null,null,null,null,null,null,null,null,null,null,null,null,null,null,null,null,null,null,null,"その他の活動",null,"調査・実態把握","(1)",{"$f":"J84","v":0},"件"]
[null,"",null,null,null,null,null,null,null,null,null,null,null,null,null,null,null,null,null,null,null,null,null,null,"行事・事業・会議への参加・協力","(2)",{"$f":"K84","v":0}]
[null,"",null,null,null,null,null,null,null,null,null,null,null,null,null,null,null,null,null,null,null,null,null,null,"地域福祉活動･自主活動","(3)",{"$f":"L84","v":0}]
[null,"",null,null,null,null,null,null,null,null,null,null,null,null,null,null,null,null,null,null,null,null,null,null,"民児協運営・研修","(4)",{"$f":"M84","v":0}]
[null,"",null,null,null,null,null,null,null,null,null,null,null,null,null,null,null,null,null,null,null,null,null,null,"証　明　事　務","(5)",{"$f":"N84","v":0}]
[null,"",null,null,null,null,null,null,null,null,null,null,null,null,null,null,null,null,null,null,null,null,null,null,"要保護児童の発見の通告･仲介","(6)",{"$f":"O84","v":0}]
[null,""]
[null,"",null,null,null,null,null,null,null,null,null,null,null,null,null,null,null,null,null,null,null,null,"訪問回数",null,"訪問・連絡活動","(7)",{"$f":"P84","v":0},"回"]
[null,"",null,null,null,null,null,null,null,null,null,null,null,null,null,null,null,null,null,null,null,null,null,null,"そ 　の　 他","(8)",{"$f":"Q84","v":0}]
[null,""]
[null,"",null,null,null,null,null,null,null,null,null,null,null,null,null,null,null,null,null,null,null,null,"連絡調整回数",null,"委　員　相　互","(9)",{"$f":"R84","v":0},"回"]
[null,"",null,null,null,null,null,null,null,null,null,null,null,null,null,null,null,null,null,null,null,null,null,null,"その他の関係機関","(10)",{"$f":"S84","v":0}]
[null,""]
[null,"",null,null,null,null,null,null,null,null,null,null,null,null,null,null,null,null,null,null,null,null,null,null,"活　動　日　数","(11)",{"$f":"T84","v":0},"日"]
[null,"",null,null,null,null,null,null,null,null,null,null,null,null,null,null,null,null,null,null,null,null,{"$f":"A1&\"年\"&E1&\"月\"","v":"2023年11月"}]
[null,"",null,null,null,null,null,null,null,null,null,null,null,null,null,null,null,null,null,null,null,null,"日","曜"]
[null,"",null,null,null,null,null,null,null,null,null,null,null,null,null,null,null,null,null,null,null,null,1,{"$f":"WEEKDAY($A$1&\"/\"&$E$1&\"/\"&W49)","v":4}]
[null,"",null,null,null,null,null,null,null,null,null,null,null,null,null,null,null,null,null,null,null,null,2,{"$f":"WEEKDAY($A$1&\"/\"&$E$1&\"/\"&W50)","v":5}]
[null,"",null,null,null,null,null,null,null,null,null,null,null,null,null,null,null,null,null,null,null,null,3,6]
[null,"",null,null,null,null,null,null,null,null,null,null,null,null,null,null,null,null,null,null,null,null,4,7]
[null,"",null,null,null,null,null,null,null,null,null,null,null,null,null,null,null,null,null,null,null,null,5,1]
[null,"",null,null,null,null,null,null,null,null,null,null,null,null,null,null,null,null,null,null,null,null,6,2]
[null,"",null,null,null,null,null,null,null,null,null,null,null,null,null,null,null,null,null,null,null,null,7,3]
[null,"",null,null,null,null,null,null,null,null,null,null,null,null,null,null,null,null,null,null,null,null,8,4]
[null,"",null,null,null,null,null,null,null,null,null,null,null,null,null,null,null,null,null,null,null,null,9,5]
[null,"",null,null,null,null,null,null,null,null,null,null,null,null,null,null,null,null,null,null,null,null,10,6]
[null,"",null,null,null,null,null,null,null,null,null,null,null,null,null,null,null,null,null,null,null,null,11,7]
[null,"",null,null,null,null,null,null,null,null,null,null,null,null,null,null,null,null,null,null,null,null,12,1]
[null,"",null,null,null,null,null,null,null,null,null,null,null,null,null,null,null,null,null,null,null,null,13,2]
[null,"",null,null,null,null,null,null,null,null,null,null,null,null,null,null,null,null,null,null,null,null,14,3]
[null,"",null,null,null,null,null,null,null,null,null,null,null,null,null,null,null,null,null,null,null,null,15,4]
[null,"",null,null,null,null,null,null,null,null,null,null,null,null,null,null,null,null,null,null,null,null,16,5]
[null,"",null,null,null,null,null,null,null,null,null,null,null,null,null,null,null,null,null,null,null,null,17,6]
[null,"",null,null,null,null,null,null,null,null,null,null,null,null,null,null,null,null,null,null,null,null,18,7]
[null,"",null,null,null,null,null,null,null,null,null,null,null,null,null,null,null,null,null,null,null,null,19,1]
[null,"",null,null,null,null,null,null,null,null,null,null,null,null,null,null,null,null,null,null,null,null,20,2]
[null,"",null,null,null,null,null,null,null,null,null,null,null,null,null,null,null,null,null,null,null,null,21,3]
[null,"",null,null,null,null,null,null,null,null,null,null,null,null,null,null,null,null,null,null,null,null,22,4]
[null,"",null,null,null,null,null,null,null,null,null,null,null,null,null,null,null,null,null,null,null,null,23,5]
[null,"",null,null,null,null,null,null,null,null,null,null,null,null,null,null,null,null,null,null,null,null,24,6]
[null,"",null,null,null,null,null,null,null,null,null,null,null,null,null,null,null,null,null,null,null,null,25,7]
[null,{"$f":"IF(A74<>\"\",WEEKDAY($A$1&\"/\"&$E$1&\"/\"&A74),\"\")","v":""},null,null,null,null,null,null,null,null,null,null,null,null,null,null,null,null,null,null,null,null,26,1]
[null,"",null,null,null,null,null,null,null,null,null,null,null,null,null,null,null,null,null,null,null,null,27,2]
[null,"",null,null,null,null,null,null,null,null,null,null,null,null,null,null,null,null,null,null,null,null,28,3]
[null,"",null,null,null,null,null,null,null,null,null,null,null,null,null,null,null,null,null,null,null,null,29,4]
[null,"",null,null,null,null,null,null,null,null,null,null,null,null,null,null,null,null,null,null,null,null,30,5]
[null,""]
[null,""]
[null,""]
[null,""]
[null,""]
["合　　　　　　計",null,null,null,null,null,null,{"$f":"COUNTA(H9:H83)","v":0},{"$f":"COUNTA(I9:I83)","v":0},{"$f":"SUM(J9:J83)","v":0},0,0,0,0,0,0,0,0,0,{"$f":"COUNTA(T9:T83)","v":0}]
[null,null,null,null,null,null,null,{"$f":"IF(H84=I84,\"\",\"※↑「内容」↑「分野」の件数が一致するように入力してください。\")","v":""},null,null,null,null,null,null,null,null,null,null,null,{"$f":"IF(T84>30,\"↑\",\"\")","v":""}]
[{"$f":"IF(B119<>T84,\"報告日数（A列）と活動日数（T列）が一致していません。活動日数（T列）は一日に一つだけ【〇】を入力してください。\",\"\")","v":""},null,null,null,null,null,null,null,null,null,null,null,null,null,null,null,null,null,null,{"$f":"IF(T84>30,\"活動日数が今月の日数を越えないように訂正してください。\",\"\")","v":""}]
[]
[{"$f":"COUNTIF($A$9:$A$83,1)","v":0},{"$f":"COUNTIF(A88,\">=1\" )","v":0}]
[{"$f":"COUNTIF($A$9:$A$83,2)","v":0},{"$f":"COUNTIF(A89,\">=1\" )","v":0}]
[{"$f":"COUNTIF($A$9:$A$83,3)","v":0},0]
[{"$f":"COUNTIF($A$9:$A$83,4)","v":0},0]
[{"$f":"COUNTIF($A$9:$A$83,5)","v":0},0]
[{"$f":"COUNTIF($A$9:$A$83,6)","v":0},0]
[{"$f":"COUNTIF($A$9:$A$83,7)","v":0},0]
[{"$f":"COUNTIF($A$9:$A$83,8)","v":0},0]
[{"$f":"COUNTIF($A$9:$A$83,9)","v":0},0]
[{"$f":"COUNTIF($A$9:$A$83,10)","v":0},0]
[{"$f":"COUNTIF($A$9:$A$83,11)","v":0},0]
[{"$f":"COUNTIF($A$9:$A$83,12)","v":0},0]
[{"$f":"COUNTIF($A$9:$A$83,13)","v":0},0]
[{"$f":"COUNTIF($A$9:$A$83,14)","v":0},0]
[{"$f":"COUNTIF($A$9:$A$83,15)","v":0},0]
[{"$f":"COUNTIF($A$9:$A$83,16)","v":0},0]
[{"$f":"COUNTIF($A$9:$A$83,17)","v":0},0]
[{"$f":"COUNTIF($A$9:$A$83,18)","v":0},0]
[{"$f":"COUNTIF($A$9:$A$83,19)","v":0},0]
[{"$f":"COUNTIF($A$9:$A$83,20)","v":0},0]
[{"$f":"COUNTIF($A$9:$A$83,21)","v":0},0]
[{"$f":"COUNTIF($A$9:$A$83,22)","v":0},0]
[{"$f":"COUNTIF($A$9:$A$83,23)","v":0},0]
[{"$f":"COUNTIF($A$9:$A$83,24)","v":0},0]
[{"$f":"COUNTIF($A$9:$A$83,25)","v":0},0]
[{"$f":"COUNTIF($A$9:$A$83,26)","v":0},0]
[{"$f":"COUNTIF($A$9:$A$83,27)","v":0},0]
[{"$f":"COUNTIF($A$9:$A$83,28)","v":0},0]
[{"$f":"COUNTIF($A$9:$A$83,29)","v":0},0]
[{"$f":"COUNTIF($A$9:$A$83,30)","v":0},0]
[{"$f":"COUNTIF($A$9:$A$83,31)","v":0},0]
[null,{"$f":"SUM(B88:B118)","v":0}]

{"sheet":"12月","index":18,"n_rows":119,"n_cols":43,"rows_kept":119,"cut":false,"hidden":false,"merged":[[16,29,16,34],[16,35,16,36],[16,37,16,38],[0,15,0,19],[1,15,1,19],[0,13,0,14],[1,13,1,14],[4,8,6,8],[0,0,0,2],[1,22,1,27],[5,24,6,27],[4,23,4,27],[4,18,6,18],[4,17,6,17],[4,16,6,16],[4,15,6,15],[4,14,6,14],[4,13,6,13],[4,12,6,12],[8,21,8,22],[9,22,9,27],[61,2,61,6],[69,2,69,6],[67,2,67,6],[68,2,68,6],[4,7,6,7],[55,2,55,6],[56,2,56,6],[57,2,57,6],[60,2,60,6],[47,2,47,6],[48,2,48,6],[65,2,65,6],[66,2,66,6],[49,2,49,6],[50,2,50,6],[58,2,58,6],[59,2,59,6],[54,2,54,6],[64,2,64,6],[63,2,63,6],[62,2,62,6],[33,2,33,6],[38,2,38,6],[43,2,43,6],[81,2,81,6],[71,2,71,6],[72,2,72,6],[73,2,73,6],[80,2,80,6],[70,2,70,6],[79,2,79,6],[75,2,75,6],[76,2,76,6],[77,2,77,6],[78,2,78,6],[74,2,74,6],[44,2,44,6],[45,2,45,6],[46,2,46,6],[40,2,40,6],[15,2,15,6],[11,2,11,6],[19,2,19,6],[20,2,20,6],[21,2,21,6],[30,2,30,6],[17,2,17,6],[51,2,51,6],[52,2,52,6],[53,2,53,6],[39,22,40,23],[29,2,29,6],[22,2,22,6],[23,2,23,6],[24,2,24,6],[25,2,25,6],[26,2,26,6],[28,2,28,6],[27,2,27,6],[31,2,31,6],[46,22,46,24],[32,2,32,6],[37,2,37,6],[41,2,41,6],[42,22,43,23],[26,23,30,23],[32,22,37,23],[11,22,30,22],[11,23,25,23],[31,22,31,27],[42,2,42,6],[83,0,83,6],[3,19,6,19],[3,9,3,14],[3,7,3,8],[13,2,13,6],[10,2,10,6],[3,0,7,1],[3,17,3,18],[3,15,3,16],[18,2,18,6],[12,2,12,6],[16,2,16,6],[3,2,7,6],[8,2,8,6],[4,11,6,11],[4,10,6,10],[82,2,82,6],[34,2,34,6],[35,2,35,6],[36,2,36,6],[39,2,39,6],[9,2,9,6],[14,2,14,6],[4,9,6,9]]}
[{"$f":"'4月'!$A$1","v":2023},null,null,"年",12,"月 の","民生委員･児童委員   活動記録内容",null,null,null,null,null,null,"民児協名：",null,{"$f":"総合計!L3","v":0},null,null,null,null,null,null,"民生委員番号"]
[{"$f":"IF(B119<>T84,\"報告日数（A列）と活動日数（T列）が一致していません。活動日数（T列）は一日に一つだけ【〇】を入力してください。\",\"\")","v":""},null,null,null,null,null,null,null,null,null,null,null,null,"氏 　　名：",null,{"$f":"総合計!L5","v":0},null,null,null,null,null,null,{"$f":"総合計!L2","v":0}]
[null,null,null,null,null,null,null,{"$f":"IF(H84=I84,\"\",\"※↓「内容」↓「分野」の件数が一致するように入力してください。\")","v":""},null,null,null,null,null,null,null,null,null,null,null,{"$f":"IF(T84>31,\"活動日数が今月の日数を越えないように訂正してください。\",\"\")","v":""}]
["日・曜日",null,"活 動 概 要",null,null,null,null,"相談･支援活動",null,"その他の活動",null,null,null,null,null,"訪問回数",null,"連絡調整回数",null,"活動日数",null,null,"民児協名:"]
[null,null,null,null,null,null,null,"内容","分野","調査・\n実態把握","行事･事業･会議への参加 ･協力","地域福祉活動 ･自主活動","民児協\n運営･研修","証明(調査・確認等)事務","要保護児童の発見の通告･仲介","訪問･\n連絡活動","その他","委員相互","その他の\n関係機関",null,null,null,null,{"$f":"総合計!L3","v":0}]
[null,null,null,null,null,null,null,null,null,null,null,null,null,null,null,null,null,null,null,null,null,null,"氏名：",null,{"$f":"総合計!L5","v":0}]
[]
[null,null,null,null,null,null,null,"(1)～(14)","(16)～(19)","(1)","(2)","(3)","(4)","(5)","(6)","(7)","(8)","(9)","(10)","(11)",null,null,null,null,null,null,null,null,null,"■会長報告用（データ）"]
[null,{"$f":"IF(A9<>\"\",WEEKDAY($A$1&\"/\"&$E$1&\"/\"&A9),\"\")","v":""},null,null,null,null,null,null,null,null,null,null,null,null,null,null,null,null,null,null,null,{"$f":"A1","v":2023},null,"年","12月分",null,null,null,null,"民児協の会長へデータで活動件数等をご報告する場合は下のデータをご利用ください。"]
[null,{"$f":"IF(A10<>\"\",WEEKDAY($A$1&\"/\"&$E$1&\"/\"&A10),\"\")","v":""},null,null,null,null,null,null,null,null,null,null,null,null,null,null,null,null,null,null,null,null," 活動件数 集計報告書 "]
[null,"",null,null,null,null,null,null,null,null,null,null,null,null,null,null,null,null,null,null,null,null,null,null,null,null,null,null,null,"相談・支援活動（内容別）"]
[null,"",null,null,null,null,null,null,null,null,null,null,null,null,null,null,null,null,null,null,null,null,"相談・支援活動","（内容別）","在　宅　福　祉","(1)",{"$f":"COUNTIF($H$9:$H$83,1)","v":0},"件",null,"(1)","(2)","(3)","(4)","(5)","(6)","(7)","(8)","(9)","(10)","(11)","(12)","(13)","(14)"]
[null,"",null,null,null,null,null,null,null,null,null,null,null,null,null,null,null,null,null,null,null,null,null,null,"介　護　保　険","(2)",{"$f":"COUNTIF($H$9:$H$83,2)","v":0},null,null,{"$f":"AA12","v":0},{"$f":"AA13","v":0},{"$f":"AA14","v":0},{"$f":"AA15","v":0},{"$f":"AA16","v":0},{"$f":"AA17","v":0},{"$f":"AA18","v":0},{"$f":"AA19","v":0},{"$f":"AA20","v":0},{"$f":"AA21","v":0},{"$f":"AA22","v":0},{"$f":"AA23","v":0},{"$f":"AA24","v":0},{"$f":"AA25","v":0}]
[null,"",null,null,null,null,null,null,null,null,null,null,null,null,null,null,null,null,null,null,null,null,null,null,"健康・保健医療","(3)",{"$f":"COUNTIF($H$9:$H$83,3)","v":0},null,null,"相談・支援活動（分野別）"]
[null,"",null,null,null,null,null,null,null,null,null,null,null,null,null,null,null,null,null,null,null,null,null,null,"子育て・母子保健","(4)",{"$f":"COUNTIF($H$9:$H$83,4)","v":0},null,null,"(16)","(17)","(18)","(19)"]
[null,"",null,null,null,null,null,null,null,null,null,null,null,null,null,null,null,null,null,null,null,null,null,null,"子どもの地域生活","(5)",{"$f":"COUNTIF($H$9:$H$83,5)","v":0},null,null,{"$f":"AA27","v":0},{"$f":"AA28","v":0},{"$f":"AA29","v":0},{"$f":"AA30","v":0}]
[null,"",null,null,null,null,null,null,null,null,null,null,null,null,null,null,null,null,null,null,null,null,null,null,"子どもの教育･学校生活","(6)",{"$f":"COUNTIF($H$9:$H$83,6)","v":0},null,null,"その他活動",null,null,null,null,null,"訪問回数",null,"連絡調整回数",null,"活動日数"]
[null,"",null,null,null,null,null,null,null,null,null,null,null,null,null,null,null,null,null,null,null,null,null,null,"生　　活　　費","(7)",{"$f":"COUNTIF($H$9:$H$83,7)","v":0},null,null,"(1)","(2)","(3)","(4)","(5)","(6)","(7)","(8)","(9)","(10)","(11)"]
[null,"",null,null,null,null,null,null,null,null,null,null,null,null,null,null,null,null,null,null,null,null,null,null,"年　金・保　険","(8)",{"$f":"COUNTIF($H$9:$H$83,8)","v":0},null,null,{"$f":"AA33","v":0},{"$f":"AA34","v":0},{"$f":"AA35","v":0},{"$f":"AA36","v":0},{"$f":"AA37","v":0},{"$f":"AA38","v":0},{"$f":"AA40","v":0},{"$f":"AA41","v":0},{"$f":"AA43","v":0},{"$f":"AA44","v":0},{"$f":"AA46","v":0}]
[null,"",null,null,null,null,null,null,null,null,null,null,null,null,null,null,null,null,null,null,null,null,null,null,"仕　　　　　事","(9)",{"$f":"COUNTIF($H$9:$H$83,9)","v":0}]
[null,"",null,null,null,null,null,null,null,null,null,null,null,null,null,null,null,null,null,null,null,null,null,null,"家　族　関　係","(10)",{"$f":"COUNTIF($H$9:$H$83,10)","v":0}]
[null,"",null,null,null,null,null,null,null,null,null,null,null,null,null,null,null,null,null,null,null,null,null,null,"住　　　　　居","(11)",{"$f":"COUNTIF($H$9:$H$83,11)","v":0}]
[null,"",null,null,null,null,null,null,null,null,null,null,null,null,null,null,null,null,null,null,null,null,null,null,"生　活　環　境","(12)",{"$f":"COUNTIF($H$9:$H$83,12)","v":0}]
[null,"",null,null,null,null,null,null,null,null,null,null,null,null,null,null,null,null,null,null,null,null,null,null,"日 常 的 な 支 援","(13)",{"$f":"COUNTIF($H$9:$H$83,13)","v":0}]
[null,"",null,null,null,null,null,null,null,null,null,null,null,null,null,null,null,null,null,null,null,null,null,null,"そ　　の　　他","(14)",{"$f":"COUNTIF($H$9:$H$83,14)","v":0}]
[null,"",null,null,null,null,null,null,null,null,null,null,null,null,null,null,null,null,null,null,null,null,null,null,"計","(15)",{"$f":"SUM(AA12:AA25)","v":0}]
[null,"",null,null,null,null,null,null,null,null,null,null,null,null,null,null,null,null,null,null,null,null,null,"（分野別）","高齢者に関すること","(16)",{"$f":"COUNTIF($I$9:$I$83,16)","v":0},"件"]
[null,"",null,null,null,null,null,null,null,null,null,null,null,null,null,null,null,null,null,null,null,null,null,null,"障害者に関すること","(17)",{"$f":"COUNTIF($I$9:$I$83,17)","v":0}]
[null,"",null,null,null,null,null,null,null,null,null,null,null,null,null,null,null,null,null,null,null,null,null,null,"子どもに関すること","(18)",{"$f":"COUNTIF($I$9:$I$83,18)","v":0}]
[null,"",null,null,null,null,null,null,null,null,null,null,null,null,null,null,null,null,null,null,null,null,null,null,"そ　　の　　他","(19)",{"$f":"COUNTIF($I$9:$I$83,19)","v":0}]
[null,"",null,null,null,null,null,null,null,null,null,null,null,null,null,null,null,null,null,null,null,null,null,null,"計","(20)",{"$f":"SUM(AA27:AA30)","v":0}]
[null,"",null,null,null,null,null,null,null,null,null,null,null,null,null,null,null,null,null,null,null,null,"　※(15)と(20)の合計件数は一致　"]
[null,"",null,null,null,null,null,null,null,null,null,null,null,null,null,null,null,null,null,null,null,null,"その他の活動",null,"調査・実態把握","(1)",{"$f":"J84","v":0},"件"]
[null,"",null,null,null,null,null,null,null,null,null,null,null,null,null,null,null,null,null,null,null,null,null,null,"行事・事業・会議への参加・協力","(2)",{"$f":"K84","v":0}]
[null,"",null,null,null,null,null,null,null,null,null,null,null,null,null,null,null,null,null,null,null,null,null,null,"地域福祉活動･自主活動","(3)",{"$f":"L84","v":0}]
[null,"",null,null,null,null,null,null,null,null,null,null,null,null,null,null,null,null,null,null,null,null,null,null,"民児協運営・研修","(4)",{"$f":"M84","v":0}]
[null,"",null,null,null,null,null,null,null,null,null,null,null,null,null,null,null,null,null,null,null,null,null,null,"証　明　事　務","(5)",{"$f":"N84","v":0}]
[null,"",null,null,null,null,null,null,null,null,null,null,null,null,null,null,null,null,null,null,null,null,null,null,"要保護児童の発見の通告･仲介","(6)",{"$f":"O84","v":0}]
[null,""]
[null,"",null,null,null,null,null,null,null,null,null,null,null,null,null,null,null,null,null,null,null,null,"訪問回数",null,"訪問・連絡活動","(7)",{"$f":"P84","v":0},"回"]
[null,"",null,null,null,null,null,null,null,null,null,null,null,null,null,null,null,null,null,null,null,null,null,null,"そ 　の　 他","(8)",{"$f":"Q84","v":0}]
[null,""]
[null,"",null,null,null,null,null,null,null,null,null,null,null,null,null,null,null,null,null,null,null,null,"連絡調整回数",null,"委　員　相　互","(9)",{"$f":"R84","v":0},"回"]
[null,"",null,null,null,null,null,null,null,null,null,null,null,null,null,null,null,null,null,null,null,null,null,null,"その他の関係機関","(10)",{"$f":"S84","v":0}]
[null,""]
[null,"",null,null,null,null,null,null,null,null,null,null,null,null,null,null,null,null,null,null,null,null,null,null,"活　動　日　数","(11)",{"$f":"T84","v":0},"日"]
[null,"",null,null,null,null,null,null,null,null,null,null,null,null,null,null,null,null,null,null,null,null,{"$f":"A1&\"年\"&E1&\"月\"","v":"2023年12月"}]
[null,"",null,null,null,null,null,null,null,null,null,null,null,null,null,null,null,null,null,null,null,null,"日","曜"]
[null,"",null,null,null,null,null,null,null,null,null,null,null,null,null,null,null,null,null,null,null,null,1,{"$f":"WEEKDAY($A$1&\"/\"&$E$1&\"/\"&W49)","v":6}]
[null,"",null,null,null,null,null,null,null,null,null,null,null,null,null,null,null,null,null,null,null,null,2,{"$f":"WEEKDAY($A$1&\"/\"&$E$1&\"/\"&W50)","v":7}]
[null,"",null,null,null,null,null,null,null,null,null,null,null,null,null,null,null,null,null,null,null,null,3,1]
[null,"",null,null,null,null,null,null,null,null,null,null,null,null,null,null,null,null,null,null,null,null,4,2]
[null,"",null,null,null,null,null,null,null,null,null,null,null,null,null,null,null,null,null,null,null,null,5,3]
[null,"",null,null,null,null,null,null,null,null,null,null,null,null,null,null,null,null,null,null,null,null,6,4]
[null,"",null,null,null,null,null,null,null,null,null,null,null,null,null,null,null,null,null,null,null,null,7,5]
[null,"",null,null,null,null,null,null,null,null,null,null,null,null,null,null,null,null,null,null,null,null,8,6]
[null,"",null,null,null,null,null,null,null,null,null,null,null,null,null,null,null,null,null,null,null,null,9,7]
[null,"",null,null,null,null,null,null,null,null,null,null,null,null,null,null,null,null,null,null,null,null,10,1]
[null,"",null,null,null,null,null,null,null,null,null,null,null,null,null,null,null,null,null,null,null,null,11,2]
[null,"",null,null,null,null,null,null,null,null,null,null,null,null,null,null,null,null,null,null,null,null,12,3]
[null,"",null,null,null,null,null,null,null,null,null,null,null,null,null,null,null,null,null,null,null,null,13,4]
[null,"",null,null,null,null,null,null,null,null,null,null,null,null,null,null,null,null,null,null,null,null,14,5]
[null,"",null,null,null,null,null,null,null,null,null,null,null,null,null,null,null,null,null,null,null,null,15,6]
[null,"",null,null,null,null,null,null,null,null,null,null,null,null,null,null,null,null,null,null,null,null,16,7]
[null,"",null,null,null,null,null,null,null,null,null,null,null,null,null,null,null,null,null,null,null,null,17,1]
[null,"",null,null,null,null,null,null,null,null,null,null,null,null,null,null,null,null,null,null,null,null,18,2]
[null,"",null,null,null,null,null,null,null,null,null,null,null,null,null,null,null,null,null,null,null,null,19,3]
[null,"",null,null,null,null,null,null,null,null,null,null,null,null,null,null,null,null,null,null,null,null,20,4]
[null,"",null,null,null,null,null,null,null,null,null,null,null,null,null,null,null,null,null,null,null,null,21,5]
[null,"",null,null,null,null,null,null,null,null,null,null,null,null,null,null,null,null,null,null,null,null,22,6]
[null,"",null,null,null,null,null,null,null,null,null,null,null,null,null,null,null,null,null,null,null,null,23,7]
[null,"",null,null,null,null,null,null,null,null,null,null,null,null,null,null,null,null,null,null,null,null,24,1]
[null,"",null,null,null,null,null,null,null,null,null,null,null,null,null,null,null,null,null,null,null,null,25,2]
[null,{"$f":"IF(A74<>\"\",WEEKDAY($A$1&\"/\"&$E$1&\"/\"&A74),\"\")","v":""},null,null,null,null,null,null,null,null,null,null,null,null,null,null,null,null,null,null,null,null,26,3]
[null,"",null,null,null,null,null,null,null,null,null,null,null,null,null,null,null,null,null,null,null,null,27,4]
[null,"",null,null,null,null,null,null,null,null,null,null,null,null,null,null,null,null,null,null,null,null,28,5]
[null,"",null,null,null,null,null,null,null,null,null,null,null,null,null,null,null,null,null,null,null,null,29,6]
[null,"",null,null,null,null,null,null,null,null,null,null,null,null,null,null,null,null,null,null,null,null,30,7]
[null,"",null,null,null,null,null,null,null,null,null,null,null,null,null,null,null,null,null,null,null,null,31,1]
[null,""]
[null,""]
[null,""]
[null,""]
["合　　　　　　計",null,null,null,null,null,null,{"$f":"COUNTA(H9:H83)","v":0},{"$f":"COUNTA(I9:I83)","v":0},{"$f":"SUM(J9:J83)","v":0},0,0,0,0,0,0,0,0,0,{"$f":"COUNTA(T9:T83)","v":0}]
[null,null,null,null,null,null,null,{"$f":"IF(H84=I84,\"\",\"※↑「内容」↑「分野」の件数が一致するように入力してください。\")","v":""},null,null,null,null,null,null,null,null,null,null,null,{"$f":"IF(T84>31,\"↑\",\"\")","v":""}]
[{"$f":"IF(B119<>T84,\"報告日数（A列）と活動日数（T列）が一致していません。活動日数（T列）は一日に一つだけ【〇】を入力してください。\",\"\")","v":""},null,null,null,null,null,null,null,null,null,null,null,null,null,null,null,null,null,null,{"$f":"IF(T84>31,\"活動日数が今月の日数を越えないように訂正してください。\",\"\")","v":""}]
[]
[{"$f":"COUNTIF($A$9:$A$83,1)","v":0},{"$f":"COUNTIF(A88,\">=1\" )","v":0}]
[{"$f":"COUNTIF($A$9:$A$83,2)","v":0},{"$f":"COUNTIF(A89,\">=1\" )","v":0}]
[{"$f":"COUNTIF($A$9:$A$83,3)","v":0},0]
[{"$f":"COUNTIF($A$9:$A$83,4)","v":0},0]
[{"$f":"COUNTIF($A$9:$A$83,5)","v":0},0]
[{"$f":"COUNTIF($A$9:$A$83,6)","v":0},0]
[{"$f":"COUNTIF($A$9:$A$83,7)","v":0},0]
[{"$f":"COUNTIF($A$9:$A$83,8)","v":0},0]
[{"$f":"COUNTIF($A$9:$A$83,9)","v":0},0]
[{"$f":"COUNTIF($A$9:$A$83,10)","v":0},0]
[{"$f":"COUNTIF($A$9:$A$83,11)","v":0},0]
[{"$f":"COUNTIF($A$9:$A$83,12)","v":0},0]
[{"$f":"COUNTIF($A$9:$A$83,13)","v":0},0]
[{"$f":"COUNTIF($A$9:$A$83,14)","v":0},0]
[{"$f":"COUNTIF($A$9:$A$83,15)","v":0},0]
[{"$f":"COUNTIF($A$9:$A$83,16)","v":0},0]
[{"$f":"COUNTIF($A$9:$A$83,17)","v":0},0]
[{"$f":"COUNTIF($A$9:$A$83,18)","v":0},0]
[{"$f":"COUNTIF($A$9:$A$83,19)","v":0},0]
[{"$f":"COUNTIF($A$9:$A$83,20)","v":0},0]
[{"$f":"COUNTIF($A$9:$A$83,21)","v":0},0]
[{"$f":"COUNTIF($A$9:$A$83,22)","v":0},0]
[{"$f":"COUNTIF($A$9:$A$83,23)","v":0},0]
[{"$f":"COUNTIF($A$9:$A$83,24)","v":0},0]
[{"$f":"COUNTIF($A$9:$A$83,25)","v":0},0]
[{"$f":"COUNTIF($A$9:$A$83,26)","v":0},0]
[{"$f":"COUNTIF($A$9:$A$83,27)","v":0},0]
[{"$f":"COUNTIF($A$9:$A$83,28)","v":0},0]
[{"$f":"COUNTIF($A$9:$A$83,29)","v":0},0]
[{"$f":"COUNTIF($A$9:$A$83,30)","v":0},0]
[{"$f":"COUNTIF($A$9:$A$83,31)","v":0},0]
[null,{"$f":"SUM(B88:B118)","v":0}]

{"sheet":"1月","index":19,"n_rows":119,"n_cols":43,"rows_kept":119,"cut":false,"hidden":false,"merged":[[16,29,16,34],[16,35,16,36],[16,37,16,38],[15,2,15,6],[8,2,8,6],[0,0,0,2],[4,10,6,10],[4,9,6,9],[4,18,6,18],[4,17,6,17],[4,16,6,16],[4,15,6,15],[4,14,6,14],[4,13,6,13],[3,0,7,1],[3,17,3,18],[3,15,3,16],[4,11,6,11],[0,15,0,19],[0,13,0,14],[26,2,26,6],[27,2,27,6],[28,2,28,6],[5,24,6,27],[4,23,4,27],[83,0,83,6],[3,19,6,19],[3,9,3,14],[3,7,3,8],[13,2,13,6],[8,21,8,22],[42,22,43,23],[26,23,30,23],[32,22,37,23],[11,22,30,22],[11,23,25,23],[4,12,6,12],[31,22,31,27],[39,22,40,23],[9,22,9,27],[17,2,17,6],[3,2,7,6],[9,2,9,6],[14,2,14,6],[82,2,82,6],[33,2,33,6],[34,2,34,6],[35,2,35,6],[36,2,36,6],[39,2,39,6],[40,2,40,6],[43,2,43,6],[44,2,44,6],[58,2,58,6],[51,2,51,6],[52,2,52,6],[53,2,53,6],[59,2,59,6],[45,2,45,6],[81,2,81,6],[71,2,71,6],[72,2,72,6],[73,2,73,6],[80,2,80,6],[70,2,70,6],[74,2,74,6],[61,2,61,6],[62,2,62,6],[64,2,64,6],[1,22,1,27],[46,22,46,24],[1,15,1,19],[1,13,1,14],[30,2,30,6],[31,2,31,6],[32,2,32,6],[37,2,37,6],[41,2,41,6],[38,2,38,6],[49,2,49,6],[54,2,54,6],[48,2,48,6],[50,2,50,6],[11,2,11,6],[10,2,10,6],[12,2,12,6],[16,2,16,6],[29,2,29,6],[22,2,22,6],[23,2,23,6],[24,2,24,6],[25,2,25,6],[79,2,79,6],[75,2,75,6],[76,2,76,6],[77,2,77,6],[78,2,78,6],[4,8,6,8],[4,7,6,7],[55,2,55,6],[56,2,56,6],[57,2,57,6],[19,2,19,6],[20,2,20,6],[21,2,21,6],[18,2,18,6],[60,2,60,6],[47,2,47,6],[46,2,46,6],[42,2,42,6],[63,2,63,6],[69,2,69,6],[67,2,67,6],[68,2,68,6],[65,2,65,6],[66,2,66,6]]}
[{"$f":"'4月'!$A$1+1","v":2024},null,null,"年",1,"月 の","民生委員･児童委員   活動記録内容",null,null,null,null,null,null,"民児協名：",null,{"$f":"総合計!L3","v":0},null,null,null,null,null,null,"民生委員番号"]
[{"$f":"IF(B119<>T84,\"報告日数（A列）と活動日数（T列）が一致していません。活動日数（T列）は一日に一つだけ【〇】を入力してください。\",\"\")","v":""},null,null,null,null,null,null,null,null,null,null,null,null,"氏 　　名：",null,{"$f":"総合計!L5","v":0},null,null,null,null,null,null,{"$f":"総合計!L2","v":0}]
[null,null,null,null,null,null,null,{"$f":"IF(H84=I84,\"\",\"※↓「内容」↓「分野」の件数が一致するように入力してください。\")","v":""},null,null,null,null,null,null,null,null,null,null,null,{"$f":"IF(T84>31,\"活動日数が今月の日数を越えないように訂正してください。\",\"\")","v":""}]
["日・曜日",null,"活 動 概 要",null,null,null,null,"相談･支援活動",null,"その他の活動",null,null,null,null,null,"訪問回数",null,"連絡調整回数",null,"活動日数",null,null,"民児協名:"]
[null,null,null,null,null,null,null,"内容","分野","調査・\n実態把握","行事･事業･会議への参加 ･協力","地域福祉活動 ･自主活動","民児協\n運営･研修","証明(調査・確認等)事務","要保護児童の発見の通告･仲介","訪問･\n連絡活動","その他","委員相互","その他の\n関係機関",null,null,null,null,{"$f":"総合計!L3","v":0}]
[null,null,null,null,null,null,null,null,null,null,null,null,null,null,null,null,null,null,null,null,null,null,"氏名：",null,{"$f":"総合計!L5","v":0}]
[]
[null,null,null,null,null,null,null,"(1)～(14)","(16)～(19)","(1)","(2)","(3)","(4)","(5)","(6)","(7)","(8)","(9)","(10)","(11)",null,null,null,null,null,null,null,null,null,"■会長報告用（データ）"]
[null,{"$f":"IF(A9<>\"\",WEEKDAY($A$1&\"/\"&$E$1&\"/\"&A9),\"\")","v":""},null,null,null,null,null,null,null,null,null,null,null,null,null,null,null,null,null,null,null,{"$f":"A1","v":2024},null,"年","1月分",null,null,null,null,"民児協の会長へデータで活動件数等をご報告する場合は下のデータをご利用ください。"]
[null,{"$f":"IF(A10<>\"\",WEEKDAY($A$1&\"/\"&$E$1&\"/\"&A10),\"\")","v":""},null,null,null,null,null,null,null,null,null,null,null,null,null,null,null,null,null,null,null,null," 活動件数 集計報告書 "]
[null,"",null,null,null,null,null,null,null,null,null,null,null,null,null,null,null,null,null,null,null,null,null,null,null,null,null,null,null,"相談・支援活動（内容別）"]
[null,"",null,null,null,null,null,null,null,null,null,null,null,null,null,null,null,null,null,null,null,null,"相談・支援活動","（内容別）","在　宅　福　祉","(1)",{"$f":"COUNTIF($H$9:$H$83,1)","v":0},"件",null,"(1)","(2)","(3)","(4)","(5)","(6)","(7)","(8)","(9)","(10)","(11)","(12)","(13)","(14)"]
[null,"",null,null,null,null,null,null,null,null,null,null,null,null,null,null,null,null,null,null,null,null,null,null,"介　護　保　険","(2)",{"$f":"COUNTIF($H$9:$H$83,2)","v":0},null,null,{"$f":"AA12","v":0},{"$f":"AA13","v":0},{"$f":"AA14","v":0},{"$f":"AA15","v":0},{"$f":"AA16","v":0},{"$f":"AA17","v":0},{"$f":"AA18","v":0},{"$f":"AA19","v":0},{"$f":"AA20","v":0},{"$f":"AA21","v":0},{"$f":"AA22","v":0},{"$f":"AA23","v":0},{"$f":"AA24","v":0},{"$f":"AA25","v":0}]
[null,"",null,null,null,null,null,null,null,null,null,null,null,null,null,null,null,null,null,null,null,null,null,null,"健康・保健医療","(3)",{"$f":"COUNTIF($H$9:$H$83,3)","v":0},null,null,"相談・支援活動（分野別）"]
[null,"",null,null,null,null,null,null,null,null,null,null,null,null,null,null,null,null,null,null,null,null,null,null,"子育て・母子保健","(4)",{"$f":"COUNTIF($H$9:$H$83,4)","v":0},null,null,"(16)","(17)","(18)","(19)"]
[null,"",null,null,null,null,null,null,null,null,null,null,null,null,null,null,null,null,null,null,null,null,null,null,"子どもの地域生活","(5)",{"$f":"COUNTIF($H$9:$H$83,5)","v":0},null,null,{"$f":"AA27","v":0},{"$f":"AA28","v":0},{"$f":"AA29","v":0},{"$f":"AA30","v":0}]
[null,"",null,null,null,null,null,null,null,null,null,null,null,null,null,null,null,null,null,null,null,null,null,null,"子どもの教育･学校生活","(6)",{"$f":"COUNTIF($H$9:$H$83,6)","v":0},null,null,"その他活動",null,null,null,null,null,"訪問回数",null,"連絡調整回数",null,"活動日数"]
[null,"",null,null,null,null,null,null,null,null,null,null,null,null,null,null,null,null,null,null,null,null,null,null,"生　　活　　費","(7)",{"$f":"COUNTIF($H$9:$H$83,7)","v":0},null,null,"(1)","(2)","(3)","(4)","(5)","(6)","(7)","(8)","(9)","(10)","(11)"]
[null,"",null,null,null,null,null,null,null,null,null,null,null,null,null,null,null,null,null,null,null,null,null,null,"年　金・保　険","(8)",{"$f":"COUNTIF($H$9:$H$83,8)","v":0},null,null,{"$f":"AA33","v":0},{"$f":"AA34","v":0},{"$f":"AA35","v":0},{"$f":"AA36","v":0},{"$f":"AA37","v":0},{"$f":"AA38","v":0},{"$f":"AA40","v":0},{"$f":"AA41","v":0},{"$f":"AA43","v":0},{"$f":"AA44","v":0},{"$f":"AA46","v":0}]
[null,"",null,null,null,null,null,null,null,null,null,null,null,null,null,null,null,null,null,null,null,null,null,null,"仕　　　　　事","(9)",{"$f":"COUNTIF($H$9:$H$83,9)","v":0}]
[null,"",null,null,null,null,null,null,null,null,null,null,null,null,null,null,null,null,null,null,null,null,null,null,"家　族　関　係","(10)",{"$f":"COUNTIF($H$9:$H$83,10)","v":0}]
[null,"",null,null,null,null,null,null,null,null,null,null,null,null,null,null,null,null,null,null,null,null,null,null,"住　　　　　居","(11)",{"$f":"COUNTIF($H$9:$H$83,11)","v":0}]
[null,"",null,null,null,null,null,null,null,null,null,null,null,null,null,null,null,null,null,null,null,null,null,null,"生　活　環　境","(12)",{"$f":"COUNTIF($H$9:$H$83,12)","v":0}]
[null,"",null,null,null,null,null,null,null,null,null,null,null,null,null,null,null,null,null,null,null,null,null,null,"日 常 的 な 支 援","(13)",{"$f":"COUNTIF($H$9:$H$83,13)","v":0}]
[null,"",null,null,null,null,null,null,null,null,null,null,null,null,null,null,null,null,null,null,null,null,null,null,"そ　　の　　他","(14)",{"$f":"COUNTIF($H$9:$H$83,14)","v":0}]
[null,"",null,null,null,null,null,null,null,null,null,null,null,null,null,null,null,null,null,null,null,null,null,null,"計","(15)",{"$f":"SUM(AA12:AA25)","v":0}]
[null,"",null,null,null,null,null,null,null,null,null,null,null,null,null,null,null,null,null,null,null,null,null,"（分野別）","高齢者に関すること","(16)",{"$f":"COUNTIF($I$9:$I$83,16)","v":0},"件"]
[null,"",null,null,null,null,null,null,null,null,null,null,null,null,null,null,null,null,null,null,null,null,null,null,"障害者に関すること","(17)",{"$f":"COUNTIF($I$9:$I$83,17)","v":0}]
[null,"",null,null,null,null,null,null,null,null,null,null,null,null,null,null,null,null,null,null,null,null,null,null,"子どもに関すること","(18)",{"$f":"COUNTIF($I$9:$I$83,18)","v":0}]
[null,"",null,null,null,null,null,null,null,null,null,null,null,null,null,null,null,null,null,null,null,null,null,null,"そ　　の　　他","(19)",{"$f":"COUNTIF($I$9:$I$83,19)","v":0}]
[null,"",null,null,null,null,null,null,null,null,null,null,null,null,null,null,null,null,null,null,null,null,null,null,"計","(20)",{"$f":"SUM(AA27:AA30)","v":0}]
[null,"",null,null,null,null,null,null,null,null,null,null,null,null,null,null,null,null,null,null,null,null,"　※(15)と(20)の合計件数は一致　"]
[null,"",null,null,null,null,null,null,null,null,null,null,null,null,null,null,null,null,null,null,null,null,"その他の活動",null,"調査・実態把握","(1)",{"$f":"J84","v":0},"件"]
[null,"",null,null,null,null,null,null,null,null,null,null,null,null,null,null,null,null,null,null,null,null,null,null,"行事・事業・会議への参加・協力","(2)",{"$f":"K84","v":0}]
[null,"",null,null,null,null,null,null,null,null,null,null,null,null,null,null,null,null,null,null,null,null,null,null,"地域福祉活動･自主活動","(3)",{"$f":"L84","v":0}]
[null,"",null,null,null,null,null,null,null,null,null,null,null,null,null,null,null,null,null,null,null,null,null,null,"民児協運営・研修","(4)",{"$f":"M84","v":0}]
[null,"",null,null,null,null,null,null,null,null,null,null,null,null,null,null,null,null,null,null,null,null,null,null,"証　明　事　務","(5)",{"$f":"N84","v":0}]
[null,"",null,null,null,null,null,null,null,null,null,null,null,null,null,null,null,null,null,null,null,null,null,null,"要保護児童の発見の通告･仲介","(6)",{"$f":"O84","v":0}]
[null,""]
[null,"",null,null,null,null,null,null,null,null,null,null,null,null,null,null,null,null,null,null,null,null,"訪問回数",null,"訪問・連絡活動","(7)",{"$f":"P84","v":0},"回"]
[null,"",null,null,null,null,null,null,null,null,null,null,null,null,null,null,null,null,null,null,null,null,null,null,"そ 　の　 他","(8)",{"$f":"Q84","v":0}]
[null,""]
[null,"",null,null,null,null,null,null,null,null,null,null,null,null,null,null,null,null,null,null,null,null,"連絡調整回数",null,"委　員　相　互","(9)",{"$f":"R84","v":0},"回"]
[null,"",null,null,null,null,null,null,null,null,null,null,null,null,null,null,null,null,null,null,null,null,null,null,"その他の関係機関","(10)",{"$f":"S84","v":0}]
[null,""]
[null,"",null,null,null,null,null,null,null,null,null,null,null,null,null,null,null,null,null,null,null,null,null,null,"活　動　日　数","(11)",{"$f":"T84","v":0},"日"]
[null,"",null,null,null,null,null,null,null,null,null,null,null,null,null,null,null,null,null,null,null,null,{"$f":"A1&\"年\"&E1&\"月\"","v":"2024年1月"}]
[null,"",null,null,null,null,null,null,null,null,null,null,null,null,null,null,null,null,null,null,null,null,"日","曜"]
[null,"",null,null,null,null,null,null,null,null,null,null,null,null,null,null,null,null,null,null,null,null,1,{"$f":"WEEKDAY($A$1&\"/\"&$E$1&\"/\"&W49)","v":2}]
[null,"",null,null,null,null,null,null,null,null,null,null,null,null,null,null,null,null,null,null,null,null,2,{"$f":"WEEKDAY($A$1&\"/\"&$E$1&\"/\"&W50)","v":3}]
[null,"",null,null,null,null,null,null,null,null,null,null,null,null,null,null,null,null,null,null,null,null,3,4]
[null,"",null,null,null,null,null,null,null,null,null,null,null,null,null,null,null,null,null,null,null,null,4,5]
[null,"",null,null,null,null,null,null,null,null,null,null,null,null,null,null,null,null,null,null,null,null,5,6]
[null,"",null,null,null,null,null,null,null,null,null,null,null,null,null,null,null,null,null,null,null,null,6,7]
[null,"",null,null,null,null,null,null,null,null,null,null,null,null,null,null,null,null,null,null,null,null,7,1]
[null,"",null,null,null,null,null,null,null,null,null,null,null,null,null,null,null,null,null,null,null,null,8,2]
[null,"",null,null,null,null,null,null,null,null,null,null,null,null,null,null,null,null,null,null,null,null,9,3]
[null,"",null,null,null,null,null,null,null,null,null,null,null,null,null,null,null,null,null,null,null,null,10,4]
[null,"",null,null,null,null,null,null,null,null,null,null,null,null,null,null,null,null,null,null,null,null,11,5]
[null,"",null,null,null,null,null,null,null,null,null,null,null,null,null,null,null,null,null,null,null,null,12,6]
[null,"",null,null,null,null,null,null,null,null,null,null,null,null,null,null,null,null,null,null,null,null,13,7]
[null,"",null,null,null,null,null,null,null,null,null,null,null,null,null,null,null,null,null,null,null,null,14,1]
[null,"",null,null,null,null,null,null,null,null,null,null,null,null,null,null,null,null,null,null,null,null,15,2]
[null,"",null,null,null,null,null,null,null,null,null,null,null,null,null,null,null,null,null,null,null,null,16,3]
[null,"",null,null,null,null,null,null,null,null,null,null,null,null,null,null,null,null,null,null,null,null,17,4]
[null,"",null,null,null,null,null,null,null,null,null,null,null,null,null,null,null,null,null,null,null,null,18,5]
[null,"",null,null,null,null,null,null,null,null,null,null,null,null,null,null,null,null,null,null,null,null,19,6]
[null,"",null,null,null,null,null,null,null,null,null,null,null,null,null,null,null,null,null,null,null,null,20,7]
[null,"",null,null,null,null,null,null,null,null,null,null,null,null,null,null,null,null,null,null,null,null,21,1]
[null,"",null,null,null,null,null,null,null,null,null,null,null,null,null,null,null,null,null,null,null,null,22,2]
[null,"",null,null,null,null,null,null,null,null,null,null,null,null,null,null,null,null,null,null,null,null,23,3]
[null,"",null,null,null,null,null,null,null,null,null,null,null,null,null,null,null,null,null,null,null,null,24,4]
[null,"",null,null,null,null,null,null,null,null,null,null,null,null,null,null,null,null,null,null,null,null,25,5]
[null,{"$f":"IF(A74<>\"\",WEEKDAY($A$1&\"/\"&$E$1&\"/\"&A74),\"\")","v":""},null,null,null,null,null,null,null,null,null,null,null,null,null,null,null,null,null,null,null,null,26,6]
[null,"",null,null,null,null,null,null,null,null,null,null,null,null,null,null,null,null,null,null,null,null,27,7]
[null,"",null,null,null,null,null,null,null,null,null,null,null,null,null,null,null,null,null,null,null,null,28,1]
[null,"",null,null,null,null,null,null,null,null,null,null,null,null,null,null,null,null,null,null,null,null,29,2]
[null,"",null,null,null,null,null,null,null,null,null,null,null,null,null,null,null,null,null,null,null,null,30,3]
[null,"",null,null,null,null,null,null,null,null,null,null,null,null,null,null,null,null,null,null,null,null,31,4]
[null,""]
[null,""]
[null,""]
[null,""]
["合　　　　　　計",null,null,null,null,null,null,{"$f":"COUNTA(H9:H83)","v":0},{"$f":"COUNTA(I9:I83)","v":0},{"$f":"SUM(J9:J83)","v":0},0,0,0,0,0,0,0,0,0,{"$f":"COUNTA(T9:T83)","v":0}]
[null,null,null,null,null,null,null,{"$f":"IF(H84=I84,\"\",\"※↑「内容」↑「分野」の件数が一致するように入力してください。\")","v":""},null,null,null,null,null,null,null,null,null,null,null,{"$f":"IF(T84>31,\"↑\",\"\")","v":""}]
[{"$f":"IF(B119<>T84,\"報告日数（A列）と活動日数（T列）が一致していません。活動日数（T列）は一日に一つだけ【〇】を入力してください。\",\"\")","v":""},null,null,null,null,null,null,null,null,null,null,null,null,null,null,null,null,null,null,{"$f":"IF(T84>31,\"活動日数が今月の日数を越えないように訂正してください。\",\"\")","v":""}]
[]
[{"$f":"COUNTIF($A$9:$A$83,1)","v":0},{"$f":"COUNTIF(A88,\">=1\" )","v":0}]
[{"$f":"COUNTIF($A$9:$A$83,2)","v":0},{"$f":"COUNTIF(A89,\">=1\" )","v":0}]
[{"$f":"COUNTIF($A$9:$A$83,3)","v":0},0]
[{"$f":"COUNTIF($A$9:$A$83,4)","v":0},0]
[{"$f":"COUNTIF($A$9:$A$83,5)","v":0},0]
[{"$f":"COUNTIF($A$9:$A$83,6)","v":0},0]
[{"$f":"COUNTIF($A$9:$A$83,7)","v":0},0]
[{"$f":"COUNTIF($A$9:$A$83,8)","v":0},0]
[{"$f":"COUNTIF($A$9:$A$83,9)","v":0},0]
[{"$f":"COUNTIF($A$9:$A$83,10)","v":0},0]
[{"$f":"COUNTIF($A$9:$A$83,11)","v":0},0]
[{"$f":"COUNTIF($A$9:$A$83,12)","v":0},0]
[{"$f":"COUNTIF($A$9:$A$83,13)","v":0},0]
[{"$f":"COUNTIF($A$9:$A$83,14)","v":0},0]
[{"$f":"COUNTIF($A$9:$A$83,15)","v":0},0]
[{"$f":"COUNTIF($A$9:$A$83,16)","v":0},0]
[{"$f":"COUNTIF($A$9:$A$83,17)","v":0},0]
[{"$f":"COUNTIF($A$9:$A$83,18)","v":0},0]
[{"$f":"COUNTIF($A$9:$A$83,19)","v":0},0]
[{"$f":"COUNTIF($A$9:$A$83,20)","v":0},0]
[{"$f":"COUNTIF($A$9:$A$83,21)","v":0},0]
[{"$f":"COUNTIF($A$9:$A$83,22)","v":0},0]
[{"$f":"COUNTIF($A$9:$A$83,23)","v":0},0]
[{"$f":"COUNTIF($A$9:$A$83,24)","v":0},0]
[{"$f":"COUNTIF($A$9:$A$83,25)","v":0},0]
[{"$f":"COUNTIF($A$9:$A$83,26)","v":0},0]
[{"$f":"COUNTIF($A$9:$A$83,27)","v":0},0]
[{"$f":"COUNTIF($A$9:$A$83,28)","v":0},0]
[{"$f":"COUNTIF($A$9:$A$83,29)","v":0},0]
[{"$f":"COUNTIF($A$9:$A$83,30)","v":0},0]
[{"$f":"COUNTIF($A$9:$A$83,31)","v":0},0]
[null,{"$f":"SUM(B88:B118)","v":0}]

{"sheet":"2月","index":20,"n_rows":119,"n_cols":43,"rows_kept":119,"cut":false,"hidden":false,"merged":[[16,29,16,34],[16,35,16,36],[16,37,16,38],[0,15,0,19],[1,15,1,19],[0,13,0,14],[1,13,1,14],[4,8,6,8],[0,0,0,2],[1,22,1,27],[5,24,6,27],[4,23,4,27],[4,18,6,18],[4,17,6,17],[4,16,6,16],[4,15,6,15],[4,14,6,14],[4,13,6,13],[4,12,6,12],[8,21,8,22],[9,22,9,27],[61,2,61,6],[69,2,69,6],[67,2,67,6],[68,2,68,6],[4,7,6,7],[55,2,55,6],[56,2,56,6],[57,2,57,6],[60,2,60,6],[47,2,47,6],[48,2,48,6],[65,2,65,6],[66,2,66,6],[49,2,49,6],[50,2,50,6],[58,2,58,6],[59,2,59,6],[54,2,54,6],[64,2,64,6],[63,2,63,6],[62,2,62,6],[33,2,33,6],[38,2,38,6],[43,2,43,6],[81,2,81,6],[71,2,71,6],[72,2,72,6],[73,2,73,6],[80,2,80,6],[70,2,70,6],[79,2,79,6],[75,2,75,6],[76,2,76,6],[77,2,77,6],[78,2,78,6],[74,2,74,6],[44,2,44,6],[45,2,45,6],[46,2,46,6],[40,2,40,6],[15,2,15,6],[11,2,11,6],[19,2,19,6],[20,2,20,6],[21,2,21,6],[30,2,30,6],[17,2,17,6],[51,2,51,6],[52,2,52,6],[53,2,53,6],[39,22,40,23],[29,2,29,6],[22,2,22,6],[23,2,23,6],[24,2,24,6],[25,2,25,6],[26,2,26,6],[28,2,28,6],[27,2,27,6],[31,2,31,6],[46,22,46,24],[32,2,32,6],[37,2,37,6],[41,2,41,6],[42,22,43,23],[26,23,30,23],[32,22,37,23],[11,22,30,22],[11,23,25,23],[31,22,31,27],[42,2,42,6],[83,0,83,6],[3,19,6,19],[3,9,3,14],[3,7,3,8],[13,2,13,6],[10,2,10,6],[3,0,7,1],[3,17,3,18],[3,15,3,16],[18,2,18,6],[12,2,12,6],[16,2,16,6],[3,2,7,6],[8,2,8,6],[4,11,6,11],[4,10,6,10],[82,2,82,6],[34,2,34,6],[35,2,35,6],[36,2,36,6],[39,2,39,6],[9,2,9,6],[14,2,14,6],[4,9,6,9]]}
[{"$f":"'1月'!$A$1","v":2024},null,null,"年",2,"月 の","民生委員･児童委員   活動記録内容",null,null,null,null,null,null,"民児協名：",null,{"$f":"総合計!L3","v":0},null,null,null,null,null,null,"民生委員番号"]
[{"$f":"IF(B119<>T84,\"報告日数（A列）と活動日数（T列）が一致していません。活動日数（T列）は一日に一つだけ【〇】を入力してください。\",\"\")","v":""},null,null,null,null,null,null,null,null,null,null,null,null,"氏 　　名：",null,{"$f":"総合計!L5","v":0},null,null,null,null,null,null,{"$f":"総合計!L2","v":0}]
[null,null,null,null,null,null,null,{"$f":"IF(H84=I84,\"\",\"※↓「内容」↓「分野」の件数が一致するように入力してください。\")","v":""},null,null,null,null,null,null,null,null,null,null,null,{"$f":"IF(T84>29,\"活動日数が今月の日数を越えないように訂正してください。\",\"\")","v":""}]
["日・曜日",null,"活 動 概 要",null,null,null,null,"相談･支援活動",null,"その他の活動",null,null,null,null,null,"訪問回数",null,"連絡調整回数",null,"活動日数",null,null,"民児協名:"]
[null,null,null,null,null,null,null,"内容","分野","調査・\n実態把握","行事･事業･会議への参加 ･協力","地域福祉活動 ･自主活動","民児協\n運営･研修","証明(調査・確認等)事務","要保護児童の発見の通告･仲介","訪問･\n連絡活動","その他","委員相互","その他の\n関係機関",null,null,null,null,{"$f":"総合計!L3","v":0}]
[null,null,null,null,null,null,null,null,null,null,null,null,null,null,null,null,null,null,null,null,null,null,"氏名：",null,{"$f":"総合計!L5","v":0}]
[]
[null,null,null,null,null,null,null,"(1)～(14)","(16)～(19)","(1)","(2)","(3)","(4)","(5)","(6)","(7)","(8)","(9)","(10)","(11)",null,null,null,null,null,null,null,null,null,"■会長報告用（データ）"]
[null,{"$f":"IF(A9<>\"\",WEEKDAY($A$1&\"/\"&$E$1&\"/\"&A9),\"\")","v":""},null,null,null,null,null,null,null,null,null,null,null,null,null,null,null,null,null,null,null,{"$f":"A1","v":2024},null,"年","2月分",null,null,null,null,"民児協の会長へデータで活動件数等をご報告する場合は下のデータをご利用ください。"]
[null,{"$f":"IF(A10<>\"\",WEEKDAY($A$1&\"/\"&$E$1&\"/\"&A10),\"\")","v":""},null,null,null,null,null,null,null,null,null,null,null,null,null,null,null,null,null,null,null,null," 活動件数 集計報告書 "]
[null,"",null,null,null,null,null,null,null,null,null,null,null,null,null,null,null,null,null,null,null,null,null,null,null,null,null,null,null,"相談・支援活動（内容別）"]
[null,"",null,null,null,null,null,null,null,null,null,null,null,null,null,null,null,null,null,null,null,null,"相談・支援活動","（内容別）","在　宅　福　祉","(1)",{"$f":"COUNTIF($H$9:$H$83,1)","v":0},"件",null,"(1)","(2)","(3)","(4)","(5)","(6)","(7)","(8)","(9)","(10)","(11)","(12)","(13)","(14)"]
[null,"",null,null,null,null,null,null,null,null,null,null,null,null,null,null,null,null,null,null,null,null,null,null,"介　護　保　険","(2)",{"$f":"COUNTIF($H$9:$H$83,2)","v":0},null,null,{"$f":"AA12","v":0},{"$f":"AA13","v":0},{"$f":"AA14","v":0},{"$f":"AA15","v":0},{"$f":"AA16","v":0},{"$f":"AA17","v":0},{"$f":"AA18","v":0},{"$f":"AA19","v":0},{"$f":"AA20","v":0},{"$f":"AA21","v":0},{"$f":"AA22","v":0},{"$f":"AA23","v":0},{"$f":"AA24","v":0},{"$f":"AA25","v":0}]
[null,"",null,null,null,null,null,null,null,null,null,null,null,null,null,null,null,null,null,null,null,null,null,null,"健康・保健医療","(3)",{"$f":"COUNTIF($H$9:$H$83,3)","v":0},null,null,"相談・支援活動（分野別）"]
[null,"",null,null,null,null,null,null,null,null,null,null,null,null,null,null,null,null,null,null,null,null,null,null,"子育て・母子保健","(4)",{"$f":"COUNTIF($H$9:$H$83,4)","v":0},null,null,"(16)","(17)","(18)","(19)"]
[null,"",null,null,null,null,null,null,null,null,null,null,null,null,null,null,null,null,null,null,null,null,null,null,"子どもの地域生活","(5)",{"$f":"COUNTIF($H$9:$H$83,5)","v":0},null,null,{"$f":"AA27","v":0},{"$f":"AA28","v":0},{"$f":"AA29","v":0},{"$f":"AA30","v":0}]
[null,"",null,null,null,null,null,null,null,null,null,null,null,null,null,null,null,null,null,null,null,null,null,null,"子どもの教育･学校生活","(6)",{"$f":"COUNTIF($H$9:$H$83,6)","v":0},null,null,"その他活動",null,null,null,null,null,"訪問回数",null,"連絡調整回数",null,"活動日数"]
[null,"",null,null,null,null,null,null,null,null,null,null,null,null,null,null,null,null,null,null,null,null,null,null,"生　　活　　費","(7)",{"$f":"COUNTIF($H$9:$H$83,7)","v":0},null,null,"(1)","(2)","(3)","(4)","(5)","(6)","(7)","(8)","(9)","(10)","(11)"]
[null,"",null,null,null,null,null,null,null,null,null,null,null,null,null,null,null,null,null,null,null,null,null,null,"年　金・保　険","(8)",{"$f":"COUNTIF($H$9:$H$83,8)","v":0},null,null,{"$f":"AA33","v":0},{"$f":"AA34","v":0},{"$f":"AA35","v":0},{"$f":"AA36","v":0},{"$f":"AA37","v":0},{"$f":"AA38","v":0},{"$f":"AA40","v":0},{"$f":"AA41","v":0},{"$f":"AA43","v":0},{"$f":"AA44","v":0},{"$f":"AA46","v":0}]
[null,"",null,null,null,null,null,null,null,null,null,null,null,null,null,null,null,null,null,null,null,null,null,null,"仕　　　　　事","(9)",{"$f":"COUNTIF($H$9:$H$83,9)","v":0}]
[null,"",null,null,null,null,null,null,null,null,null,null,null,null,null,null,null,null,null,null,null,null,null,null,"家　族　関　係","(10)",{"$f":"COUNTIF($H$9:$H$83,10)","v":0}]
[null,"",null,null,null,null,null,null,null,null,null,null,null,null,null,null,null,null,null,null,null,null,null,null,"住　　　　　居","(11)",{"$f":"COUNTIF($H$9:$H$83,11)","v":0}]
[null,"",null,null,null,null,null,null,null,null,null,null,null,null,null,null,null,null,null,null,null,null,null,null,"生　活　環　境","(12)",{"$f":"COUNTIF($H$9:$H$83,12)","v":0}]
[null,"",null,null,null,null,null,null,null,null,null,null,null,null,null,null,null,null,null,null,null,null,null,null,"日 常 的 な 支 援","(13)",{"$f":"COUNTIF($H$9:$H$83,13)","v":0}]
[null,"",null,null,null,null,null,null,null,null,null,null,null,null,null,null,null,null,null,null,null,null,null,null,"そ　　の　　他","(14)",{"$f":"COUNTIF($H$9:$H$83,14)","v":0}]
[null,"",null,null,null,null,null,null,null,null,null,null,null,null,null,null,null,null,null,null,null,null,null,null,"計","(15)",{"$f":"SUM(AA12:AA25)","v":0}]
[null,"",null,null,null,null,null,null,null,null,null,null,null,null,null,null,null,null,null,null,null,null,null,"（分野別）","高齢者に関すること","(16)",{"$f":"COUNTIF($I$9:$I$83,16)","v":0},"件"]
[null,"",null,null,null,null,null,null,null,null,null,null,null,null,null,null,null,null,null,null,null,null,null,null,"障害者に関すること","(17)",{"$f":"COUNTIF($I$9:$I$83,17)","v":0}]
[null,"",null,null,null,null,null,null,null,null,null,null,null,null,null,null,null,null,null,null,null,null,null,null,"子どもに関すること","(18)",{"$f":"COUNTIF($I$9:$I$83,18)","v":0}]
[null,"",null,null,null,null,null,null,null,null,null,null,null,null,null,null,null,null,null,null,null,null,null,null,"そ　　の　　他","(19)",{"$f":"COUNTIF($I$9:$I$83,19)","v":0}]
[null,"",null,null,null,null,null,null,null,null,null,null,null,null,null,null,null,null,null,null,null,null,null,null,"計","(20)",{"$f":"SUM(AA27:AA30)","v":0}]
[null,"",null,null,null,null,null,null,null,null,null,null,null,null,null,null,null,null,null,null,null,null,"　※(15)と(20)の合計件数は一致　"]
[null,"",null,null,null,null,null,null,null,null,null,null,null,null,null,null,null,null,null,null,null,null,"その他の活動",null,"調査・実態把握","(1)",{"$f":"J84","v":0},"件"]
[null,"",null,null,null,null,null,null,null,null,null,null,null,null,null,null,null,null,null,null,null,null,null,null,"行事・事業・会議への参加・協力","(2)",{"$f":"K84","v":0}]
[null,"",null,null,null,null,null,null,null,null,null,null,null,null,null,null,null,null,null,null,null,null,null,null,"地域福祉活動･自主活動","(3)",{"$f":"L84","v":0}]
[null,"",null,null,null,null,null,null,null,null,null,null,null,null,null,null,null,null,null,null,null,null,null,null,"民児協運営・研修","(4)",{"$f":"M84","v":0}]
[null,"",null,null,null,null,null,null,null,null,null,null,null,null,null,null,null,null,null,null,null,null,null,null,"証　明　事　務","(5)",{"$f":"N84","v":0}]
[null,"",null,null,null,null,null,null,null,null,null,null,null,null,null,null,null,null,null,null,null,null,null,null,"要保護児童の発見の通告･仲介","(6)",{"$f":"O84","v":0}]
[null,""]
[null,"",null,null,null,null,null,null,null,null,null,null,null,null,null,null,null,null,null,null,null,null,"訪問回数",null,"訪問・連絡活動","(7)",{"$f":"P84","v":0},"回"]
[null,"",null,null,null,null,null,null,null,null,null,null,null,null,null,null,null,null,null,null,null,null,null,null,"そ 　の　 他","(8)",{"$f":"Q84","v":0}]
[null,""]
[null,"",null,null,null,null,null,null,null,null,null,null,null,null,null,null,null,null,null,null,null,null,"連絡調整回数",null,"委　員　相　互","(9)",{"$f":"R84","v":0},"回"]
[null,"",null,null,null,null,null,null,null,null,null,null,null,null,null,null,null,null,null,null,null,null,null,null,"その他の関係機関","(10)",{"$f":"S84","v":0}]
[null,""]
[null,"",null,null,null,null,null,null,null,null,null,null,null,null,null,null,null,null,null,null,null,null,null,null,"活　動　日　数","(11)",{"$f":"T84","v":0},"日"]
[null,"",null,null,null,null,null,null,null,null,null,null,null,null,null,null,null,null,null,null,null,null,{"$f":"A1&\"年\"&E1&\"月\"","v":"2024年2月"}]
[null,"",null,null,null,null,null,null,null,null,null,null,null,null,null,null,null,null,null,null,null,null,"日","曜"]
[null,"",null,null,null,null,null,null,null,null,null,null,null,null,null,null,null,null,null,null,null,null,1,{"$f":"WEEKDAY($A$1&\"/\"&$E$1&\"/\"&W49)","v":5}]
[null,"",null,null,null,null,null,null,null,null,null,null,null,null,null,null,null,null,null,null,null,null,2,{"$f":"WEEKDAY($A$1&\"/\"&$E$1&\"/\"&W50)","v":6}]
[null,"",null,null,null,null,null,null,null,null,null,null,null,null,null,null,null,null,null,null,null,null,3,7]
[null,"",null,null,null,null,null,null,null,null,null,null,null,null,null,null,null,null,null,null,null,null,4,1]
[null,"",null,null,null,null,null,null,null,null,null,null,null,null,null,null,null,null,null,null,null,null,5,2]
[null,"",null,null,null,null,null,null,null,null,null,null,null,null,null,null,null,null,null,null,null,null,6,3]
[null,"",null,null,null,null,null,null,null,null,null,null,null,null,null,null,null,null,null,null,null,null,7,4]
[null,"",null,null,null,null,null,null,null,null,null,null,null,null,null,null,null,null,null,null,null,null,8,5]
[null,"",null,null,null,null,null,null,null,null,null,null,null,null,null,null,null,null,null,null,null,null,9,6]
[null,"",null,null,null,null,null,null,null,null,null,null,null,null,null,null,null,null,null,null,null,null,10,7]
[null,"",null,null,null,null,null,null,null,null,null,null,null,null,null,null,null,null,null,null,null,null,11,1]
[null,"",null,null,null,null,null,null,null,null,null,null,null,null,null,null,null,null,null,null,null,null,12,2]
[null,"",null,null,null,null,null,null,null,null,null,null,null,null,null,null,null,null,null,null,null,null,13,3]
[null,"",null,null,null,null,null,null,null,null,null,null,null,null,null,null,null,null,null,null,null,null,14,4]
[null,"",null,null,null,null,null,null,null,null,null,null,null,null,null,null,null,null,null,null,null,null,15,5]
[null,"",null,null,null,null,null,null,null,null,null,null,null,null,null,null,null,null,null,null,null,null,16,6]
[null,"",null,null,null,null,null,null,null,null,null,null,null,null,null,null,null,null,null,null,null,null,17,7]
[null,"",null,null,null,null,null,null,null,null,null,null,null,null,null,null,null,null,null,null,null,null,18,1]
[null,"",null,null,null,null,null,null,null,null,null,null,null,null,null,null,null,null,null,null,null,null,19,2]
[null,"",null,null,null,null,null,null,null,null,null,null,null,null,null,null,null,null,null,null,null,null,20,3]
[null,"",null,null,null,null,null,null,null,null,null,null,null,null,null,null,null,null,null,null,null,null,21,4]
[null,"",null,null,null,null,null,null,null,null,null,null,null,null,null,null,null,null,null,null,null,null,22,5]
[null,"",null,null,null,null,null,null,null,null,null,null,null,null,null,null,null,null,null,null,null,null,23,6]
[null,"",null,null,null,null,null,null,null,null,null,null,null,null,null,null,null,null,null,null,null,null,24,7]
[null,"",null,null,null,null,null,null,null,null,null,null,null,null,null,null,null,null,null,null,null,null,25,1]
[null,{"$f":"IF(A74<>\"\",WEEKDAY($A$1&\"/\"&$E$1&\"/\"&A74),\"\")","v":""},null,null,null,null,null,null,null,null,null,null,null,null,null,null,null,null,null,null,null,null,26,2]
[null,"",null,null,null,null,null,null,null,null,null,null,null,null,null,null,null,null,null,null,null,null,27,3]
[null,"",null,null,null,null,null,null,null,null,null,null,null,null,null,null,null,null,null,null,null,null,28,4]
[null,"",null,null,null,null,null,null,null,null,null,null,null,null,null,null,null,null,null,null,null,null,29,5]
[null,""]
[null,""]
[null,""]
[null,""]
[null,""]
[null,""]
["合　　　　　　計",null,null,null,null,null,null,{"$f":"COUNTA(H9:H83)","v":0},{"$f":"COUNTA(I9:I83)","v":0},{"$f":"SUM(J9:J83)","v":0},0,0,0,0,0,0,0,0,0,{"$f":"COUNTA(T9:T83)","v":0}]
[null,null,null,null,null,null,null,{"$f":"IF(H84=I84,\"\",\"※↑「内容」↑「分野」の件数が一致するように入力してください。\")","v":""},null,null,null,null,null,null,null,null,null,null,null,{"$f":"IF(T84>29,\"↑\",\"\")","v":""}]
[{"$f":"IF(B119<>T84,\"報告日数（A列）と活動日数（T列）が一致していません。活動日数（T列）は一日に一つだけ【〇】を入力してください。\",\"\")","v":""},null,null,null,null,null,null,null,null,null,null,null,null,null,null,null,null,null,null,{"$f":"IF(T84>29,\"活動日数が今月の日数を越えないように訂正してください。\",\"\")","v":""}]
[]
[{"$f":"COUNTIF($A$9:$A$83,1)","v":0},{"$f":"COUNTIF(A88,\">=1\" )","v":0}]
[{"$f":"COUNTIF($A$9:$A$83,2)","v":0},{"$f":"COUNTIF(A89,\">=1\" )","v":0}]
[{"$f":"COUNTIF($A$9:$A$83,3)","v":0},0]
[{"$f":"COUNTIF($A$9:$A$83,4)","v":0},0]
[{"$f":"COUNTIF($A$9:$A$83,5)","v":0},0]
[{"$f":"COUNTIF($A$9:$A$83,6)","v":0},0]
[{"$f":"COUNTIF($A$9:$A$83,7)","v":0},0]
[{"$f":"COUNTIF($A$9:$A$83,8)","v":0},0]
[{"$f":"COUNTIF($A$9:$A$83,9)","v":0},0]
[{"$f":"COUNTIF($A$9:$A$83,10)","v":0},0]
[{"$f":"COUNTIF($A$9:$A$83,11)","v":0},0]
[{"$f":"COUNTIF($A$9:$A$83,12)","v":0},0]
[{"$f":"COUNTIF($A$9:$A$83,13)","v":0},0]
[{"$f":"COUNTIF($A$9:$A$83,14)","v":0},0]
[{"$f":"COUNTIF($A$9:$A$83,15)","v":0},0]
[{"$f":"COUNTIF($A$9:$A$83,16)","v":0},0]
[{"$f":"COUNTIF($A$9:$A$83,17)","v":0},0]
[{"$f":"COUNTIF($A$9:$A$83,18)","v":0},0]
[{"$f":"COUNTIF($A$9:$A$83,19)","v":0},0]
[{"$f":"COUNTIF($A$9:$A$83,20)","v":0},0]
[{"$f":"COUNTIF($A$9:$A$83,21)","v":0},0]
[{"$f":"COUNTIF($A$9:$A$83,22)","v":0},0]
[{"$f":"COUNTIF($A$9:$A$83,23)","v":0},0]
[{"$f":"COUNTIF($A$9:$A$83,24)","v":0},0]
[{"$f":"COUNTIF($A$9:$A$83,25)","v":0},0]
[{"$f":"COUNTIF($A$9:$A$83,26)","v":0},0]
[{"$f":"COUNTIF($A$9:$A$83,27)","v":0},0]
[{"$f":"COUNTIF($A$9:$A$83,28)","v":0},0]
[{"$f":"COUNTIF($A$9:$A$83,29)","v":0},0]
[{"$f":"COUNTIF($A$9:$A$83,30)","v":0},0]
[{"$f":"COUNTIF($A$9:$A$83,31)","v":0},0]
[null,{"$f":"SUM(B88:B118)","v":0}]

{"sheet":"3月","index":21,"n_rows":119,"n_cols":43,"rows_kept":119,"cut":false,"hidden":false,"merged":[[16,29,16,34],[16,35,16,36],[16,37,16,38],[15,2,15,6],[8,2,8,6],[0,0,0,2],[4,10,6,10],[4,9,6,9],[4,18,6,18],[4,17,6,17],[4,16,6,16],[4,15,6,15],[4,14,6,14],[4,13,6,13],[3,0,7,1],[3,17,3,18],[3,15,3,16],[4,11,6,11],[0,15,0,19],[0,13,0,14],[26,2,26,6],[27,2,27,6],[28,2,28,6],[5,24,6,27],[4,23,4,27],[83,0,83,6],[3,19,6,19],[3,9,3,14],[3,7,3,8],[13,2,13,6],[8,21,8,22],[42,22,43,23],[26,23,30,23],[32,22,37,23],[11,22,30,22],[11,23,25,23],[4,12,6,12],[31,22,31,27],[39,22,40,23],[9,22,9,27],[17,2,17,6],[3,2,7,6],[9,2,9,6],[14,2,14,6],[82,2,82,6],[33,2,33,6],[34,2,34,6],[35,2,35,6],[36,2,36,6],[39,2,39,6],[40,2,40,6],[43,2,43,6],[44,2,44,6],[58,2,58,6],[51,2,51,6],[52,2,52,6],[53,2,53,6],[59,2,59,6],[45,2,45,6],[81,2,81,6],[71,2,71,6],[72,2,72,6],[73,2,73,6],[80,2,80,6],[70,2,70,6],[74,2,74,6],[61,2,61,6],[62,2,62,6],[64,2,64,6],[1,22,1,27],[46,22,46,24],[1,15,1,19],[1,13,1,14],[30,2,30,6],[31,2,31,6],[32,2,32,6],[37,2,37,6],[41,2,41,6],[38,2,38,6],[49,2,49,6],[54,2,54,6],[48,2,48,6],[50,2,50,6],[11,2,11,6],[10,2,10,6],[12,2,12,6],[16,2,16,6],[29,2,29,6],[22,2,22,6],[23,2,23,6],[24,2,24,6],[25,2,25,6],[79,2,79,6],[75,2,75,6],[76,2,76,6],[77,2,77,6],[78,2,78,6],[4,8,6,8],[4,7,6,7],[55,2,55,6],[56,2,56,6],[57,2,57,6],[19,2,19,6],[20,2,20,6],[21,2,21,6],[18,2,18,6],[60,2,60,6],[47,2,47,6],[46,2,46,6],[42,2,42,6],[63,2,63,6],[69,2,69,6],[67,2,67,6],[68,2,68,6],[65,2,65,6],[66,2,66,6]]}
[{"$f":"'1月'!$A$1","v":2024},null,null,"年",3,"月 の","民生委員･児童委員   活動記録内容",null,null,null,null,null,null,"民児協名：",null,{"$f":"総合計!L3","v":0},null,null,null,null,null,null,"民生委員番号"]
[{"$f":"IF(B119<>T84,\"報告日数（A列）と活動日数（T列）が一致していません。活動日数（T列）は一日に一つだけ【〇】を入力してください。\",\"\")","v":""},null,null,null,null,null,null,null,null,null,null,null,null,"氏 　　名：",null,{"$f":"総合計!L5","v":0},null,null,null,null,null,null,{"$f":"総合計!L2","v":0}]
[null,null,null,null,null,null,null,{"$f":"IF(H84=I84,\"\",\"※↓「内容」↓「分野」の件数が一致するように入力してください。\")","v":""},null,null,null,null,null,null,null,null,null,null,null,{"$f":"IF(T84>31,\"活動日数が今月の日数を越えないように訂正してください。\",\"\")","v":""}]
["日・曜日",null,"活 動 概 要",null,null,null,null,"相談･支援活動",null,"その他の活動",null,null,null,null,null,"訪問回数",null,"連絡調整回数",null,"活動日数",null,null,"民児協名:"]
[null,null,null,null,null,null,null,"内容","分野","調査・\n実態把握","行事･事業･会議への参加 ･協力","地域福祉活動 ･自主活動","民児協\n運営･研修","証明(調査・確認等)事務","要保護児童の発見の通告･仲介","訪問･\n連絡活動","その他","委員相互","その他の\n関係機関",null,null,null,null,{"$f":"総合計!L3","v":0}]
[null,null,null,null,null,null,null,null,null,null,null,null,null,null,null,null,null,null,null,null,null,null,"氏名：",null,{"$f":"総合計!L5","v":0}]
[]
[null,null,null,null,null,null,null,"(1)～(14)","(16)～(19)","(1)","(2)","(3)","(4)","(5)","(6)","(7)","(8)","(9)","(10)","(11)",null,null,null,null,null,null,null,null,null,"■会長報告用（データ）"]
[null,{"$f":"IF(A9<>\"\",WEEKDAY($A$1&\"/\"&$E$1&\"/\"&A9),\"\")","v":""},null,null,null,null,null,null,null,null,null,null,null,null,null,null,null,null,null,null,null,{"$f":"A1","v":2024},null,"年","3月分",null,null,null,null,"民児協の会長へデータで活動件数等をご報告する場合は下のデータをご利用ください。"]
[null,{"$f":"IF(A10<>\"\",WEEKDAY($A$1&\"/\"&$E$1&\"/\"&A10),\"\")","v":""},null,null,null,null,null,null,null,null,null,null,null,null,null,null,null,null,null,null,null,null," 活動件数 集計報告書 "]
[null,"",null,null,null,null,null,null,null,null,null,null,null,null,null,null,null,null,null,null,null,null,null,null,null,null,null,null,null,"相談・支援活動（内容別）"]
[null,"",null,null,null,null,null,null,null,null,null,null,null,null,null,null,null,null,null,null,null,null,"相談・支援活動","（内容別）","在　宅　福　祉","(1)",{"$f":"COUNTIF($H$9:$H$83,1)","v":0},"件",null,"(1)","(2)","(3)","(4)","(5)","(6)","(7)","(8)","(9)","(10)","(11)","(12)","(13)","(14)"]
[null,"",null,null,null,null,null,null,null,null,null,null,null,null,null,null,null,null,null,null,null,null,null,null,"介　護　保　険","(2)",{"$f":"COUNTIF($H$9:$H$83,2)","v":0},null,null,{"$f":"AA12","v":0},{"$f":"AA13","v":0},{"$f":"AA14","v":0},{"$f":"AA15","v":0},{"$f":"AA16","v":0},{"$f":"AA17","v":0},{"$f":"AA18","v":0},{"$f":"AA19","v":0},{"$f":"AA20","v":0},{"$f":"AA21","v":0},{"$f":"AA22","v":0},{"$f":"AA23","v":0},{"$f":"AA24","v":0},{"$f":"AA25","v":0}]
[null,"",null,null,null,null,null,null,null,null,null,null,null,null,null,null,null,null,null,null,null,null,null,null,"健康・保健医療","(3)",{"$f":"COUNTIF($H$9:$H$83,3)","v":0},null,null,"相談・支援活動（分野別）"]
[null,"",null,null,null,null,null,null,null,null,null,null,null,null,null,null,null,null,null,null,null,null,null,null,"子育て・母子保健","(4)",{"$f":"COUNTIF($H$9:$H$83,4)","v":0},null,null,"(16)","(17)","(18)","(19)"]
[null,"",null,null,null,null,null,null,null,null,null,null,null,null,null,null,null,null,null,null,null,null,null,null,"子どもの地域生活","(5)",{"$f":"COUNTIF($H$9:$H$83,5)","v":0},null,null,{"$f":"AA27","v":0},{"$f":"AA28","v":0},{"$f":"AA29","v":0},{"$f":"AA30","v":0}]
[null,"",null,null,null,null,null,null,null,null,null,null,null,null,null,null,null,null,null,null,null,null,null,null,"子どもの教育･学校生活","(6)",{"$f":"COUNTIF($H$9:$H$83,6)","v":0},null,null,"その他活動",null,null,null,null,null,"訪問回数",null,"連絡調整回数",null,"活動日数"]
[null,"",null,null,null,null,null,null,null,null,null,null,null,null,null,null,null,null,null,null,null,null,null,null,"生　　活　　費","(7)",{"$f":"COUNTIF($H$9:$H$83,7)","v":0},null,null,"(1)","(2)","(3)","(4)","(5)","(6)","(7)","(8)","(9)","(10)","(11)"]
[null,"",null,null,null,null,null,null,null,null,null,null,null,null,null,null,null,null,null,null,null,null,null,null,"年　金・保　険","(8)",{"$f":"COUNTIF($H$9:$H$83,8)","v":0},null,null,{"$f":"AA33","v":0},{"$f":"AA34","v":0},{"$f":"AA35","v":0},{"$f":"AA36","v":0},{"$f":"AA37","v":0},{"$f":"AA38","v":0},{"$f":"AA40","v":0},{"$f":"AA41","v":0},{"$f":"AA43","v":0},{"$f":"AA44","v":0},{"$f":"AA46","v":0}]
[null,"",null,null,null,null,null,null,null,null,null,null,null,null,null,null,null,null,null,null,null,null,null,null,"仕　　　　　事","(9)",{"$f":"COUNTIF($H$9:$H$83,9)","v":0}]
[null,"",null,null,null,null,null,null,null,null,null,null,null,null,null,null,null,null,null,null,null,null,null,null,"家　族　関　係","(10)",{"$f":"COUNTIF($H$9:$H$83,10)","v":0}]
[null,"",null,null,null,null,null,null,null,null,null,null,null,null,null,null,null,null,null,null,null,null,null,null,"住　　　　　居","(11)",{"$f":"COUNTIF($H$9:$H$83,11)","v":0}]
[null,"",null,null,null,null,null,null,null,null,null,null,null,null,null,null,null,null,null,null,null,null,null,null,"生　活　環　境","(12)",{"$f":"COUNTIF($H$9:$H$83,12)","v":0}]
[null,"",null,null,null,null,null,null,null,null,null,null,null,null,null,null,null,null,null,null,null,null,null,null,"日 常 的 な 支 援","(13)",{"$f":"COUNTIF($H$9:$H$83,13)","v":0}]
[null,"",null,null,null,null,null,null,null,null,null,null,null,null,null,null,null,null,null,null,null,null,null,null,"そ　　の　　他","(14)",{"$f":"COUNTIF($H$9:$H$83,14)","v":0}]
[null,"",null,null,null,null,null,null,null,null,null,null,null,null,null,null,null,null,null,null,null,null,null,null,"計","(15)",{"$f":"SUM(AA12:AA25)","v":0}]
[null,"",null,null,null,null,null,null,null,null,null,null,null,null,null,null,null,null,null,null,null,null,null,"（分野別）","高齢者に関すること","(16)",{"$f":"COUNTIF($I$9:$I$83,16)","v":0},"件"]
[null,"",null,null,null,null,null,null,null,null,null,null,null,null,null,null,null,null,null,null,null,null,null,null,"障害者に関すること","(17)",{"$f":"COUNTIF($I$9:$I$83,17)","v":0}]
[null,"",null,null,null,null,null,null,null,null,null,null,null,null,null,null,null,null,null,null,null,null,null,null,"子どもに関すること","(18)",{"$f":"COUNTIF($I$9:$I$83,18)","v":0}]
[null,"",null,null,null,null,null,null,null,null,null,null,null,null,null,null,null,null,null,null,null,null,null,null,"そ　　の　　他","(19)",{"$f":"COUNTIF($I$9:$I$83,19)","v":0}]
[null,"",null,null,null,null,null,null,null,null,null,null,null,null,null,null,null,null,null,null,null,null,null,null,"計","(20)",{"$f":"SUM(AA27:AA30)","v":0}]
[null,"",null,null,null,null,null,null,null,null,null,null,null,null,null,null,null,null,null,null,null,null,"　※(15)と(20)の合計件数は一致　"]
[null,"",null,null,null,null,null,null,null,null,null,null,null,null,null,null,null,null,null,null,null,null,"その他の活動",null,"調査・実態把握","(1)",{"$f":"J84","v":0},"件"]
[null,"",null,null,null,null,null,null,null,null,null,null,null,null,null,null,null,null,null,null,null,null,null,null,"行事・事業・会議への参加・協力","(2)",{"$f":"K84","v":0}]
[null,"",null,null,null,null,null,null,null,null,null,null,null,null,null,null,null,null,null,null,null,null,null,null,"地域福祉活動･自主活動","(3)",{"$f":"L84","v":0}]
[null,"",null,null,null,null,null,null,null,null,null,null,null,null,null,null,null,null,null,null,null,null,null,null,"民児協運営・研修","(4)",{"$f":"M84","v":0}]
[null,"",null,null,null,null,null,null,null,null,null,null,null,null,null,null,null,null,null,null,null,null,null,null,"証　明　事　務","(5)",{"$f":"N84","v":0}]
[null,"",null,null,null,null,null,null,null,null,null,null,null,null,null,null,null,null,null,null,null,null,null,null,"要保護児童の発見の通告･仲介","(6)",{"$f":"O84","v":0}]
[null,""]
[null,"",null,null,null,null,null,null,null,null,null,null,null,null,null,null,null,null,null,null,null,null,"訪問回数",null,"訪問・連絡活動","(7)",{"$f":"P84","v":0},"回"]
[null,"",null,null,null,null,null,null,null,null,null,null,null,null,null,null,null,null,null,null,null,null,null,null,"そ 　の　 他","(8)",{"$f":"Q84","v":0}]
[null,""]
[null,"",null,null,null,null,null,null,null,null,null,null,null,null,null,null,null,null,null,null,null,null,"連絡調整回数",null,"委　員　相　互","(9)",{"$f":"R84","v":0},"回"]
[null,"",null,null,null,null,null,null,null,null,null,null,null,null,null,null,null,null,null,null,null,null,null,null,"その他の関係機関","(10)",{"$f":"S84","v":0}]
[null,""]
[null,"",null,null,null,null,null,null,null,null,null,null,null,null,null,null,null,null,null,null,null,null,null,null,"活　動　日　数","(11)",{"$f":"T84","v":0},"日"]
[null,"",null,null,null,null,null,null,null,null,null,null,null,null,null,null,null,null,null,null,null,null,{"$f":"A1&\"年\"&E1&\"月\"","v":"2024年3月"}]
[null,"",null,null,null,null,null,null,null,null,null,null,null,null,null,null,null,null,null,null,null,null,"日","曜"]
[null,"",null,null,null,null,null,null,null,null,null,null,null,null,null,null,null,null,null,null,null,null,1,{"$f":"WEEKDAY($A$1&\"/\"&$E$1&\"/\"&W49)","v":6}]
[null,"",null,null,null,null,null,null,null,null,null,null,null,null,null,null,null,null,null,null,null,null,2,{"$f":"WEEKDAY($A$1&\"/\"&$E$1&\"/\"&W50)","v":7}]
[null,"",null,null,null,null,null,null,null,null,null,null,null,null,null,null,null,null,null,null,null,null,3,1]
[null,"",null,null,null,null,null,null,null,null,null,null,null,null,null,null,null,null,null,null,null,null,4,2]
[null,"",null,null,null,null,null,null,null,null,null,null,null,null,null,null,null,null,null,null,null,null,5,3]
[null,"",null,null,null,null,null,null,null,null,null,null,null,null,null,null,null,null,null,null,null,null,6,4]
[null,"",null,null,null,null,null,null,null,null,null,null,null,null,null,null,null,null,null,null,null,null,7,5]
[null,"",null,null,null,null,null,null,null,null,null,null,null,null,null,null,null,null,null,null,null,null,8,6]
[null,"",null,null,null,null,null,null,null,null,null,null,null,null,null,null,null,null,null,null,null,null,9,7]
[null,"",null,null,null,null,null,null,null,null,null,null,null,null,null,null,null,null,null,null,null,null,10,1]
[null,"",null,null,null,null,null,null,null,null,null,null,null,null,null,null,null,null,null,null,null,null,11,2]
[null,"",null,null,null,null,null,null,null,null,null,null,null,null,null,null,null,null,null,null,null,null,12,3]
[null,"",null,null,null,null,null,null,null,null,null,null,null,null,null,null,null,null,null,null,null,null,13,4]
[null,"",null,null,null,null,null,null,null,null,null,null,null,null,null,null,null,null,null,null,null,null,14,5]
[null,"",null,null,null,null,null,null,null,null,null,null,null,null,null,null,null,null,null,null,null,null,15,6]
[null,"",null,null,null,null,null,null,null,null,null,null,null,null,null,null,null,null,null,null,null,null,16,7]
[null,"",null,null,null,null,null,null,null,null,null,null,null,null,null,null,null,null,null,null,null,null,17,1]
[null,"",null,null,null,null,null,null,null,null,null,null,null,null,null,null,null,null,null,null,null,null,18,2]
[null,"",null,null,null,null,null,null,null,null,null,null,null,null,null,null,null,null,null,null,null,null,19,3]
[null,"",null,null,null,null,null,null,null,null,null,null,null,null,null,null,null,null,null,null,null,null,20,4]
[null,"",null,null,null,null,null,null,null,null,null,null,null,null,null,null,null,null,null,null,null,null,21,5]
[null,"",null,null,null,null,null,null,null,null,null,null,null,null,null,null,null,null,null,null,null,null,22,6]
[null,"",null,null,null,null,null,null,null,null,null,null,null,null,null,null,null,null,null,null,null,null,23,7]
[null,"",null,null,null,null,null,null,null,null,null,null,null,null,null,null,null,null,null,null,null,null,24,1]
[null,"",null,null,null,null,null,null,null,null,null,null,null,null,null,null,null,null,null,null,null,null,25,2]
[null,{"$f":"IF(A74<>\"\",WEEKDAY($A$1&\"/\"&$E$1&\"/\"&A74),\"\")","v":""},null,null,null,null,null,null,null,null,null,null,null,null,null,null,null,null,null,null,null,null,26,3]
[null,"",null,null,null,null,null,null,null,null,null,null,null,null,null,null,null,null,null,null,null,null,27,4]
[null,"",null,null,null,null,null,null,null,null,null,null,null,null,null,null,null,null,null,null,null,null,28,5]
[null,"",null,null,null,null,null,null,null,null,null,null,null,null,null,null,null,null,null,null,null,null,29,6]
[null,"",null,null,null,null,null,null,null,null,null,null,null,null,null,null,null,null,null,null,null,null,30,7]
[null,"",null,null,null,null,null,null,null,null,null,null,null,null,null,null,null,null,null,null,null,null,31,1]
[null,""]
[null,""]
[null,""]
[null,""]
["合　　　　　　計",null,null,null,null,null,null,{"$f":"COUNTA(H9:H83)","v":0},{"$f":"COUNTA(I9:I83)","v":0},{"$f":"SUM(J9:J83)","v":0},0,0,0,0,0,0,0,0,0,{"$f":"COUNTA(T9:T83)","v":0}]
[null,null,null,null,null,null,null,{"$f":"IF(H84=I84,\"\",\"※↑「内容」↑「分野」の件数が一致するように入力してください。\")","v":""},null,null,null,null,null,null,null,null,null,null,null,{"$f":"IF(T84>31,\"↑\",\"\")","v":""}]
[{"$f":"IF(B119<>T84,\"報告日数（A列）と活動日数（T列）が一致していません。活動日数（T列）は一日に一つだけ【〇】を入力してください。\",\"\")","v":""},null,null,null,null,null,null,null,null,null,null,null,null,null,null,null,null,null,null,{"$f":"IF(T84>31,\"活動日数が今月の日数を越えないように訂正してください。\",\"\")","v":""}]
[]
[{"$f":"COUNTIF($A$9:$A$83,1)","v":0},{"$f":"COUNTIF(A88,\">=1\" )","v":0}]
[{"$f":"COUNTIF($A$9:$A$83,2)","v":0},{"$f":"COUNTIF(A89,\">=1\" )","v":0}]
[{"$f":"COUNTIF($A$9:$A$83,3)","v":0},0]
[{"$f":"COUNTIF($A$9:$A$83,4)","v":0},0]
[{"$f":"COUNTIF($A$9:$A$83,5)","v":0},0]
[{"$f":"COUNTIF($A$9:$A$83,6)","v":0},0]
[{"$f":"COUNTIF($A$9:$A$83,7)","v":0},0]
[{"$f":"COUNTIF($A$9:$A$83,8)","v":0},0]
[{"$f":"COUNTIF($A$9:$A$83,9)","v":0},0]
[{"$f":"COUNTIF($A$9:$A$83,10)","v":0},0]
[{"$f":"COUNTIF($A$9:$A$83,11)","v":0},0]
[{"$f":"COUNTIF($A$9:$A$83,12)","v":0},0]
[{"$f":"COUNTIF($A$9:$A$83,13)","v":0},0]
[{"$f":"COUNTIF($A$9:$A$83,14)","v":0},0]
[{"$f":"COUNTIF($A$9:$A$83,15)","v":0},0]
[{"$f":"COUNTIF($A$9:$A$83,16)","v":0},0]
[{"$f":"COUNTIF($A$9:$A$83,17)","v":0},0]
[{"$f":"COUNTIF($A$9:$A$83,18)","v":0},0]
[{"$f":"COUNTIF($A$9:$A$83,19)","v":0},0]
[{"$f":"COUNTIF($A$9:$A$83,20)","v":0},0]
[{"$f":"COUNTIF($A$9:$A$83,21)","v":0},0]
[{"$f":"COUNTIF($A$9:$A$83,22)","v":0},0]
[{"$f":"COUNTIF($A$9:$A$83,23)","v":0},0]
[{"$f":"COUNTIF($A$9:$A$83,24)","v":0},0]
[{"$f":"COUNTIF($A$9:$A$83,25)","v":0},0]
[{"$f":"COUNTIF($A$9:$A$83,26)","v":0},0]
[{"$f":"COUNTIF($A$9:$A$83,27)","v":0},0]
[{"$f":"COUNTIF($A$9:$A$83,28)","v":0},0]
[{"$f":"COUNTIF($A$9:$A$83,29)","v":0},0]
[{"$f":"COUNTIF($A$9:$A$83,30)","v":0},0]
[{"$f":"COUNTIF($A$9:$A$83,31)","v":0},0]
[null,{"$f":"SUM(B88:B118)","v":0}]